Workbook

Sheet Main
B10: 2019-11-08
B12: Sheet No. | C12: Template Name | D12: Summary
B13: 1 | C13: Future Intra | D13: For Intraday trading in F&O segment
B14: 2 | C14: Cash Intra | D14: For Intraday trading in cash market segment
B15: 3 | C15: Mid-cap Intra | D15: For Intraday trading in Mid-cap stocks
B16: 4 | C16: Bulk Deals | D16: Reveals Bulk Deals carried on NSE & BSE
B17: 5 | C17: Call Tracker
K27: `

Sheet Future Intra
M5: Back to Main Page
A6: FOR INTRA DAY TRADING | L6: =Main!B10 -> 2019-11-08
A9: Sr.no | B9: Sector | C9: Scrip | D9: CLOSE RATE | E9: Pivot Point | F9: Supports | I9: Resistances
B10: Sector | D10: Point | E10: Point | F10: S1 | G10: S2 | H10: S3 | I10: R1 | J10: R2 | K10: R3 | L10: HIGH | M10: LOW | N10: OI | O10: % Change in OI
A11: 1 | B11: Index | C11: BANKNIFTY | D11: 30664.35 | E11: 30658.77 | F11: 30468.58 | G11: 30272.82 | H11: 30082.63 | I11: 30854.53 | J11: 31044.72 | K11: 31240.48 | L11: 30848.95 | M11: 30463 | N11: 1465640 | O11: 6.27%
A12: 2 | B12: Index | C12: NIFTY | D12: 12047.95 | E12: 12026.08 | F12: 11994.17 | G12: 11940.38 | H12: 11908.47 | I12: 12079.87 | J12: 12111.78 | K12: 12165.57 | L12: 12058 | M12: 11972.3 | N12: 16937100 | O12: 2.78%
A13: 3 | B13: Index | C13: NIFTYIT | D13: 15720.00 | E13: 15698.33 | F13: 15646.67 | G13: 15573.33 | H13: 15521.67 | I13: 15771.67 | J13: 15823.33 | K13: 15896.67 | L13: 15750 | M13: 15625 | N13: 6950 | O13: -2.80%
A14: 4 | B14: Cement | C14: ACC | D14: 1534.05 | E14: 1536.63 | F14: 1523.47 | G14: 1512.88 | H14: 1499.72 | I14: 1547.22 | J14: 1560.38 | K14: 1570.97 | L14: 1549.8 | M14: 1526.05 | N14: 2884000 | O14: -0.22%
A15: 5 | B15: Others | C15: ADANIENT | D15: 210.00 | E15: 208.95 | F15: 206.90 | G15: 203.80 | H15: 201.75 | I15: 212.05 | J15: 214.10 | K15: 217.20 | L15: 211 | M15: 205.85 | N15: 30512000 | O15: 0.30%
A16: 6 | B16: Others | C16: ADANIPORTS | D16: 391.70 | E16: 391.42 | F16: 389.28 | G16: 386.87 | H16: 384.73 | I16: 393.83 | J16: 395.97 | K16: 398.38 | L16: 393.55 | M16: 389 | N16: 17040000 | O16: 2.11%
A17: 7 | B17: Power | C17: ADANIPOWER | D17: 70.80 | E17: 71.03 | F17: 70.37 | G17: 69.93 | H17: 69.27 | I17: 71.47 | J17: 72.13 | K17: 72.57 | L17: 71.7 | M17: 70.6 | N17: 79580000 | O17: -0.91%
A18: 8 | B18: Automobile | C18: AMARAJABAT | D18: 664.20 | E18: 664.28 | F18: 659.37 | G18: 654.53 | H18: 649.62 | I18: 669.12 | J18: 674.03 | K18: 678.87 | L18: 669.2 | M18: 659.45 | N18: 1332900 | O18: 1.06%
A19: 9 | B19: Cement | C19: AMBUJACEM | D19: 203.65 | E19: 203.92 | F19: 202.33 | G19: 201.02 | H19: 199.43 | I19: 205.23 | J19: 206.82 | K19: 208.13 | L19: 205.5 | M19: 202.6 | N19: 19625000 | O19: 0.27%
A20: 10 | B20: Others | C20: APOLLOHOSP | D20: 1464.35 | E20: 1454.15 | F20: 1438.20 | G20: 1412.05 | H20: 1396.10 | I20: 1480.30 | J20: 1496.25 | K20: 1522.40 | L20: 1470.1 | M20: 1428 | N20: 1686000 | O20: -6.59%
A21: 11 | B21: Automobile | C21: APOLLOTYRE | D21: 166.70 | E21: 167.20 | F21: 164.90 | G21: 163.10 | H21: 160.80 | I21: 169.00 | J21: 171.30 | K21: 173.10 | L21: 169.5 | M21: 165.4 | N21: 9708000 | O21: 11.01%
A22: 12 | B22: Automobile | C22: ASHOKLEY | D22: 76.95 | E22: 76.48 | F22: 75.62 | G22: 74.28 | H22: 73.42 | I22: 77.82 | J22: 78.68 | K22: 80.02 | L22: 77.35 | M22: 75.15 | N22: 61800000 | O22: 1.55%
A23: 13 | B23: FMCG | C23: ASIANPAINT | D23: 1831.55 | E23: 1823.68 | F23: 1811.37 | G23: 1791.18 | H23: 1778.87 | I23: 1843.87 | J23: 1856.18 | K23: 1876.37 | L23: 1836 | M23: 1803.5 | N23: 7908600 | O23: 2.94%
A24: 14 | B24: Pharma | C24: AUROPHARMA | D24: 452.90 | E24: 450.72 | F24: 445.63 | G24: 438.37 | H24: 433.28 | I24: 457.98 | J24: 463.07 | K24: 470.33 | L24: 455.8 | M24: 443.45 | N24: 17287000 | O24: 0.28%
A25: 15 | B25: Banking | C25: AXISBANK | D25: 737.95 | E25: 743.45 | F25: 730.25 | G25: 722.55 | H25: 709.35 | I25: 751.15 | J25: 764.35 | K25: 772.05 | L25: 756.65 | M25: 735.75 | N25: 53409600 | O25: 2.56%
A26: 16 | B26: Automobile | C26: BAJAJ-AUTO | D26: 3272.50 | E26: 3262.47 | F26: 3245.03 | G26: 3217.57 | H26: 3200.13 | I26: 3289.93 | J26: 3307.37 | K26: 3334.83 | L26: 3279.9 | M26: 3235 | N26: 2242750 | O26: -0.69%
A27: 17 | B27: Finance | C27: BAJAJFINSV | D27: 8839.85 | E27: 8825.95 | F27: 8784.90 | G27: 8729.95 | H27: 8688.90 | I27: 8880.90 | J27: 8921.95 | K27: 8976.90 | L27: 8867 | M27: 8771 | N27: 1416125 | O27: 0.51%
A28: 18 | B28: Finance | C28: BAJFINANCE | D28: 4229.85 | E28: 4223.60 | F28: 4201.25 | G28: 4172.65 | H28: 4150.30 | I28: 4252.20 | J28: 4274.55 | K28: 4303.15 | L28: 4245.95 | M28: 4195 | N28: 7170750 | O28: 0.23%
A29: 19 | B29: Automobile | C29: BALKRISIND | D29: 861.05 | E29: 861.52 | F29: 854.53 | G29: 848.02 | H29: 841.03 | I29: 868.03 | J29: 875.02 | K29: 881.53 | L29: 868.5 | M29: 855 | N29: 1522400 | O29: 2.26%
A30: 20 | B30: Banking | C30: BANKBARODA | D30: 96.40 | E30: 97.68 | F30: 94.62 | G30: 92.83 | H30: 89.77 | I30: 99.47 | J30: 102.53 | K30: 104.32 | L30: 100.75 | M30: 95.9 | N30: 76517100 | O30: 6.39%
A31: 21 | B31: Banking | C31: BANKINDIA | D31: 67.90 | E31: 68.42 | F31: 66.83 | G31: 65.77 | H31: 64.18 | I31: 69.48 | J31: 71.07 | K31: 72.13 | L31: 70 | M31: 67.35 | N31: 23388000 | O31: -0.08%
A32: 22 | B32: FMCG | C32: BATAINDIA | D32: 1728.70 | E32: 1719.43 | F32: 1706.37 | G32: 1684.03 | H32: 1670.97 | I32: 1741.77 | J32: 1754.83 | K32: 1777.17 | L32: 1732.5 | M32: 1697.1 | N32: 2492050 | O32: -0.22%
A33: 23 | B33: Capital_Goods | C33: BEL | D33: 108.65 | E33: 108.95 | F33: 107.45 | G33: 106.25 | H33: 104.75 | I33: 110.15 | J33: 111.65 | K33: 112.85 | L33: 110.45 | M33: 107.75 | N33: 27576000 | O33: 1.50%
A34: 24 | B34: FMCG | C34: BERGEPAINT | D34: 503.30 | E34: 499.20 | F34: 492.50 | G34: 481.70 | H34: 475.00 | I34: 510.00 | J34: 516.70 | K34: 527.50 | L34: 505.9 | M34: 488.4 | N34: 7458000 | O34: 1.95%
A35: 25 | B35: Automobile | C35: BHARATFORG | D35: 466.35 | E35: 465.33 | F35: 458.32 | G35: 450.28 | H35: 443.27 | I35: 473.37 | J35: 480.38 | K35: 488.42 | L35: 472.35 | M35: 457.3 | N35: 6877300 | O35: 3.06%
A36: 26 | B36: Telecom | C36: BHARTIARTL | D36: 373.40 | E36: 373.22 | F36: 370.18 | G36: 366.97 | H36: 363.93 | I36: 376.43 | J36: 379.47 | K36: 382.68 | L36: 376.25 | M36: 370 | N36: 31281900 | O36: -0.70%
A37: 27 | B37: Capital_Goods | C37: BHEL | D37: 55.75 | E37: 55.70 | F37: 55.05 | G37: 54.35 | H37: 53.70 | I37: 56.40 | J37: 57.05 | K37: 57.75 | L37: 56.35 | M37: 55 | N37: 56254100 | O37: 3.66%
A38: 28 | B38: Pharma | C38: BIOCON | D38: 263.35 | E38: 261.13 | F38: 258.32 | G38: 253.28 | H38: 250.47 | I38: 266.17 | J38: 268.98 | K38: 274.02 | L38: 263.95 | M38: 256.1 | N38: 11168100 | O38: 0.29%
A39: 29 | B39: Automobile | C39: BOSCHLTD | D39: 15307.70 | E39: 15114.20 | F39: 14853.50 | G39: 14399.30 | H39: 14138.60 | I39: 15568.40 | J39: 15829.10 | K39: 16283.30 | L39: 15374.9 | M39: 14660 | N39: 147990 | O39: -2.37%
A40: 30 | B40: Oil_Gas | C40: BPCL | D40: 515.05 | E40: 518.55 | F40: 508.70 | G40: 502.35 | H40: 492.50 | I40: 524.90 | J40: 534.75 | K40: 541.10 | L40: 528.4 | M40: 512.2 | N40: 20656800 | O40: -0.15%
A41: 31 | B41: FMCG | C41: BRITANNIA | D41: 3236.20 | E41: 3235.90 | F41: 3211.80 | G41: 3187.40 | H41: 3163.30 | I41: 3260.30 | J41: 3284.40 | K41: 3308.80 | L41: 3260 | M41: 3211.5 | N41: 2023000 | O41: 0.22%
A42: 32 | B42: Pharma | C42: CADILAHC | D42: 235.85 | E42: 236.73 | F42: 231.67 | G42: 227.48 | H42: 222.42 | I42: 240.92 | J42: 245.98 | K42: 250.17 | L42: 241.8 | M42: 232.55 | N42: 8892400 | O42: 3.00%
A43: 33 | B43: Banking | C43: CANBK | D43: 210.20 | E43: 211.73 | F43: 207.87 | G43: 205.53 | H43: 201.67 | I43: 214.07 | J43: 217.93 | K43: 220.27 | L43: 215.6 | M43: 209.4 | N43: 12819400 | O43: 2.67%
A44: 34 | B44: Oil_Gas | C44: CASTROLIND | D44: 153.55 | E44: 154.07 | F44: 151.83 | G44: 150.12 | H44: 147.88 | I44: 155.78 | J44: 158.02 | K44: 159.73 | L44: 156.3 | M44: 152.35 | N44: 5103400 | O44: -2.21%
A45: 35 | B45: Textile | C45: CENTURYTEX | D45: 398.75 | E45: 398.85 | F45: 391.30 | G45: 383.85 | H45: 376.30 | I45: 406.30 | J45: 413.85 | K45: 421.30 | L45: 406.4 | M45: 391.4 | N45: 2034600 | O45: -2.14%
A46: 36 | B46: Power | C46: CESC | D46: 780.20 | E46: 780.27 | F46: 772.03 | G46: 763.87 | H46: 755.63 | I46: 788.43 | J46: 796.67 | K46: 804.83 | L46: 788.5 | M46: 772.1 | N46: 1062400 | O46: -3.70%
A47: 37 | B47: Finance | C47: CHOLAFIN | D47: 298.55 | E47: 302.00 | F47: 294.25 | G47: 289.95 | H47: 282.20 | I47: 306.30 | J47: 314.05 | K47: 318.35 | L47: 309.75 | M47: 297.7 | N47: 4182500 | O47: 5.62%
A48: 38 | B48: Pharma | C48: CIPLA | D48: 473.75 | E48: 477.77 | F48: 467.73 | G48: 461.72 | H48: 451.68 | I48: 483.78 | J48: 493.82 | K48: 499.83 | L48: 487.8 | M48: 471.75 | N48: 13281300 | O48: -8.72%
A49: 39 | B49: Others | C49: COALINDIA | D49: 213.15 | E49: 213.00 | F49: 211.55 | G49: 209.95 | H49: 208.50 | I49: 214.60 | J49: 216.05 | K49: 217.65 | L49: 214.45 | M49: 211.4 | N49: 22850200 | O49: -0.28%
A50: 40 | B50: FMCG | C50: COLPAL | D50: 1605.55 | E50: 1588.65 | F50: 1561.30 | G50: 1517.05 | H50: 1489.70 | I50: 1632.90 | J50: 1660.25 | K50: 1704.50 | L50: 1616 | M50: 1544.4 | N50: 2527000 | O50: 14.24%
A51: 41 | B51: Others | C51: CONCOR | D51: 582.25 | E51: 584.10 | F51: 579.20 | G51: 576.15 | H51: 571.25 | I51: 587.15 | J51: 592.05 | K51: 595.10 | L51: 589 | M51: 581.05 | N51: 5345460 | O51: 0.80%
A52: 42 | B52: Capital_Goods | C52: CUMMINSIND | D52: 553.40 | E52: 552.42 | F52: 548.83 | G52: 544.27 | H52: 540.68 | I52: 556.98 | J52: 560.57 | K52: 565.13 | L52: 556 | M52: 547.85 | N52: 1993600 | O52: -1.11%
A53: 43 | B53: FMCG | C53: DABUR | D53: 478.80 | E53: 477.68 | F53: 474.02 | G53: 469.23 | H53: 465.57 | I53: 482.47 | J53: 486.13 | K53: 490.92 | L53: 481.35 | M53: 472.9 | N53: 10845000 | O53: 0.68%
A54: 44 | B54: Media | C54: DISHTV | D54: 14.25 | E54: 14.23 | F54: 13.92 | G54: 13.58 | H54: 13.27 | I54: 14.57 | J54: 14.88 | K54: 15.22 | L54: 14.55 | M54: 13.9 | N54: 90904900 | O54: 0.15%
A55: 45 | B55: Pharma | C55: DIVISLAB | D55: 1722.00 | E55: 1711.05 | F55: 1696.85 | G55: 1671.70 | H55: 1657.50 | I55: 1736.20 | J55: 1750.40 | K55: 1775.55 | L55: 1725.25 | M55: 1685.9 | N55: 2293200 | O55: 0.42%
A56: 46 | B56: Realty | C56: DLF | D56: 193.35 | E56: 193.20 | F56: 188.60 | G56: 183.85 | H56: 179.25 | I56: 197.95 | J56: 202.55 | K56: 207.30 | L56: 197.8 | M56: 188.45 | N56: 40784000 | O56: 4.84%
A57: 47 | B57: Pharma | C57: DRREDDY | D57: 2883.45 | E57: 2871.87 | F57: 2850.73 | G57: 2818.02 | H57: 2796.88 | I57: 2904.58 | J57: 2925.72 | K57: 2958.43 | L57: 2893 | M57: 2839.15 | N57: 3272250 | O57: -0.30%
A58: 48 | B58: Automobile | C58: EICHERMOT | D58: 21512.25 | E58: 21506.87 | F58: 21267.38 | G58: 21022.52 | H58: 20783.03 | I58: 21751.73 | J58: 21991.22 | K58: 22236.08 | L58: 21746.35 | M58: 21262 | N58: 293510 | O58: 0.22%
A59: 49 | B59: Finance | C59: EQUITAS | D59: 99.90 | E59: 100.58 | F59: 98.32 | G59: 96.73 | H59: 94.47 | I59: 102.17 | J59: 104.43 | K59: 106.02 | L59: 102.85 | M59: 99 | N59: 10520000 | O59: 3.79%
A60: 50 | B60: Automobile | C60: ESCORTS | D60: 649.40 | E60: 651.78 | F60: 642.82 | G60: 636.23 | H60: 627.27 | I60: 658.37 | J60: 667.33 | K60: 673.92 | L60: 660.75 | M60: 645.2 | N60: 4798200 | O60: -1.65%
A61: 51 | B61: Automobile | C61: EXIDEIND | D61: 187.80 | E61: 188.38 | F61: 185.97 | G61: 184.13 | H61: 181.72 | I61: 190.22 | J61: 192.63 | K61: 194.47 | L61: 190.8 | M61: 186.55 | N61: 11366900 | O61: -5.58%
A62: 52 | B62: Banking | C62: FEDERALBNK | D62: 84.10 | E62: 84.47 | F62: 83.33 | G62: 82.57 | H62: 81.43 | I62: 85.23 | J62: 86.37 | K62: 87.13 | L62: 85.6 | M62: 83.7 | N62: 57981000 | O62: 2.93%
A63: 53 | B63: Oil_Gas | C63: GAIL | D63: 132.70 | E63: 133.92 | F63: 130.73 | G63: 128.77 | H63: 125.58 | I63: 135.88 | J63: 139.07 | K63: 141.03 | L63: 137.1 | M63: 131.95 | N63: 44693586 | O63: 5.16%
A64: 54 | B64: Pharma | C64: GLENMARK | D64: 293.80 | E64: 294.80 | F64: 286.60 | G64: 279.40 | H64: 271.20 | I64: 302.00 | J64: 310.20 | K64: 317.40 | L64: 303 | M64: 287.6 | N64: 6289200 | O64: -0.85%
A65: 55 | B65: Infrastructure | C65: GMRINFRA | D65: 22.45 | E65: 22.30 | F65: 22.00 | G65: 21.55 | H65: 21.25 | I65: 22.75 | J65: 23.05 | K65: 23.50 | L65: 22.6 | M65: 21.85 | N65: 122580000 | O65: 0.37%
A66: 56 | B66: FMCG | C66: GODREJCP | D66: 752.55 | E66: 753.82 | F66: 742.13 | G66: 731.72 | H66: 720.03 | I66: 764.23 | J66: 775.92 | K66: 786.33 | L66: 765.5 | M66: 743.4 | N66: 4064800 | O66: -5.91%
A67: 57 | B67: Cement | C67: GRASIM | D67: 780.65 | E67: 779.60 | F67: 775.35 | G67: 770.05 | H67: 765.80 | I67: 784.90 | J67: 789.15 | K67: 794.45 | L67: 783.85 | M67: 774.3 | N67: 19741500 | O67: -0.58%
A68: 58 | B68: Others | C68: HAVELLS | D68: 713.80 | E68: 708.25 | F68: 699.55 | G68: 685.30 | H68: 676.60 | I68: 722.50 | J68: 731.20 | K68: 745.45 | L68: 716.95 | M68: 694 | N68: 5118000 | O68: 2.90%
A69: 59 | B69: Technology | C69: HCLTECH | D69: 1152.25 | E69: 1149.92 | F69: 1142.78 | G69: 1133.32 | H69: 1126.18 | I69: 1159.38 | J69: 1166.52 | K69: 1175.98 | L69: 1157.05 | M69: 1140.45 | N69: 11057200 | O69: 0.36%
A70: 60 | B70: Finance | C70: HDFC | D70: 2254.10 | E70: 2257.12 | F70: 2240.98 | G70: 2227.87 | H70: 2211.73 | I70: 2270.23 | J70: 2286.37 | K70: 2299.48 | L70: 2273.25 | M70: 2244 | N70: 33751500 | O70: -0.23%
A71: 61 | B71: Banking | C71: HDFCBANK | D71: 1264.25 | E71: 1262.12 | F71: 1253.23 | G71: 1242.22 | H71: 1233.33 | I71: 1273.13 | J71: 1282.02 | K71: 1293.03 | L71: 1271 | M71: 1251.1 | N71: 26375000 | O71: -1.44%
A72: 62 | B72: Automobile | C72: HEROMOTOCO | D72: 2669.35 | E72: 2669.68 | F72: 2650.67 | G72: 2631.98 | H72: 2612.97 | I72: 2688.37 | J72: 2707.38 | K72: 2726.07 | L72: 2688.7 | M72: 2651 | N72: 3330400 | O72: 2.44%
A73: 63 | B73: Technology | C73: HEXAWARE | D73: 347.05 | E73: 345.00 | F73: 342.05 | G73: 337.05 | H73: 334.10 | I73: 350.00 | J73: 352.95 | K73: 357.95 | L73: 347.95 | M73: 340 | N73: 1651500 | O73: -4.18%
A74: 64 | B74: Metals | C74: HINDALCO | D74: 205.85 | E74: 204.33 | F74: 201.12 | G74: 196.38 | H74: 193.17 | I74: 209.07 | J74: 212.28 | K74: 217.02 | L74: 207.55 | M74: 199.6 | N74: 28651000 | O74: -2.54%
A75: 65 | B75: Oil_Gas | C75: HINDPETRO | D75: 311.20 | E75: 312.08 | F75: 306.22 | G75: 301.23 | H75: 295.37 | I75: 317.07 | J75: 322.93 | K75: 327.92 | L75: 317.95 | M75: 307.1 | N75: 19404000 | O75: -0.23%
A76: 66 | B76: FMCG | C76: HINDUNILVR | D76: 2146.05 | E76: 2157.10 | F76: 2125.00 | G76: 2103.95 | H76: 2071.85 | I76: 2178.15 | J76: 2210.25 | K76: 2231.30 | L76: 2189.2 | M76: 2136.05 | N76: 8739900 | O76: -2.81%
A77: 67 | B77: Finance | C77: IBULHSGFIN | D77: 228.95 | E77: 233.12 | F77: 216.83 | G77: 204.72 | H77: 188.43 | I77: 245.23 | J77: 261.52 | K77: 273.63 | L77: 249.4 | M77: 221 | N77: 25034800 | O77: -2.03%
A78: 68 | B78: Banking | C78: ICICIBANK | D78: 480.35 | E78: 479.97 | F78: 476.68 | G78: 473.02 | H78: 469.73 | I78: 483.63 | J78: 486.92 | K78: 490.58 | L78: 483.25 | M78: 476.3 | N78: 79439250 | O78: 4.27%
A79: 69 | B79: Finance | C79: ICICIPRULI | D79: 517.05 | E79: 517.15 | F79: 512.05 | G79: 507.05 | H79: 501.95 | I79: 522.15 | J79: 527.25 | K79: 532.25 | L79: 522.25 | M79: 512.15 | N79: 6456000 | O79: 1.94%
A80: 70 | B80: Telecom | C80: IDEA | D80: 3.95 | E80: 4.00 | F80: 3.80 | G80: 3.65 | H80: 3.45 | I80: 4.15 | J80: 4.35 | K80: 4.50 | L80: 4.2 | M80: 3.85 | N80: 543914000 | O80: 0.52%
A81: 71 | B81: Banking | C81: IDFCFIRSTB | D81: 42.30 | E81: 42.30 | F81: 41.90 | G81: 41.50 | H81: 41.10 | I81: 42.70 | J81: 43.10 | K81: 43.50 | L81: 42.7 | M81: 41.9 | N81: 230688000 | O81: 0.41%
A82: 72 | B82: Oil_Gas | C82: IGL | D82: 394.80 | E82: 394.27 | F82: 391.73 | G82: 388.67 | H82: 386.13 | I82: 397.33 | J82: 399.87 | K82: 402.93 | L82: 396.8 | M82: 391.2 | N82: 3162500 | O82: 8.90%
A83: 73 | B83: Others | C83: INDIGO | D83: 1496.65 | E83: 1486.37 | F83: 1468.83 | G83: 1441.02 | H83: 1423.48 | I83: 1514.18 | J83: 1531.72 | K83: 1559.53 | L83: 1503.9 | M83: 1458.55 | N83: 3308100 | O83: 1.22%
A84: 74 | B84: Banking | C84: INDUSINDBK | D84: 1382.00 | E84: 1378.17 | F84: 1358.03 | G84: 1334.07 | H84: 1313.93 | I84: 1402.13 | J84: 1422.27 | K84: 1446.23 | L84: 1398.3 | M84: 1354.2 | N84: 11390000 | O84: -4.64%
A85: 75 | B85: Telecom | C85: INFRATEL | D85: 225.30 | E85: 223.30 | F85: 220.00 | G85: 214.70 | H85: 211.40 | I85: 228.60 | J85: 231.90 | K85: 237.20 | L85: 226.6 | M85: 218 | N85: 11166000 | O85: 6.83%
A86: 76 | B86: Technology | C86: INFY | D86: 720.75 | E86: 719.58 | F86: 714.27 | G86: 707.78 | H86: 702.47 | I86: 726.07 | J86: 731.38 | K86: 737.87 | L86: 724.9 | M86: 713.1 | N86: 57874800 | O86: -1.24%
A87: 77 | B87: Oil_Gas | C87: IOC | D87: 136.35 | E87: 136.15 | F87: 135.40 | G87: 134.45 | H87: 133.70 | I87: 137.10 | J87: 137.85 | K87: 138.80 | L87: 136.9 | M87: 135.2 | N87: 31482000 | O87: -1.70%
A88: 78 | B88: FMCG | C88: ITC | D88: 266.10 | E88: 264.95 | F88: 263.40 | G88: 260.70 | H88: 259.15 | I88: 267.65 | J88: 269.20 | K88: 271.90 | L88: 266.5 | M88: 262.25 | N88: 96532800 | O88: -1.03%
A89: 79 | B89: Metals | C89: JINDALSTEL | D89: 149.15 | E89: 145.25 | F89: 139.75 | G89: 130.35 | H89: 124.85 | I89: 154.65 | J89: 160.15 | K89: 169.55 | L89: 150.75 | M89: 135.85 | N89: 41593600 | O89: 12.35%
A90: 80 | B90: Metals | C90: JSWSTEEL | D90: 253.70 | E90: 251.12 | F90: 246.33 | G90: 238.97 | H90: 234.18 | I90: 258.48 | J90: 263.27 | K90: 270.63 | L90: 255.9 | M90: 243.75 | N90: 52574300 | O90: 4.20%
A91: 81 | B91: Others | C91: JUBLFOOD | D91: 1615.90 | E91: 1598.47 | F91: 1574.93 | G91: 1533.97 | H91: 1510.43 | I91: 1639.43 | J91: 1662.97 | K91: 1703.93 | L91: 1622 | M91: 1557.5 | N91: 2503000 | O91: 14.66%
A92: 82 | B92: Others | C92: JUSTDIAL | D92: 571.90 | E92: 572.48 | F92: 564.97 | G92: 558.03 | H92: 550.52 | I92: 579.42 | J92: 586.93 | K92: 593.87 | L92: 580 | M92: 565.55 | N92: 3682000 | O92: -1.09%
A93: 83 | B93: Banking | C93: KOTAKBANK | D93: 1585.15 | E93: 1578.30 | F93: 1568.60 | G93: 1552.05 | H93: 1542.35 | I93: 1594.85 | J93: 1604.55 | K93: 1621.10 | L93: 1588 | M93: 1561.75 | N93: 8336000 | O93: -1.04%
A94: 84 | B94: Finance | C94: L&TFH | D94: 99.50 | E94: 100.83 | F94: 97.07 | G94: 94.63 | H94: 90.87 | I94: 103.27 | J94: 107.03 | K94: 109.47 | L94: 104.6 | M94: 98.4 | N94: 34410300 | O94: 2.34%
A95: 85 | B95: Finance | C95: LICHSGFIN | D95: 438.55 | E95: 442.75 | F95: 431.00 | G95: 423.45 | H95: 411.70 | I95: 450.30 | J95: 462.05 | K95: 469.60 | L95: 454.5 | M95: 435.2 | N95: 9710500 | O95: 2.63%
A96: 86 | B96: Capital_Goods | C96: LT | D96: 1441.35 | E96: 1445.23 | F96: 1429.22 | G96: 1417.08 | H96: 1401.07 | I96: 1457.37 | J96: 1473.38 | K96: 1485.52 | L96: 1461.25 | M96: 1433.1 | N96: 12003375 | O96: 2.12%
A97: 87 | B97: Pharma | C97: LUPIN | D97: 740.85 | E97: 745.62 | F97: 733.23 | G97: 725.62 | H97: 713.23 | I97: 753.23 | J97: 765.62 | K97: 773.23 | L97: 758 | M97: 738 | N97: 8387400 | O97: 10.16%
A98: 88 | B98: Automobile | C98: M&M | D98: 580.85 | E98: 579.33 | F98: 574.32 | G98: 567.78 | H98: 562.77 | I98: 585.87 | J98: 590.88 | K98: 597.42 | L98: 584.35 | M98: 572.8 | N98: 20290000 | O98: -0.59%
A99: 89 | B99: Finance | C99: M&MFIN | D99: 341.70 | E99: 346.72 | F99: 335.58 | G99: 329.47 | H99: 318.33 | I99: 352.83 | J99: 363.97 | K99: 370.08 | L99: 357.85 | M99: 340.6 | N99: 12513750 | O99: 0.90%
A100: 90 | B100: Finance | C100: MANAPPURAM | D100: 167.05 | E100: 168.53 | F100: 164.22 | G100: 161.38 | H100: 157.07 | I100: 171.37 | J100: 175.68 | K100: 178.52 | L100: 172.85 | M100: 165.7 | N100: 15264000 | O100: 8.16%
A101: 91 | B101: FMCG | C101: MARICO | D101: 369.95 | E101: 369.12 | F101: 367.53 | G101: 365.12 | H101: 363.53 | I101: 371.53 | J101: 373.12 | K101: 375.53 | L101: 370.7 | M101: 366.7 | N101: 11402300 | O101: -0.33%
A102: 92 | B102: Automobile | C102: MARUTI | D102: 7319.55 | E102: 7317.17 | F102: 7263.38 | G102: 7207.22 | H102: 7153.43 | I102: 7373.33 | J102: 7427.12 | K102: 7483.28 | L102: 7370.95 | M102: 7261 | N102: 2634525 | O102: 0.47%
A103: 93 | B103: FMCG | C103: MCDOWELL-N | D103: 651.20 | E103: 647.05 | F103: 641.45 | G103: 631.70 | H103: 626.10 | I103: 656.80 | J103: 662.40 | K103: 672.15 | L103: 652.65 | M103: 637.3 | N103: 10537500 | O103: 0.60%
A104: 94 | B104: Finance | C104: MFSL | D104: 480.30 | E104: 462.55 | F104: 434.30 | G104: 388.30 | H104: 360.05 | I104: 508.55 | J104: 536.80 | K104: 582.80 | L104: 490.8 | M104: 416.55 | N104: 4422100 | O104: 56.61%
A105: 95 | B105: Oil_Gas | C105: MGL | D105: 960.35 | E105: 967.37 | F105: 950.68 | G105: 941.02 | H105: 924.33 | I105: 977.03 | J105: 993.72 | K105: 1003.38 | L105: 984.05 | M105: 957.7 | N105: 1572000 | O105: 6.24%
A106: 96 | B106: Technology | C106: MINDTREE | D106: 709.25 | E106: 707.17 | F106: 703.08 | G106: 696.92 | H106: 692.83 | I106: 713.33 | J106: 717.42 | K106: 723.58 | L106: 711.25 | M106: 701 | N106: 1443600 | O106: -0.62%
A107: 97 | B107: Automobile | C107: MOTHERSUMI | D107: 133.90 | E107: 132.55 | F107: 130.85 | G107: 127.80 | H107: 126.10 | I107: 135.60 | J107: 137.30 | K107: 140.35 | L107: 134.25 | M107: 129.5 | N107: 28127700 | O107: 0.84%
A108: 98 | B108: Automobile | C108: MRF | D108: 63628.05 | E108: 63592.68 | F108: 63285.37 | G108: 62942.68 | H108: 62635.37 | I108: 63935.37 | J108: 64242.68 | K108: 64585.37 | L108: 63900 | M108: 63250 | N108: 19430 | O108: 2.37%
A109: 99 | B109: Finance | C109: MUTHOOTFIN | D109: 688.10 | E109: 692.10 | F109: 682.35 | G109: 676.60 | H109: 666.85 | I109: 697.85 | J109: 707.60 | K109: 713.35 | L109: 701.85 | M109: 686.35 | N109: 2620500 | O109: 5.88%
A110: 100 | B110: Metals | C110: NATIONALUM | D110: 47.15 | E110: 46.73 | F110: 46.17 | G110: 45.18 | H110: 44.62 | I110: 47.72 | J110: 48.28 | K110: 49.27 | L110: 47.3 | M110: 45.75 | N110: 46490400 | O110: -0.37%
A111: 101 | B111: Infrastructure | C111: NBCC | D111: 41.65 | E111: 42.77 | F111: 40.13 | G111: 38.62 | H111: 35.98 | I111: 44.28 | J111: 46.92 | K111: 48.43 | L111: 45.4 | M111: 41.25 | N111: 35236000 | O111: 2.64%
A112: 102 | B112: Infrastructure | C112: NCC | D112: 55.65 | E112: 56.00 | F112: 54.65 | G112: 53.65 | H112: 52.30 | I112: 57.00 | J112: 58.35 | K112: 59.35 | L112: 57.35 | M112: 55 | N112: 44503000 | O112: 0.60%
A113: 103 | B113: FMCG | C113: NESTLEIND | D113: 14749.00 | E113: 14722.32 | F113: 14640.68 | G113: 14532.37 | H113: 14450.73 | I113: 14830.63 | J113: 14912.27 | K113: 15020.58 | L113: 14803.95 | M113: 14614 | N113: 470300 | O113: -0.01%
A114: 104 | B114: Technology | C114: NIITTECH | D114: 1581.00 | E114: 1573.60 | F114: 1562.70 | G114: 1544.40 | H114: 1533.50 | I114: 1591.90 | J114: 1602.80 | K114: 1621.10 | L114: 1584.5 | M114: 1555.3 | N114: 541875 | O114: 0.42%
A115: 105 | B115: Metals | C115: NMDC | D115: 108.00 | E115: 109.40 | F115: 105.00 | G115: 102.00 | H115: 97.60 | I115: 112.40 | J115: 116.80 | K115: 119.80 | L115: 113.8 | M115: 106.4 | N115: 19626000 | O115: 3.35%
A116: 106 | B116: Power | C116: NTPC | D116: 119.75 | E116: 120.08 | F116: 119.17 | G116: 118.58 | H116: 117.67 | I116: 120.67 | J116: 121.58 | K116: 122.17 | L116: 121 | M116: 119.5 | N116: 49003200 | O116: 2.44%
A117: 107 | B117: Oil_Gas | C117: OIL | D117: 167.80 | E117: 168.23 | F117: 166.22 | G117: 164.63 | H117: 162.62 | I117: 169.82 | J117: 171.83 | K117: 173.42 | L117: 170.25 | M117: 166.65 | N117: 9058335 | O117: -0.19%
A118: 108 | B118: Oil_Gas | C118: ONGC | D118: 142.20 | E118: 141.92 | F118: 139.68 | G118: 137.17 | H118: 134.93 | I118: 144.43 | J118: 146.67 | K118: 149.18 | L118: 144.15 | M118: 139.4 | N118: 19629350 | O118: -4.19%
A119: 109 | B119: Textile | C119: PAGEIND | D119: 23903.20 | E119: 23915.07 | F119: 23648.13 | G119: 23393.07 | H119: 23126.13 | I119: 24170.13 | J119: 24437.07 | K119: 24692.13 | L119: 24182 | M119: 23660 | N119: 172825 | O119: -0.90%
A120: 110 | B120: Pharma | C120: PEL | D120: 1790.85 | E120: 1814.43 | F120: 1756.42 | G120: 1721.98 | H120: 1663.97 | I120: 1848.87 | J120: 1906.88 | K120: 1941.32 | L120: 1872.45 | M120: 1780 | N120: 4781868 | O120: -3.74%
A121: 111 | B121: Oil_Gas | C121: PETRONET | D121: 285.75 | E121: 284.85 | F121: 283.20 | G121: 280.65 | H121: 279.00 | I121: 287.40 | J121: 289.05 | K121: 291.60 | L121: 286.5 | M121: 282.3 | N121: 18903000 | O121: -1.70%
A122: 112 | B122: Finance | C122: PFC | D122: 113.40 | E122: 112.97 | F122: 110.98 | G122: 108.57 | H122: 106.58 | I122: 115.38 | J122: 117.37 | K122: 119.78 | L122: 114.95 | M122: 110.55 | N122: 31111600 | O122: 3.19%
A123: 113 | B123: FMCG | C123: PIDILITIND | D123: 1383.50 | E123: 1381.25 | F123: 1369.95 | G123: 1356.40 | H123: 1345.10 | I123: 1394.80 | J123: 1406.10 | K123: 1419.65 | L123: 1392.55 | M123: 1367.7 | N123: 3723500 | O123: 1.71%
A124: 114 | B124: Banking | C124: PNB | D124: 62.00 | E124: 62.87 | F124: 60.93 | G124: 59.87 | H124: 57.93 | I124: 63.93 | J124: 65.87 | K124: 66.93 | L124: 64.8 | M124: 61.8 | N124: 107931600 | O124: 4.47%
A125: 115 | B125: Power | C125: POWERGRID | D125: 195.05 | E125: 195.75 | F125: 193.70 | G125: 192.35 | H125: 190.30 | I125: 197.10 | J125: 199.15 | K125: 200.50 | L125: 197.8 | M125: 194.4 | N125: 31500000 | O125: 2.93%
A126: 116 | B126: Media | C126: PVR | D126: 1764.00 | E126: 1764.15 | F126: 1752.10 | G126: 1740.20 | H126: 1728.15 | I126: 1776.05 | J126: 1788.10 | K126: 1800.00 | L126: 1776.2 | M126: 1752.25 | N126: 1328400 | O126: -1.37%
A127: 117 | B127: Cement | C127: RAMCOCEM | D127: 805.55 | E127: 808.87 | F127: 800.73 | G127: 795.92 | H127: 787.78 | I127: 813.68 | J127: 821.82 | K127: 826.63 | L127: 817 | M127: 804.05 | N127: 1121600 | O127: -2.57%
A128: 118 | B128: Banking | C128: RBLBANK | D128: 308.80 | E128: 311.52 | F128: 303.23 | G128: 297.67 | H128: 289.38 | I128: 317.08 | J128: 325.37 | K128: 330.93 | L128: 319.8 | M128: 305.95 | N128: 10612800 | O128: 7.42%
A129: 119 | B129: Power | C129: RECLTD | D129: 143.25 | E129: 142.12 | F129: 139.48 | G129: 135.72 | H129: 133.08 | I129: 145.88 | J129: 148.52 | K129: 152.28 | L129: 144.75 | M129: 138.35 | N129: 20628000 | O129: 4.09%
A130: 120 | B130: Oil_Gas | C130: RELIANCE | D130: 1463.35 | E130: 1455.92 | F130: 1444.33 | G130: 1425.32 | H130: 1413.73 | I130: 1474.93 | J130: 1486.52 | K130: 1505.53 | L130: 1467.5 | M130: 1436.9 | N130: 49733000 | O130: -0.53%
A131: 121 | B131: Metals | C131: SAIL | D131: 40.05 | E131: 39.82 | F131: 38.73 | G131: 37.42 | H131: 36.33 | I131: 41.13 | J131: 42.22 | K131: 43.53 | L131: 40.9 | M131: 38.5 | N131: 75949900 | O131: 3.03%
A132: 122 | B132: Banking | C132: SBIN | D132: 318.70 | E132: 320.02 | F132: 315.88 | G132: 313.07 | H132: 308.93 | I132: 322.83 | J132: 326.97 | K132: 329.78 | L132: 324.15 | M132: 317.2 | N132: 84621000 | O132: -0.43%
A133: 123 | B133: Cement | C133: SHREECEM | D133: 20136.75 | E133: 20116.20 | F133: 19995.40 | G133: 19854.05 | H133: 19733.25 | I133: 20257.55 | J133: 20378.35 | K133: 20519.70 | L133: 20237 | M133: 19974.85 | N133: 156200 | O133: 0.84%
A134: 124 | B134: Capital_Goods | C134: SIEMENS | D134: 1662.10 | E134: 1671.03 | F134: 1647.07 | G134: 1632.03 | H134: 1608.07 | I134: 1686.07 | J134: 1710.03 | K134: 1725.07 | L134: 1695 | M134: 1656 | N134: 1332650 | O134: -0.21%
A135: 125 | B135: Textile | C135: SRF | D135: 3158.05 | E135: 3125.98 | F135: 3082.07 | G135: 3006.08 | H135: 2962.17 | I135: 3201.97 | J135: 3245.88 | K135: 3321.87 | L135: 3169.9 | M135: 3050 | N135: 927000 | O135: 2.26%
A136: 126 | B136: Finance | C136: SRTRANSFIN | D136: 1153.55 | E136: 1160.28 | F136: 1136.57 | G136: 1119.58 | H136: 1095.87 | I136: 1177.27 | J136: 1200.98 | K136: 1217.97 | L136: 1184 | M136: 1143.3 | N136: 4072800 | O136: -0.43%
A137: 127 | B137: Pharma | C137: SUNPHARMA | D137: 442.65 | E137: 437.58 | F137: 429.17 | G137: 415.68 | H137: 407.27 | I137: 451.07 | J137: 459.48 | K137: 472.97 | L137: 446 | M137: 424.1 | N137: 62173950 | O137: 1.56%
A138: 128 | B138: Media | C138: SUNTV | D138: 527.40 | E138: 523.45 | F138: 518.20 | G138: 509.00 | H138: 503.75 | I138: 532.65 | J138: 537.90 | K138: 547.10 | L138: 528.7 | M138: 514.25 | N138: 2915000 | O138: 3.55%
A139: 129 | B139: Fertilisers | C139: TATACHEM | D139: 645.65 | E139: 645.98 | F139: 643.17 | G139: 640.68 | H139: 637.87 | I139: 648.47 | J139: 651.28 | K139: 653.77 | L139: 648.8 | M139: 643.5 | N139: 2598300 | O139: -4.05%
A140: 130 | B140: Technology | C140: TATAELXSI | D140: 818.65 | E140: 815.75 | F140: 805.55 | G140: 792.45 | H140: 782.25 | I140: 828.85 | J140: 839.05 | K140: 852.15 | L140: 825.95 | M140: 802.65 | N140: 1070400 | O140: -0.11%
A141: 131 | B141: FMCG | C141: TATAGLOBAL | D141: 302.00 | E141: 300.90 | F141: 298.65 | G141: 295.30 | H141: 293.05 | I141: 304.25 | J141: 306.50 | K141: 309.85 | L141: 303.15 | M141: 297.55 | N141: 13329900 | O141: 0.04%
A142: 132 | B142: Automobile | C142: TATAMOTORS | D142: 172.30 | E142: 171.85 | F142: 168.70 | G142: 165.10 | H142: 161.95 | I142: 175.45 | J142: 178.60 | K142: 182.20 | L142: 175 | M142: 168.25 | N142: 57434400 | O142: 0.16%
A143: 133 | B143: Automobile | C143: TATAMTRDVR | D143: 79.35 | E143: 79.17 | F143: 77.58 | G143: 75.82 | H143: 74.23 | I143: 80.93 | J143: 82.52 | K143: 84.28 | L143: 80.75 | M143: 77.4 | N143: 35118000 | O143: 0.14%
A144: 134 | B144: Power | C144: TATAPOWER | D144: 59.00 | E144: 58.75 | F144: 57.85 | G144: 56.70 | H144: 55.80 | I144: 59.90 | J144: 60.80 | K144: 61.95 | L144: 59.65 | M144: 57.6 | N144: 61344000 | O144: 5.49%
A145: 135 | B145: Metals | C145: TATASTEEL | D145: 404.75 | E145: 401.63 | F145: 392.82 | G145: 380.88 | H145: 372.07 | I145: 413.57 | J145: 422.38 | K145: 434.32 | L145: 410.45 | M145: 389.7 | N145: 25306752 | O145: 7.96%
A146: 136 | B146: Technology | C146: TCS | D146: 2194.95 | E146: 2196.60 | F146: 2183.35 | G146: 2171.75 | H146: 2158.50 | I146: 2208.20 | J146: 2221.45 | K146: 2233.05 | L146: 2209.85 | M146: 2185 | N146: 18424250 | O146: 1.07%
A147: 137 | B147: Technology | C147: TECHM | D147: 773.30 | E147: 771.70 | F147: 768.70 | G147: 764.10 | H147: 761.10 | I147: 776.30 | J147: 779.30 | K147: 783.90 | L147: 774.7 | M147: 767.1 | N147: 16594800 | O147: -2.06%
A148: 138 | B148: FMCG | C148: TITAN | D148: 1169.90 | E148: 1170.30 | F148: 1159.35 | G148: 1148.80 | H148: 1137.85 | I148: 1180.85 | J148: 1191.80 | K148: 1202.35 | L148: 1181.25 | M148: 1159.75 | N148: 13075500 | O148: -0.97%
A149: 139 | B149: Pharma | C149: TORNTPHARM | D149: 1826.30 | E149: 1821.63 | F149: 1810.27 | G149: 1794.23 | H149: 1782.87 | I149: 1837.67 | J149: 1849.03 | K149: 1865.07 | L149: 1833 | M149: 1805.6 | N149: 322500 | O149: 3.20%
A150: 140 | B150: Power | C150: TORNTPOWER | D150: 297.25 | E150: 294.95 | F150: 291.90 | G150: 286.55 | H150: 283.50 | I150: 300.30 | J150: 303.35 | K150: 308.70 | L150: 298 | M150: 289.6 | N150: 4350000 | O150: 0.49%
A151: 141 | B151: Automobile | C151: TVSMOTOR | D151: 444.65 | E151: 447.25 | F151: 440.40 | G151: 436.15 | H151: 429.30 | I151: 451.50 | J151: 458.35 | K151: 462.60 | L151: 454.1 | M151: 443 | N151: 8581150 | O151: -1.56%
A152: 142 | B152: FMCG | C152: UBL | D152: 1232.60 | E152: 1239.32 | F152: 1212.68 | G152: 1192.77 | H152: 1166.13 | I152: 1259.23 | J152: 1285.87 | K152: 1305.78 | L152: 1265.95 | M152: 1219.4 | N152: 2424100 | O152: 6.26%
A153: 143 | B153: Finance | C153: UJJIVAN | D153: 282.25 | E153: 281.37 | F153: 278.33 | G153: 274.42 | H153: 271.38 | I153: 285.28 | J153: 288.32 | K153: 292.23 | L153: 284.4 | M153: 277.45 | N153: 8776000 | O153: 0.72%
A154: 144 | B154: Cement | C154: ULTRACEMCO | D154: 4193.55 | E154: 4203.35 | F154: 4163.75 | G154: 4133.95 | H154: 4094.35 | I154: 4233.15 | J154: 4272.75 | K154: 4302.55 | L154: 4242.95 | M154: 4173.55 | N154: 2523200 | O154: -1.54%
A155: 145 | B155: Banking | C155: UNIONBANK | D155: 56.00 | E155: 56.58 | F155: 55.02 | G155: 54.03 | H155: 52.47 | I155: 57.57 | J155: 59.13 | K155: 60.12 | L155: 58.15 | M155: 55.6 | N155: 30751000 | O155: 1.93%
A156: 146 | B156: Fertilisers | C156: UPL | D156: 579.50 | E156: 583.87 | F156: 554.63 | G156: 529.77 | H156: 500.53 | I156: 608.73 | J156: 637.97 | K156: 662.83 | L156: 613.1 | M156: 559 | N156: 15105600 | O156: 5.15%
A157: 147 | B157: Metals | C157: VEDL | D157: 161.40 | E157: 160.22 | F157: 156.78 | G157: 152.17 | H157: 148.73 | I157: 164.83 | J157: 168.27 | K157: 172.88 | L157: 163.65 | M157: 155.6 | N157: 55822000 | O157: 0.43%
A158: 148 | B158: Capital_Goods | C158: VOLTAS | D158: 669.30 | E158: 671.72 | F158: 658.53 | G158: 647.77 | H158: 634.58 | I158: 682.48 | J158: 695.67 | K158: 706.43 | L158: 684.9 | M158: 660.95 | N158: 2983000 | O158: 11.10%
A159: 149 | B159: Technology | C159: WIPRO | D159: 259.90 | E159: 259.17 | F159: 257.73 | G159: 255.57 | H159: 254.13 | I159: 261.33 | J159: 262.77 | K159: 264.93 | L159: 260.6 | M159: 257 | N159: 25078400 | O159: -0.23%
A160: 150 | B160: Banking | C160: YESBANK | D160: 65.85 | E160: 66.87 | F160: 64.28 | G160: 62.72 | H160: 60.13 | I160: 68.43 | J160: 71.02 | K160: 72.58 | L160: 69.45 | M160: 65.3 | N160: 167483800 | O160: 4.90%
A161: 151 | B161: Media | C161: ZEEL | D161: 286.25 | E161: 285.97 | F161: 281.88 | G161: 277.52 | H161: 273.43 | I161: 290.33 | J161: 294.42 | K161: 298.78 | L161: 290.05 | M161: 281.6 | N161: 30335400 | O161: -0.86%
A178: Pivot Point: This is trigger point for intra day buy/sell based on the price range of the previous day
A179: As per the tool,the trader should take BUY position just above Pivot and keep the stop loss of pivot point and the first target would be Resistance 1(R1)
A180: If R1 is crossed then R2 becomes the next target with stop loss of at R1
A181: Similarly if price goes below pivot point then the trader should sell and keep a stop loss of pivot point and the first target would be S1
A182: If S1 is crossed then S2 becomes the next target with stop loss of at S1
A184: Disclaimer:
A185: This document has been prepared by the Retail Research Desk of Asit C Mehta
A186: Investment Intermediates Ltd. and is meant for use of the recipient only
A187: and is not for circulation. This document is not to be reported or
A188: copied or made available to others. It should not be considered to be
A189: taken as an offer to sell or a solicitation to buy any security. The
A190: information contained herein is from sources believed reliable. We do
A191: not represent that it is accurate or complete and it should not be
A192: relied upon as such. We may from time to time have positions in and buy
A193: and sell securities referred to herein

Sheet Cash Intra
M5: Back to Main Page
A6: FOR INTRA DAY TRADING | K6: =Main!B10 -> 2019-11-08
A8: Sr.no | B8: Scrip | C8: CLOSE RATE | D8: Pivot Point | E8: Supports | H8: Resistances
C9: Point | E9: S1 | F9: S2 | G9: S3 | H9: R1 | I9: R2 | J9: R3 | K9: HIGH | L9: LOW | M9: Total Trade Quanity in Lakhs
A10: 1 | B10: Nifty 50 | C10: 12012.05 | D10: 11993.43 | E10: 11965.47 | F10: 11918.88 | G10: 11890.92 | H10: 12040.02 | I10: 12067.98 | J10: 12114.57 | K10: 12021.4 | L10: 11946.85
A11: 2 | B11: Nifty Bank | C11: 30633.15 | D11: 30639.02 | E11: 30456.68 | F11: 30280.22 | G11: 30097.88 | H11: 30815.48 | I11: 30997.82 | J11: 31174.28 | K11: 30821.35 | L11: 30462.55
A12: 3 | B12: Nifty CPSE | C12: 2023.2 | D12: 2026.85 | E12: 2011.25 | F12: 1999.30 | G12: 1983.70 | H12: 2038.80 | I12: 2054.40 | J12: 2066.35 | K12: 2042.45 | L12: 2014.9
A13: 4 | B13: Nifty Infra | C13: 3286.85 | D13: 3287.58 | E13: 3273.27 | F13: 3259.68 | G13: 3245.37 | H13: 3301.17 | I13: 3315.48 | J13: 3329.07 | K13: 3301.9 | L13: 3274
A14: 5 | B14: Nifty IT | C14: 15624.4 | D14: 15598.75 | E14: 15557.80 | F14: 15491.20 | G14: 15450.25 | H14: 15665.35 | I14: 15706.30 | J14: 15772.90 | K14: 15639.7 | L14: 15532.15
A15: 6 | B15: Nifty PSE | C15: 3374.8 | D15: 3386.82 | E15: 3356.18 | F15: 3337.57 | G15: 3306.93 | H15: 3405.43 | I15: 3436.07 | J15: 3454.68 | K15: 3417.45 | L15: 3368.2
A16: 7 | B16: Nifty Midcap 50 | C16: 4630.6 | D16: 4623.57 | E16: 4611.83 | F16: 4593.07 | G16: 4581.33 | H16: 4642.33 | I16: 4654.07 | J16: 4672.83 | K16: 4635.3 | L16: 4604.8
A17: 8 | B17: ACC | C17: 1527.15 | D17: 1531.10 | E17: 1516.05 | F17: 1504.95 | G17: 1489.90 | H17: 1542.20 | I17: 1557.25 | J17: 1568.35 | K17: 1546.15 | L17: 1520 | M17: 8.24638
A18: 9 | B18: AUBANK | C18: 685.1 | D18: 681.20 | E18: 671.40 | F18: 657.70 | G18: 647.90 | H18: 694.90 | I18: 704.70 | J18: 718.40 | K18: 691 | L18: 667.5 | M18: 3.58799
A19: 10 | B19: ADANIPORTS | C19: 390.45 | D19: 390.17 | E19: 388.33 | F19: 386.22 | G19: 384.38 | H19: 392.28 | I19: 394.12 | J19: 396.23 | K19: 392 | L19: 388.05 | M19: 16.15593
A20: 11 | B20: ADANIPOWER | C20: 70.55 | D20: 70.77 | E20: 70.03 | F20: 69.52 | G20: 68.78 | H20: 71.28 | I20: 72.02 | J20: 72.53 | K20: 71.5 | L20: 70.25 | M20: 55.64428
A21: 12 | B21: ABCAPITAL | C21: 84.7 | D21: 84.60 | E21: 83.70 | F21: 82.70 | G21: 81.80 | H21: 85.60 | I21: 86.50 | J21: 87.50 | K21: 85.5 | L21: 83.6 | M21: 45.86782
A22: 13 | B22: ABFRL | C22: 202.5 | D22: 201.88 | E22: 197.17 | F22: 191.83 | G22: 187.12 | H22: 207.22 | I22: 211.93 | J22: 217.27 | K22: 206.6 | L22: 196.55 | M22: 7.22566
A23: 14 | B23: AJANTPHARM | C23: 991.3 | D23: 998.37 | E23: 977.93 | F23: 964.57 | G23: 944.13 | H23: 1011.73 | I23: 1032.17 | J23: 1045.53 | K23: 1018.8 | L23: 985 | M23: 0.98143
A24: 15 | B24: ALKEM | C24: 2006.95 | D24: 2023.00 | E24: 1976.00 | F24: 1945.05 | G24: 1898.05 | H24: 2053.95 | I24: 2100.95 | J24: 2131.90 | K24: 2070 | L24: 1992.05 | M24: 1.27514
A25: 16 | B25: ALBK | C25: 27 | D25: 26.98 | E25: 26.82 | F25: 26.63 | G25: 26.47 | H25: 27.17 | I25: 27.33 | J25: 27.52 | K25: 27.15 | L25: 26.8 | M25: 5.17167
A26: 17 | B26: AMARAJABAT | C26: 662.5 | D26: 663.02 | E26: 658.13 | F26: 653.77 | G26: 648.88 | H26: 667.38 | I26: 672.27 | J26: 676.63 | K26: 667.9 | L26: 658.65 | M26: 2.53184
A27: 18 | B27: AMBUJACEM | C27: 203.2 | D27: 203.32 | E27: 201.63 | F27: 200.07 | G27: 198.38 | H27: 204.88 | I27: 206.57 | J27: 208.13 | K27: 205 | L27: 201.75 | M27: 25.60585
A28: 19 | B28: APOLLOHOSP | C28: 1463.9 | D28: 1451.13 | E28: 1433.27 | F28: 1402.63 | G28: 1384.77 | H28: 1481.77 | I28: 1499.63 | J28: 1530.27 | K28: 1469 | L28: 1420.5 | M28: 9.09619
A29: 20 | B29: APOLLOTYRE | C29: 167 | D29: 167.57 | E29: 165.43 | F29: 163.87 | G29: 161.73 | H29: 169.13 | I29: 171.27 | J29: 172.83 | K29: 169.7 | L29: 166 | M29: 41.78035
A30: 21 | B30: ASHOKLEY | C30: 76.7 | D30: 76.33 | E30: 75.52 | F30: 74.33 | G30: 73.52 | H30: 77.52 | I30: 78.33 | J30: 79.52 | K30: 77.15 | L30: 75.15 | M30: 156.33155
A31: 22 | B31: ASIANPAINT | C31: 1826.95 | D31: 1818.68 | E31: 1806.47 | F31: 1785.98 | G31: 1773.77 | H31: 1839.17 | I31: 1851.38 | J31: 1871.87 | K31: 1830.9 | L31: 1798.2 | M31: 13.80635
A32: 23 | B32: AUROPHARMA | C32: 452 | D32: 449.80 | E32: 444.80 | F32: 437.60 | G32: 432.60 | H32: 457.00 | I32: 462.00 | J32: 469.20 | K32: 454.8 | L32: 442.6 | M32: 39.16537
A33: 24 | B33: DMART | C33: 1987.85 | D33: 1986.28 | E33: 1977.57 | F33: 1967.28 | G33: 1958.57 | H33: 1996.57 | I33: 2005.28 | J33: 2015.57 | K33: 1995 | L33: 1976 | M33: 2.32357
A34: 25 | B34: AXISBANK | C34: 734.75 | D34: 741.08 | E34: 726.17 | F34: 717.58 | G34: 702.67 | H34: 749.67 | I34: 764.58 | J34: 773.17 | K34: 756 | L34: 732.5 | M34: 98.7157
A35: 26 | B35: BAJAJ-AUTO | C35: 3265.85 | D35: 3255.27 | E35: 3233.53 | F35: 3201.22 | G35: 3179.48 | H35: 3287.58 | I35: 3309.32 | J35: 3341.63 | K35: 3277 | L35: 3222.95 | M35: 3.26912
A36: 27 | B36: BAJFINANCE | C36: 4225.85 | D36: 4217.75 | E36: 4196.30 | F36: 4166.75 | G36: 4145.30 | H36: 4247.30 | I36: 4268.75 | J36: 4298.30 | K36: 4239.2 | L36: 4188.2 | M36: 11.41603
A37: 28 | B37: BAJAJFINSV | C37: 8832.9 | D37: 8818.22 | E37: 8776.73 | F37: 8720.57 | G37: 8679.08 | H37: 8874.38 | I37: 8915.87 | J37: 8972.03 | K37: 8859.7 | L37: 8762.05 | M37: 2.13383
A38: 29 | B38: BAJAJHLDNG | C38: 3799.95 | D38: 3792.00 | E38: 3734.00 | F38: 3668.05 | G38: 3610.05 | H38: 3857.95 | I38: 3915.95 | J38: 3981.90 | K38: 3850 | L38: 3726.05 | M38: 0.3908
A39: 30 | B39: BALKRISIND | C39: 865.95 | D39: 867.42 | E39: 858.43 | F39: 850.92 | G39: 841.93 | H39: 874.93 | I39: 883.92 | J39: 891.43 | K39: 876.4 | L39: 859.9 | M39: 3.92317
A40: 31 | B40: BANDHANBNK | C40: 568.6 | D40: 574.57 | E40: 559.43 | F40: 550.27 | G40: 535.13 | H40: 583.73 | I40: 598.87 | J40: 608.03 | K40: 589.7 | L40: 565.4 | M40: 17.94482
A41: 32 | B41: BANKBARODA | C41: 96.2 | D41: 97.50 | E41: 94.35 | F41: 92.50 | G41: 89.35 | H41: 99.35 | I41: 102.50 | J41: 104.35 | K41: 100.65 | L41: 95.65 | M41: 340.05915
A42: 33 | B42: BANKINDIA | C42: 68.75 | D42: 69.15 | E42: 67.65 | F42: 66.55 | G42: 65.05 | H42: 70.25 | I42: 71.75 | J42: 72.85 | K42: 70.65 | L42: 68.05 | M42: 78.72854
A43: 34 | B43: BATAINDIA | C43: 1725.75 | D43: 1716.98 | E43: 1704.07 | F43: 1682.38 | G43: 1669.47 | H43: 1738.67 | I43: 1751.58 | J43: 1773.27 | K43: 1729.9 | L43: 1695.3 | M43: 3.21619
A44: 35 | B44: BERGEPAINT | C44: 506.7 | D44: 503.95 | E44: 498.40 | F44: 490.10 | G44: 484.55 | H44: 512.25 | I44: 517.80 | J44: 526.10 | K44: 509.5 | L44: 495.65 | M44: 33.73835
A45: 36 | B45: BEL | C45: 108.9 | D45: 108.95 | E45: 107.65 | F45: 106.40 | G45: 105.10 | H45: 110.20 | I45: 111.50 | J45: 112.75 | K45: 110.25 | L45: 107.7 | M45: 87.15227
A46: 37 | B46: BHARATFORG | C46: 469.15 | D46: 467.77 | E46: 461.53 | F46: 453.92 | G46: 447.68 | H46: 475.38 | I46: 481.62 | J46: 489.23 | K46: 474 | L46: 460.15 | M46: 11.03108
A47: 38 | B47: BHEL | C47: 55.45 | D47: 55.43 | E47: 54.77 | F47: 54.08 | G47: 53.42 | H47: 56.12 | I47: 56.78 | J47: 57.47 | K47: 56.1 | L47: 54.75 | M47: 137.82432
A48: 39 | B48: BPCL | C48: 513.2 | D48: 516.68 | E48: 506.82 | F48: 500.43 | G48: 490.57 | H48: 523.07 | I48: 532.93 | J48: 539.32 | K48: 526.55 | L48: 510.3 | M48: 41.01853
A49: 40 | B49: BHARTIARTL | C49: 371.75 | D49: 372.10 | E49: 368.70 | F49: 365.65 | G49: 362.25 | H49: 375.15 | I49: 378.55 | J49: 381.60 | K49: 375.5 | L49: 369.05 | M49: 48.16149
A50: 41 | B50: INFRATEL | C50: 229.45 | D50: 227.63 | E50: 224.32 | F50: 219.18 | G50: 215.87 | H50: 232.77 | I50: 236.08 | J50: 241.22 | K50: 230.95 | L50: 222.5 | M50: 107.21436
A51: 42 | B51: BIOCON | C51: 263.95 | D51: 261.62 | E51: 258.38 | F51: 252.82 | G51: 249.58 | H51: 267.18 | I51: 270.42 | J51: 275.98 | K51: 264.85 | L51: 256.05 | M51: 56.64711
A52: 43 | B52: BBTC | C52: 1187 | D52: 1193.65 | E52: 1175.30 | F52: 1163.60 | G52: 1145.25 | H52: 1205.35 | I52: 1223.70 | J52: 1235.40 | K52: 1212 | L52: 1181.95 | M52: 0.89436
A53: 44 | B53: BOSCHLTD | C53: 15259.7 | D53: 15073.53 | E53: 14776.72 | F53: 14293.73 | G53: 13996.92 | H53: 15556.52 | I53: 15853.33 | J53: 16336.32 | K53: 15370.35 | L53: 14590.55 | M53: 0.53604
A54: 45 | B54: BRITANNIA | C54: 3223.8 | D54: 3228.43 | E54: 3200.27 | F54: 3176.73 | G54: 3148.57 | H54: 3251.97 | I54: 3280.13 | J54: 3303.67 | K54: 3256.6 | L54: 3204.9 | M54: 2.88996
A55: 46 | B55: CESC | C55: 776.65 | D55: 777.97 | E55: 769.08 | F55: 761.52 | G55: 752.63 | H55: 785.53 | I55: 794.42 | J55: 801.98 | K55: 786.85 | L55: 770.4 | M55: 2.31951
A56: 47 | B56: CADILAHC | C56: 234.9 | D56: 236.17 | E56: 230.83 | F56: 226.77 | G56: 221.43 | H56: 240.23 | I56: 245.57 | J56: 249.63 | K56: 241.5 | L56: 232.1 | M56: 14.13454
A57: 48 | B57: CANBK | C57: 209.6 | D57: 210.98 | E57: 206.97 | F57: 204.33 | G57: 200.32 | H57: 213.62 | I57: 217.63 | J57: 220.27 | K57: 215 | L57: 208.35 | M57: 82.14699
A58: 49 | B58: CASTROLIND | C58: 153 | D58: 153.45 | E58: 151.35 | F58: 149.70 | G58: 147.60 | H58: 155.10 | I58: 157.20 | J58: 158.85 | K58: 155.55 | L58: 151.8 | M58: 8.77152
A59: 50 | B59: CHOLAFIN | C59: 297.95 | D59: 301.53 | E59: 293.52 | F59: 289.08 | G59: 281.07 | H59: 305.97 | I59: 313.98 | J59: 318.42 | K59: 309.55 | L59: 297.1 | M59: 10.70025
A60: 51 | B60: CIPLA | C60: 471.85 | D60: 476.42 | E60: 465.43 | F60: 459.02 | G60: 448.03 | H60: 482.83 | I60: 493.82 | J60: 500.23 | K60: 487.4 | L60: 470 | M60: 58.92783
A61: 52 | B61: CUB | C61: 211.65 | D61: 209.43 | E61: 206.37 | F61: 201.08 | G61: 198.02 | H61: 214.72 | I61: 217.78 | J61: 223.07 | K61: 212.5 | L61: 204.15 | M61: 12.15034
A62: 53 | B62: COALINDIA | C62: 212.5 | D62: 212.38 | E62: 211.02 | F62: 209.53 | G62: 208.17 | H62: 213.87 | I62: 215.23 | J62: 216.72 | K62: 213.75 | L62: 210.9 | M62: 35.2924
A63: 54 | B63: COLPAL | C63: 1601.3 | D63: 1582.43 | E63: 1553.87 | F63: 1506.43 | G63: 1477.87 | H63: 1629.87 | I63: 1658.43 | J63: 1705.87 | K63: 1611 | L63: 1535 | M63: 13.68053
A64: 55 | B64: CONCOR | C64: 579.6 | D64: 581.27 | E64: 576.13 | F64: 572.67 | G64: 567.53 | H64: 584.73 | I64: 589.87 | J64: 593.33 | K64: 586.4 | L64: 577.8 | M64: 5.42342
A65: 56 | B65: COROMANDEL | C65: 469.25 | D65: 470.35 | E65: 463.80 | F65: 458.35 | G65: 451.80 | H65: 475.80 | I65: 482.35 | J65: 487.80 | K65: 476.9 | L65: 464.9 | M65: 0.82685
A66: 57 | B66: CROMPTON | C66: 255.1 | D66: 253.67 | E66: 250.53 | F66: 245.97 | G66: 242.83 | H66: 258.23 | I66: 261.37 | J66: 265.93 | K66: 256.8 | L66: 249.1 | M66: 9.13035
A67: 58 | B67: CUMMINSIND | C67: 552.2 | D67: 550.43 | E67: 547.02 | F67: 541.83 | G67: 538.42 | H67: 555.62 | I67: 559.03 | J67: 564.22 | K67: 553.85 | L67: 545.25 | M67: 6.81069
A68: 59 | B68: DLF | C68: 192.5 | D68: 192.87 | E68: 187.93 | F68: 183.37 | G68: 178.43 | H68: 197.43 | I68: 202.37 | J68: 206.93 | K68: 197.8 | L68: 188.3 | M68: 239.39489
A69: 60 | B69: DABUR | C69: 477.7 | D69: 476.83 | E69: 472.87 | F69: 468.03 | G69: 464.07 | H69: 481.67 | I69: 485.63 | J69: 490.47 | K69: 480.8 | L69: 472 | M69: 14.56741
A70: 61 | B70: DALBHARAT | C70: 825.2 | D70: 823.07 | E70: 817.13 | F70: 809.07 | G70: 803.13 | H70: 831.13 | I70: 837.07 | J70: 845.13 | K70: 829 | L70: 815 | M70: 1.21314
A71: 62 | B71: DIVISLAB | C71: 1718 | D71: 1707.55 | E71: 1691.55 | F71: 1665.10 | G71: 1649.10 | H71: 1734.00 | I71: 1750.00 | J71: 1776.45 | K71: 1723.55 | L71: 1681.1 | M71: 3.62279
A72: 63 | B72: DRREDDY | C72: 2871.05 | D72: 2861.08 | E72: 2838.97 | F72: 2806.88 | G72: 2784.77 | H72: 2893.17 | I72: 2915.28 | J72: 2947.37 | K72: 2883.2 | L72: 2829 | M72: 4.41155
A73: 64 | B73: EDELWEISS | C73: 105.6 | D73: 105.60 | E73: 105.60 | F73: 105.60 | G73: 105.60 | H73: 105.60 | I73: 105.60 | J73: 105.60 | K73: 105.6 | L73: 105.6 | M73: 1.54265
A74: 65 | B74: EICHERMOT | C74: 21423.95 | D74: 21431.70 | E74: 21163.40 | F74: 20902.85 | G74: 20634.55 | H74: 21692.25 | I74: 21960.55 | J74: 22221.10 | K74: 21700 | L74: 21171.15 | M74: 1.05586
A75: 66 | B75: EMAMILTD | C75: 325.75 | D75: 326.43 | E75: 321.97 | F75: 318.18 | G75: 313.72 | H75: 330.22 | I75: 334.68 | J75: 338.47 | K75: 330.9 | L75: 322.65 | M75: 5.39891
A76: 67 | B76: ENDURANCE | C76: 1122.2 | D76: 1124.00 | E76: 1109.00 | F76: 1095.80 | G76: 1080.80 | H76: 1137.20 | I76: 1152.20 | J76: 1165.40 | K76: 1139 | L76: 1110.8 | M76: 0.1474
A77: 68 | B77: ENGINERSIN | C77: 110.85 | D77: 112.30 | E77: 109.10 | F77: 107.35 | G77: 104.15 | H77: 114.05 | I77: 117.25 | J77: 119.00 | K77: 115.5 | L77: 110.55 | M77: 7.57911
A78: 69 | B78: ESCORTS | C78: 647.9 | D78: 650.18 | E78: 641.12 | F78: 634.33 | G78: 625.27 | H78: 656.97 | I78: 666.03 | J78: 672.82 | K78: 659.25 | L78: 643.4 | M78: 12.23367
A79: 70 | B79: EXIDEIND | C79: 188.7 | D79: 189.78 | E79: 186.92 | F79: 185.13 | G79: 182.27 | H79: 191.57 | I79: 194.43 | J79: 196.22 | K79: 192.65 | L79: 188 | M79: 34.11971
A80: 71 | B80: FEDERALBNK | C80: 83.95 | D80: 84.30 | E80: 83.15 | F80: 82.35 | G80: 81.20 | H80: 85.10 | I80: 86.25 | J80: 87.05 | K80: 85.45 | L80: 83.5 | M80: 103.63401
A81: 72 | B81: FCONSUMER | C81: 25.65 | D81: 25.90 | E81: 25.20 | F81: 24.75 | G81: 24.05 | H81: 26.35 | I81: 27.05 | J81: 27.50 | K81: 26.6 | L81: 25.45 | M81: 7.11368
A82: 73 | B82: FRETAIL | C82: 360.35 | D82: 359.33 | E82: 352.67 | F82: 344.98 | G82: 338.32 | H82: 367.02 | I82: 373.68 | J82: 381.37 | K82: 366 | L82: 351.65 | M82: 2.19007
A83: 74 | B83: GAIL | C83: 132.1 | D83: 133.58 | E83: 129.82 | F83: 127.53 | G83: 123.77 | H83: 135.87 | I83: 139.63 | J83: 141.92 | K83: 137.35 | L83: 131.3 | M83: 112.64143
A84: 75 | B84: GMRINFRA | C84: 22.3 | D84: 22.22 | E84: 21.88 | F84: 21.47 | G84: 21.13 | H84: 22.63 | I84: 22.97 | J84: 23.38 | K84: 22.55 | L84: 21.8 | M84: 229.8016
A85: 76 | B85: GICRE | C85: 281.1 | D85: 283.73 | E85: 275.42 | F85: 269.73 | G85: 261.42 | H85: 289.42 | I85: 297.73 | J85: 303.42 | K85: 292.05 | L85: 278.05 | M85: 2.63358
A86: 77 | B86: GLENMARK | C86: 293.85 | D86: 295.05 | E86: 286.10 | F86: 278.35 | G86: 269.40 | H86: 302.80 | I86: 311.75 | J86: 319.50 | K86: 304 | L86: 287.3 | M86: 27.94278
A87: 78 | B87: GODREJAGRO | C87: 491.95 | D87: 489.78 | E87: 482.17 | F87: 472.38 | G87: 464.77 | H87: 499.57 | I87: 507.18 | J87: 516.97 | K87: 497.4 | L87: 480 | M87: 1.03168
A88: 79 | B88: GODREJCP | C88: 752.65 | D88: 752.88 | E88: 741.77 | F88: 730.88 | G88: 719.77 | H88: 763.77 | I88: 774.88 | J88: 785.77 | K88: 764 | L88: 742 | M88: 10.38973
A89: 80 | B89: GODREJIND | C89: 425 | D89: 427.07 | E89: 420.13 | F89: 415.27 | G89: 408.33 | H89: 431.93 | I89: 438.87 | J89: 443.73 | K89: 434 | L89: 422.2 | M89: 1.10753
A90: 81 | B90: GODREJPROP | C90: 989.8 | D90: 1000.20 | E90: 975.40 | F90: 961.00 | G90: 936.20 | H90: 1014.60 | I90: 1039.40 | J90: 1053.80 | K90: 1025 | L90: 985.8 | M90: 4.04576
A91: 82 | B91: GRAPHITE | C91: 307 | D91: 304.37 | E91: 298.73 | F91: 290.47 | G91: 284.83 | H91: 312.63 | I91: 318.27 | J91: 326.53 | K91: 310 | L91: 296.1 | M91: 19.89859
A92: 83 | B92: GRASIM | C92: 777.85 | D92: 777.08 | E92: 772.17 | F92: 766.48 | G92: 761.57 | H92: 782.77 | I92: 787.68 | J92: 793.37 | K92: 782 | L92: 771.4 | M92: 11.33781
A93: 84 | B93: GSPL | C93: 214.85 | D93: 214.87 | E93: 210.03 | F93: 205.22 | G93: 200.38 | H93: 219.68 | I93: 224.52 | J93: 229.33 | K93: 219.7 | L93: 210.05 | M93: 2.63768
A94: 85 | B94: HEG | C94: 1025.45 | D94: 1022.92 | E94: 1007.53 | F94: 989.62 | G94: 974.23 | H94: 1040.83 | I94: 1056.22 | J94: 1074.13 | K94: 1038.3 | L94: 1005 | M94: 4.99278
A95: 86 | B95: HCLTECH | C95: 1148.45 | D95: 1146.25 | E95: 1138.30 | F95: 1128.15 | G95: 1120.20 | H95: 1156.40 | I95: 1164.35 | J95: 1174.50 | K95: 1154.2 | L95: 1136.1 | M95: 12.69319
A96: 87 | B96: HDFCAMC | C96: 3016.75 | D96: 2982.68 | E96: 2926.37 | F96: 2835.98 | G96: 2779.67 | H96: 3073.07 | I96: 3129.38 | J96: 3219.77 | K96: 3039 | L96: 2892.3 | M96: 12.7233
A97: 88 | B97: HDFCBANK | C97: 1263.7 | D97: 1261.13 | E97: 1252.57 | F97: 1241.43 | G97: 1232.87 | H97: 1272.27 | I97: 1280.83 | J97: 1291.97 | K97: 1269.7 | L97: 1250 | M97: 84.81517
A98: 89 | B98: HDFCLIFE | C98: 580.15 | D98: 581.68 | E98: 574.62 | F98: 569.08 | G98: 562.02 | H98: 587.22 | I98: 594.28 | J98: 599.82 | K98: 588.75 | L98: 576.15 | M98: 32.17588
A99: 90 | B99: HAVELLS | C99: 710 | D99: 705.13 | E99: 695.67 | F99: 681.33 | G99: 671.87 | H99: 719.47 | I99: 728.93 | J99: 743.27 | K99: 714.6 | L99: 690.8 | M99: 27.60947
A100: 91 | B100: HEROMOTOCO | C100: 2660.85 | D100: 2659.12 | E100: 2644.73 | F100: 2628.62 | G100: 2614.23 | H100: 2675.23 | I100: 2689.62 | J100: 2705.73 | K100: 2673.5 | L100: 2643 | M100: 4.40308
A101: 92 | B101: HEXAWARE | C101: 345.1 | D101: 343.77 | E101: 340.58 | F101: 336.07 | G101: 332.88 | H101: 348.28 | I101: 351.47 | J101: 355.98 | K101: 346.95 | L101: 339.25 | M101: 4.24681
A102: 93 | B102: HINDALCO | C102: 205.2 | D102: 203.92 | E102: 200.53 | F102: 195.87 | G102: 192.48 | H102: 208.58 | I102: 211.97 | J102: 216.63 | K102: 207.3 | L102: 199.25 | M102: 175.56268
A103: 94 | B103: HINDPETRO | C103: 310.45 | D103: 311.33 | E103: 305.72 | F103: 300.98 | G103: 295.37 | H103: 316.07 | I103: 321.68 | J103: 326.42 | K103: 316.95 | L103: 306.6 | M103: 58.93535
A104: 95 | B104: HINDUNILVR | C104: 2138.25 | D104: 2152.08 | E104: 2114.17 | F104: 2090.08 | G104: 2052.17 | H104: 2176.17 | I104: 2214.08 | J104: 2238.17 | K104: 2190 | L104: 2128 | M104: 19.70785
A105: 96 | B105: HINDZINC | C105: 213.2 | D105: 211.30 | E105: 208.60 | F105: 204.00 | G105: 201.30 | H105: 215.90 | I105: 218.60 | J105: 223.20 | K105: 214 | L105: 206.7 | M105: 8.45059
A106: 97 | B106: HUDCO | C106: 42.3 | D106: 42.52 | E106: 41.63 | F106: 40.97 | G106: 40.08 | H106: 43.18 | I106: 44.07 | J106: 44.73 | K106: 43.4 | L106: 41.85 | M106: 33.87907
A107: 98 | B107: HDFC | C107: 2251 | D107: 2250.67 | E107: 2236.53 | F107: 2222.07 | G107: 2207.93 | H107: 2265.13 | I107: 2279.27 | J107: 2293.73 | K107: 2264.8 | L107: 2236.2 | M107: 55.8213
A108: 99 | B108: ICICIBANK | C108: 478.55 | D108: 479.07 | E108: 475.13 | F108: 471.72 | G108: 467.78 | H108: 482.48 | I108: 486.42 | J108: 489.83 | K108: 483 | L108: 475.65 | M108: 183.12032
A109: 100 | B109: ICICIGI | C109: 1319.6 | D109: 1315.75 | E109: 1296.90 | F109: 1274.20 | G109: 1255.35 | H109: 1338.45 | I109: 1357.30 | J109: 1380.00 | K109: 1334.6 | L109: 1293.05 | M109: 5.51972
A110: 101 | B110: ICICIPRULI | C110: 518.1 | D110: 519.67 | E110: 512.63 | F110: 507.17 | G110: 500.13 | H110: 525.13 | I110: 532.17 | J110: 537.63 | K110: 526.7 | L110: 514.2 | M110: 26.23595
A111: 102 | B111: IDBI | C111: 33.6 | D111: 33.70 | E111: 33.30 | F111: 33.00 | G111: 32.60 | H111: 34.00 | I111: 34.40 | J111: 34.70 | K111: 34.1 | L111: 33.4 | M111: 9.64611
A112: 103 | B112: IDFCFIRSTB | C112: 42.45 | D112: 42.58 | E112: 42.07 | F112: 41.68 | G112: 41.17 | H112: 42.97 | I112: 43.48 | J112: 43.87 | K112: 43.1 | L112: 42.2 | M112: 113.24199
A113: 104 | B113: ITC | C113: 265.85 | D113: 264.72 | E113: 263.13 | F113: 260.42 | G113: 258.83 | H113: 267.43 | I113: 269.02 | J113: 271.73 | K113: 266.3 | L113: 262 | M113: 147.82434
A114: 105 | B114: IBULHSGFIN | C114: 238.35 | D114: 243.35 | E114: 224.30 | F114: 210.25 | G114: 191.20 | H114: 257.40 | I114: 276.45 | J114: 290.50 | K114: 262.4 | L114: 229.3 | M114: 943.17381
A115: 106 | B115: IBVENTURES | C115: 128.55 | D115: 128.55 | E115: 128.55 | F115: 128.55 | G115: 128.55 | H115: 128.55 | I115: 128.55 | J115: 128.55 | K115: 128.55 | L115: 128.55 | M115: 0.3813
A116: 107 | B116: INDIANB | C116: 127.4 | D116: 127.78 | E116: 125.62 | F116: 123.83 | G116: 121.67 | H116: 129.57 | I116: 131.73 | J116: 133.52 | K116: 129.95 | L116: 126 | M116: 8.44838
A117: 108 | B117: INDHOTEL | C117: 150.85 | D117: 151.03 | E117: 150.07 | F117: 149.28 | G117: 148.32 | H117: 151.82 | I117: 152.78 | J117: 153.57 | K117: 152 | L117: 150.25 | M117: 2.67324
A118: 109 | B118: IOC | C118: 135.85 | D118: 135.92 | E118: 135.03 | F118: 134.22 | G118: 133.33 | H118: 136.73 | I118: 137.62 | J118: 138.43 | K118: 136.8 | L118: 135.1 | M118: 65.45946
A119: 110 | B119: IGL | C119: 393.2 | D119: 392.73 | E119: 390.47 | F119: 387.73 | G119: 385.47 | H119: 395.47 | I119: 397.73 | J119: 400.47 | K119: 395 | L119: 390 | M119: 12.25553
A120: 111 | B120: INDUSINDBK | C120: 1381.9 | D120: 1376.58 | E120: 1355.32 | F120: 1328.73 | G120: 1307.47 | H120: 1403.17 | I120: 1424.43 | J120: 1451.02 | K120: 1397.85 | L120: 1350 | M120: 55.63949
A121: 112 | B121: NAUKRI | C121: 2491.55 | D121: 2499.88 | E121: 2453.62 | F121: 2415.68 | G121: 2369.42 | H121: 2537.82 | I121: 2584.08 | J121: 2622.02 | K121: 2546.15 | L121: 2461.95 | M121: 2.91505
A122: 113 | B122: INFY | C122: 720.1 | D122: 718.85 | E122: 713.35 | F122: 706.60 | G122: 701.10 | H122: 725.60 | I122: 731.10 | J122: 737.85 | K122: 724.35 | L122: 712.1 | M122: 137.33737
A123: 114 | B123: INDIGO | C123: 1492.55 | D123: 1482.18 | E123: 1466.47 | F123: 1440.38 | G123: 1424.67 | H123: 1508.27 | I123: 1523.98 | J123: 1550.07 | K123: 1497.9 | L123: 1456.1 | M123: 25.61089
A124: 115 | B124: IPCALAB | C124: 1063.2 | D124: 1057.27 | E124: 1009.53 | F124: 955.87 | G124: 908.13 | H124: 1110.93 | I124: 1158.67 | J124: 1212.33 | K124: 1105 | L124: 1003.6 | M124: 10.3924
A125: 116 | B125: JSWENERGY | C125: 78.85 | D125: 77.22 | E125: 74.83 | F125: 70.82 | G125: 68.43 | H125: 81.23 | I125: 83.62 | J125: 87.63 | K125: 79.6 | L125: 73.2 | M125: 21.46493
A126: 117 | B126: JSWSTEEL | C126: 252.65 | D126: 250.18 | E126: 245.57 | F126: 238.48 | G126: 233.87 | H126: 257.27 | I126: 261.88 | J126: 268.97 | K126: 254.8 | L126: 243.1 | M126: 121.03874
A127: 118 | B127: JINDALSTEL | C127: 148.6 | D127: 145.62 | E127: 138.33 | F127: 128.07 | G127: 120.78 | H127: 155.88 | I127: 163.17 | J127: 173.43 | K127: 152.9 | L127: 135.35 | M127: 630.62505
A128: 119 | B128: JUBLFOOD | C128: 1617.25 | D128: 1600.02 | E128: 1576.03 | F128: 1534.82 | G128: 1510.83 | H128: 1641.23 | I128: 1665.22 | J128: 1706.43 | K128: 1624 | L128: 1558.8 | M128: 14.19412
A129: 120 | B129: JUBILANT | C129: 537.25 | D129: 536.38 | E129: 527.97 | F129: 518.68 | G129: 510.27 | H129: 545.67 | I129: 554.08 | J129: 563.37 | K129: 544.8 | L129: 527.1 | M129: 1.4392
A130: 121 | B130: KOTAKBANK | C130: 1584 | D130: 1576.65 | E130: 1566.30 | F130: 1548.60 | G130: 1538.25 | H130: 1594.35 | I130: 1604.70 | J130: 1622.40 | K130: 1587 | L130: 1558.95 | M130: 25.11912
A131: 122 | B131: L&TFH | C131: 99.05 | D131: 100.47 | E131: 96.78 | F131: 94.52 | G131: 90.83 | H131: 102.73 | I131: 106.42 | J131: 108.68 | K131: 104.15 | L131: 98.2 | M131: 193.50125
A132: 123 | B132: LTTS | C132: 1463.85 | D132: 1464.58 | E132: 1452.27 | F132: 1440.68 | G132: 1428.37 | H132: 1476.17 | I132: 1488.48 | J132: 1500.07 | K132: 1476.9 | L132: 1453 | M132: 0.62297
A133: 124 | B133: LICHSGFIN | C133: 437.8 | D133: 442.45 | E133: 430.40 | F133: 423.00 | G133: 410.95 | H133: 449.85 | I133: 461.90 | J133: 469.30 | K133: 454.5 | L133: 435.05 | M133: 83.91974
A134: 125 | B134: LTI | C134: 1668 | D134: 1661.73 | E134: 1643.47 | F134: 1618.93 | G134: 1600.67 | H134: 1686.27 | I134: 1704.53 | J134: 1729.07 | K134: 1680 | L134: 1637.2 | M134: 1.04712
A135: 126 | B135: LT | C135: 1435.05 | D135: 1442.00 | E135: 1424.05 | F135: 1413.05 | G135: 1395.10 | H135: 1453.00 | I135: 1470.95 | J135: 1481.95 | K135: 1459.95 | L135: 1431 | M135: 19.99085
A136: 127 | B136: LUPIN | C136: 737.45 | D136: 742.28 | E136: 730.42 | F136: 723.38 | G136: 711.52 | H136: 749.32 | I136: 761.18 | J136: 768.22 | K136: 754.15 | L136: 735.25 | M136: 62.1978
A137: 128 | B137: MRF | C137: 63522.6 | D137: 63584.85 | E137: 63247.80 | F137: 62973.00 | G137: 62635.95 | H137: 63859.65 | I137: 64196.70 | J137: 64471.50 | K137: 63921.9 | L137: 63310.05 | M137: 0.02116
A138: 129 | B138: MGL | C138: 957.9 | D138: 965.13 | E138: 946.77 | F138: 935.63 | G138: 917.27 | H138: 976.27 | I138: 994.63 | J138: 1005.77 | K138: 983.5 | L138: 954 | M138: 3.60512
A139: 130 | B139: M&MFIN | C139: 340.35 | D139: 345.40 | E139: 334.25 | F139: 328.15 | G139: 317.00 | H139: 351.50 | I139: 362.65 | J139: 368.75 | K139: 356.55 | L139: 339.3 | M139: 14.163
A140: 131 | B140: M&M | C140: 580.35 | D140: 578.62 | E140: 573.73 | F140: 567.12 | G140: 562.23 | H140: 585.23 | I140: 590.12 | J140: 596.73 | K140: 583.5 | L140: 572 | M140: 32.79435
A141: 132 | B141: MANAPPURAM | C141: 166.8 | D141: 168.42 | E141: 164.03 | F141: 161.27 | G141: 156.88 | H141: 171.18 | I141: 175.57 | J141: 178.33 | K141: 172.8 | L141: 165.65 | M141: 82.14888
A142: 133 | B142: MRPL | C142: 49.95 | D142: 50.32 | E142: 49.23 | F142: 48.52 | G142: 47.43 | H142: 51.03 | I142: 52.12 | J142: 52.83 | K142: 51.4 | L142: 49.6 | M142: 3.33397
A143: 134 | B143: MARICO | C143: 369.8 | D143: 368.62 | E143: 366.48 | F143: 363.17 | G143: 361.03 | H143: 371.93 | I143: 374.07 | J143: 377.38 | K143: 370.75 | L143: 365.3 | M143: 37.61245
A144: 135 | B144: MARUTI | C144: 7287.15 | D144: 7295.05 | E144: 7233.10 | F144: 7179.05 | G144: 7117.10 | H144: 7349.10 | I144: 7411.05 | J144: 7465.10 | K144: 7357 | L144: 7241 | M144: 8.77885
A145: 136 | B145: MFSL | C145: 478.25 | D145: 460.47 | E145: 431.88 | F145: 385.52 | G145: 356.93 | H145: 506.83 | I145: 535.42 | J145: 581.78 | K145: 489.05 | L145: 414.1 | M145: 90.28838
A146: 137 | B146: MINDTREE | C146: 707.25 | D146: 704.63 | E146: 699.92 | F146: 692.58 | G146: 687.87 | H146: 711.97 | I146: 716.68 | J146: 724.02 | K146: 709.35 | L146: 697.3 | M146: 3.2327
A147: 138 | B147: MOTHERSUMI | C147: 134.2 | D147: 132.88 | E147: 130.92 | F147: 127.63 | G147: 125.67 | H147: 136.17 | I147: 138.13 | J147: 141.42 | K147: 134.85 | L147: 129.6 | M147: 117.92688
A148: 139 | B148: MPHASIS | C148: 904.7 | D148: 908.32 | E148: 896.63 | F148: 888.57 | G148: 876.88 | H148: 916.38 | I148: 928.07 | J148: 936.13 | K148: 920 | L148: 900.25 | M148: 0.58656
A149: 140 | B149: MUTHOOTFIN | C149: 685.05 | D149: 689.05 | E149: 679.30 | F149: 673.55 | G149: 663.80 | H149: 694.80 | I149: 704.55 | J149: 710.30 | K149: 698.8 | L149: 683.3 | M149: 3.00378
A150: 141 | B150: NATCOPHARM | C150: 582.5 | D150: 582.73 | E150: 579.47 | F150: 576.43 | G150: 573.17 | H150: 585.77 | I150: 589.03 | J150: 592.07 | K150: 586 | L150: 579.7 | M150: 0.71666
A151: 142 | B151: NBCC | C151: 41.55 | D151: 42.90 | E151: 40.00 | F151: 38.45 | G151: 35.55 | H151: 44.45 | I151: 47.35 | J151: 48.90 | K151: 45.8 | L151: 41.35 | M151: 710.90313
A152: 143 | B152: NHPC | C152: 23.55 | D152: 23.48 | E152: 23.37 | F152: 23.18 | G152: 23.07 | H152: 23.67 | I152: 23.78 | J152: 23.97 | K152: 23.6 | L152: 23.3 | M152: 12.1155
A153: 144 | B153: NMDC | C153: 107.5 | D153: 108.98 | E153: 104.52 | F153: 101.53 | G153: 97.07 | H153: 111.97 | I153: 116.43 | J153: 119.42 | K153: 113.45 | L153: 106 | M153: 87.42151
A154: 145 | B154: NTPC | C154: 119.55 | D154: 119.95 | E154: 118.70 | F154: 117.85 | G154: 116.60 | H154: 120.80 | I154: 122.05 | J154: 122.90 | K154: 121.2 | L154: 119.1 | M154: 67.94239
A155: 146 | B155: NATIONALUM | C155: 47.15 | D155: 46.85 | E155: 46.25 | F155: 45.35 | G155: 44.75 | H155: 47.75 | I155: 48.35 | J155: 49.25 | K155: 47.45 | L155: 45.95 | M155: 61.63262
A156: 147 | B156: NESTLEIND | C156: 14711.25 | D156: 14684.10 | E156: 14578.15 | F156: 14445.05 | G156: 14339.10 | H156: 14817.20 | I156: 14923.15 | J156: 15056.25 | K156: 14790.05 | L156: 14551 | M156: 0.47438
A157: 148 | B157: OBEROIRLTY | C157: 509.45 | D157: 512.25 | E157: 503.70 | F157: 497.95 | G157: 489.40 | H157: 518.00 | I157: 526.55 | J157: 532.30 | K157: 520.8 | L157: 506.5 | M157: 2.12533
A158: 149 | B158: ONGC | C158: 142.05 | D158: 142.50 | E158: 139.95 | F158: 137.85 | G158: 135.30 | H158: 144.60 | I158: 147.15 | J158: 149.25 | K158: 145.05 | L158: 140.4 | M158: 73.32352
A159: 150 | B159: OIL | C159: 167 | D159: 167.73 | E159: 165.57 | F159: 164.13 | G159: 161.97 | H159: 169.17 | I159: 171.33 | J159: 172.77 | K159: 169.9 | L159: 166.3 | M159: 3.38753
A160: 151 | B160: OFSS | C160: 3120.55 | D160: 3126.20 | E160: 3104.35 | F160: 3088.15 | G160: 3066.30 | H160: 3142.40 | I160: 3164.25 | J160: 3180.45 | K160: 3148.05 | L160: 3110 | M160: 0.06257
A161: 152 | B161: ORIENTBANK | C161: 53.6 | D161: 53.80 | E161: 53.20 | F161: 52.80 | G161: 52.20 | H161: 54.20 | I161: 54.80 | J161: 55.20 | K161: 54.4 | L161: 53.4 | M161: 4.90053
A162: 153 | B162: PIIND | C162: 1396.05 | D162: 1395.27 | E162: 1385.78 | F162: 1375.52 | G162: 1366.03 | H162: 1405.53 | I162: 1415.02 | J162: 1425.28 | K162: 1404.75 | L162: 1385 | M162: 0.4937
A163: 154 | B163: PNBHOUSING | C163: 580.7 | D163: 583.63 | E163: 572.07 | F163: 563.43 | G163: 551.87 | H163: 592.27 | I163: 603.83 | J163: 612.47 | K163: 595.2 | L163: 575 | M163: 15.06455
A164: 155 | B164: PAGEIND | C164: 24037.45 | D164: 24041.55 | E164: 23739.65 | F164: 23441.85 | G164: 23139.95 | H164: 24339.35 | I164: 24641.25 | J164: 24939.05 | K164: 24343.45 | L164: 23743.75 | M164: 0.20669
A165: 156 | B165: PETRONET | C165: 284.65 | D165: 284.28 | E165: 283.12 | F165: 281.58 | G165: 280.42 | H165: 285.82 | I165: 286.98 | J165: 288.52 | K165: 285.45 | L165: 282.75 | M165: 14.88525
A166: 157 | B166: PFIZER | C166: 4037.45 | D166: 4040.82 | E166: 4006.63 | F166: 3975.82 | G166: 3941.63 | H166: 4071.63 | I166: 4105.82 | J166: 4136.63 | K166: 4075 | L166: 4010 | M166: 0.21861
A167: 158 | B167: PIDILITIND | C167: 1382.6 | D167: 1378.28 | E167: 1370.72 | F167: 1358.83 | G167: 1351.27 | H167: 1390.17 | I167: 1397.73 | J167: 1409.62 | K167: 1385.85 | L167: 1366.4 | M167: 3.31074
A168: 159 | B168: PEL | C168: 1799.9 | D168: 1819.58 | E168: 1764.97 | F168: 1730.03 | G168: 1675.42 | H168: 1854.52 | I168: 1909.13 | J168: 1944.07 | K168: 1874.2 | L168: 1784.65 | M168: 28.37336
A169: 160 | B169: PFC | C169: 113.35 | D169: 113.05 | E169: 111.10 | F169: 108.85 | G169: 106.90 | H169: 115.30 | I169: 117.25 | J169: 119.50 | K169: 115 | L169: 110.8 | M169: 62.39807
A170: 161 | B170: POWERGRID | C170: 194.2 | D170: 194.90 | E170: 192.95 | F170: 191.70 | G170: 189.75 | H170: 196.15 | I170: 198.10 | J170: 199.35 | K170: 196.85 | L170: 193.65 | M170: 87.17658
A171: 162 | B171: PRESTIGE | C171: 311.8 | D171: 311.78 | E171: 303.52 | F171: 295.23 | G171: 286.97 | H171: 320.07 | I171: 328.33 | J171: 336.62 | K171: 320.05 | L171: 303.5 | M171: 2.88926
A172: 163 | B172: PGHH | C172: 11639.7 | D172: 11703.13 | E172: 11511.57 | F172: 11383.43 | G172: 11191.87 | H172: 11831.27 | I172: 12022.83 | J172: 12150.97 | K172: 11894.7 | L172: 11575 | M172: 0.0182
A173: 164 | B173: PNB | C173: 61.95 | D173: 62.77 | E173: 60.93 | F173: 59.92 | G173: 58.08 | H173: 63.78 | I173: 65.62 | J173: 66.63 | K173: 64.6 | L173: 61.75 | M173: 302.85269
A174: 165 | B174: QUESS | C174: 516.75 | D174: 521.08 | E174: 505.82 | F174: 494.88 | G174: 479.62 | H174: 532.02 | I174: 547.28 | J174: 558.22 | K174: 536.35 | L174: 510.15 | M174: 2.4128
A175: 166 | B175: RBLBANK | C175: 308.45 | D175: 311.45 | E175: 303.50 | F175: 298.55 | G175: 290.60 | H175: 316.40 | I175: 324.35 | J175: 329.30 | K175: 319.4 | L175: 306.5 | M175: 103.13805
A176: 167 | B176: RECLTD | C176: 142.8 | D176: 141.60 | E176: 139.20 | F176: 135.60 | G176: 133.20 | H176: 145.20 | I176: 147.60 | J176: 151.20 | K176: 144 | L176: 138 | M176: 78.50944
A177: 168 | B177: RAJESHEXPO | C177: 675.5 | D177: 678.15 | E177: 667.35 | F177: 659.20 | G177: 648.40 | H177: 686.30 | I177: 697.10 | J177: 705.25 | K177: 688.95 | L177: 670 | M177: 3.51729
A178: 169 | B178: RELIANCE | C178: 1458.6 | D178: 1451.27 | E178: 1439.53 | F178: 1420.47 | G178: 1408.73 | H178: 1470.33 | I178: 1482.07 | J178: 1501.13 | K178: 1463 | L178: 1432.2 | M178: 64.38749
A179: 170 | B179: RNAM | C179: 335.35 | D179: 337.82 | E179: 328.63 | F179: 321.92 | G179: 312.73 | H179: 344.53 | I179: 353.72 | J179: 360.43 | K179: 347 | L179: 331.1 | M179: 20.97054
A180: 171 | B180: SBILIFE | C180: 986.45 | D180: 981.88 | E180: 972.77 | F180: 959.08 | G180: 949.97 | H180: 995.57 | I180: 1004.68 | J180: 1018.37 | K180: 991 | L180: 968.2 | M180: 13.51432
A181: 172 | B181: SRF | C181: 3148.75 | D181: 3117.58 | E181: 3070.17 | F181: 2991.58 | G181: 2944.17 | H181: 3196.17 | I181: 3243.58 | J181: 3322.17 | K181: 3165 | L181: 3039 | M181: 7.20917
A182: 173 | B182: SHREECEM | C182: 20040.75 | D182: 20023.98 | E182: 19890.32 | F182: 19739.88 | G182: 19606.22 | H182: 20174.42 | I182: 20308.08 | J182: 20458.52 | K182: 20157.65 | L182: 19873.55 | M182: 0.2401
A183: 174 | B183: SRTRANSFIN | C183: 1152.45 | D183: 1157.33 | E183: 1133.12 | F183: 1113.78 | G183: 1089.57 | H183: 1176.67 | I183: 1200.88 | J183: 1220.22 | K183: 1181.55 | L183: 1138 | M183: 16.63203
A184: 175 | B184: SIEMENS | C184: 1665.05 | D184: 1674.67 | E184: 1649.38 | F184: 1633.72 | G184: 1608.43 | H184: 1690.33 | I184: 1715.62 | J184: 1731.28 | K184: 1699.95 | L184: 1659 | M184: 6.49773
A185: 176 | B185: SBIN | C185: 318.15 | D185: 319.42 | E185: 315.53 | F185: 312.92 | G185: 309.03 | H185: 322.03 | I185: 325.92 | J185: 328.53 | K185: 323.3 | L185: 316.8 | M185: 339.26772
A186: 177 | B186: SAIL | C186: 39.95 | D186: 39.72 | E186: 38.73 | F186: 37.52 | G186: 36.53 | H186: 40.93 | I186: 41.92 | J186: 43.13 | K186: 40.7 | L186: 38.5 | M186: 381.9782
A187: 178 | B187: STRTECH | C187: 129.25 | D187: 129.75 | E187: 127.55 | F187: 125.85 | G187: 123.65 | H187: 131.45 | I187: 133.65 | J187: 135.35 | K187: 131.95 | L187: 128.05 | M187: 7.05123
A188: 179 | B188: SUNPHARMA | C188: 440.6 | D188: 436.00 | E188: 428.00 | F188: 415.40 | G188: 407.40 | H188: 448.60 | I188: 456.60 | J188: 469.20 | K188: 444 | L188: 423.4 | M188: 142.94406
A189: 180 | B189: SUNTV | C189: 527.5 | D189: 523.77 | E189: 518.53 | F189: 509.57 | G189: 504.33 | H189: 532.73 | I189: 537.97 | J189: 546.93 | K189: 529 | L189: 514.8 | M189: 8.0654
A190: 181 | B190: SYNGENE | C190: 323.4 | D190: 323.63 | E190: 315.77 | F190: 308.13 | G190: 300.27 | H190: 331.27 | I190: 339.13 | J190: 346.77 | K190: 331.5 | L190: 316 | M190: 0.80829
A191: 182 | B191: TVSMOTOR | C191: 449.3 | D191: 453.60 | E191: 443.25 | F191: 437.20 | G191: 426.85 | H191: 459.65 | I191: 470.00 | J191: 476.05 | K191: 463.95 | L191: 447.55 | M191: 15.37259
A192: 183 | B192: TATACHEM | C192: 643.8 | D192: 644.57 | E192: 641.33 | F192: 638.87 | G192: 635.63 | H192: 647.03 | I192: 650.27 | J192: 652.73 | K192: 647.8 | L192: 642.1 | M192: 3.26444
A193: 184 | B193: TCS | C193: 2185.35 | D193: 2188.35 | E193: 2172.20 | F193: 2159.05 | G193: 2142.90 | H193: 2201.50 | I193: 2217.65 | J193: 2230.80 | K193: 2204.5 | L193: 2175.2 | M193: 19.15598
A194: 185 | B194: TATAGLOBAL | C194: 300.85 | D194: 299.88 | E194: 297.27 | F194: 293.68 | G194: 291.07 | H194: 303.47 | I194: 306.08 | J194: 309.67 | K194: 302.5 | L194: 296.3 | M194: 20.03799
A195: 186 | B195: TATAMTRDVR | C195: 79 | D195: 78.88 | E195: 77.27 | F195: 75.53 | G195: 73.92 | H195: 80.62 | I195: 82.23 | J195: 83.97 | K195: 80.5 | L195: 77.15 | M195: 54.08742
A196: 187 | B196: TATAMOTORS | C196: 171.5 | D196: 171.27 | E196: 167.83 | F196: 164.17 | G196: 160.73 | H196: 174.93 | I196: 178.37 | J196: 182.03 | K196: 174.7 | L196: 167.6 | M196: 386.25387
A197: 188 | B197: TATAPOWER | C197: 58.75 | D197: 58.55 | E197: 57.70 | F197: 56.65 | G197: 55.80 | H197: 59.60 | I197: 60.45 | J197: 61.50 | K197: 59.4 | L197: 57.5 | M197: 91.81608
A198: 189 | B198: TATASTEEL | C198: 403.1 | D198: 400.25 | E198: 391.65 | F198: 380.20 | G198: 371.60 | H198: 411.70 | I198: 420.30 | J198: 431.75 | K198: 408.85 | L198: 388.8 | M198: 407.0076
A199: 190 | B199: TECHM | C199: 769.7 | D199: 769.92 | E199: 764.83 | F199: 759.97 | G199: 754.88 | H199: 774.78 | I199: 779.87 | J199: 784.73 | K199: 775 | L199: 765.05 | M199: 20.609
A200: 191 | B200: NIACL | C200: 152.05 | D200: 154.57 | E200: 148.48 | F200: 144.92 | G200: 138.83 | H200: 158.13 | I200: 164.22 | J200: 167.78 | K200: 160.65 | L200: 151 | M200: 3.07985
A201: 192 | B201: RAMCOCEM | C201: 802.2 | D201: 805.75 | E201: 796.70 | F201: 791.20 | G201: 782.15 | H201: 811.25 | I201: 820.30 | J201: 825.80 | K201: 814.8 | L201: 800.25 | M201: 4.75774
A202: 193 | B202: TITAN | C202: 1167.2 | D202: 1167.55 | E202: 1156.10 | F202: 1145.00 | G202: 1133.55 | H202: 1178.65 | I202: 1190.10 | J202: 1201.20 | K202: 1179 | L202: 1156.45 | M202: 65.00446
A203: 194 | B203: TORNTPHARM | C203: 1819.3 | D203: 1816.30 | E203: 1807.60 | F203: 1795.90 | G203: 1787.20 | H203: 1828.00 | I203: 1836.70 | J203: 1848.40 | K203: 1825 | L203: 1804.6 | M203: 0.55977
A204: 195 | B204: TORNTPOWER | C204: 296.05 | D204: 294.20 | E204: 290.90 | F204: 285.75 | G204: 282.45 | H204: 299.35 | I204: 302.65 | J204: 307.80 | K204: 297.5 | L204: 289.05 | M204: 19.10889
A205: 196 | B205: UPL | C205: 577.7 | D205: 582.27 | E205: 552.53 | F205: 527.37 | G205: 497.63 | H205: 607.43 | I205: 637.17 | J205: 662.33 | K205: 612 | L205: 557.1 | M205: 45.04826
... 30 more rows

Sheet MidCap Intra
L5: Back To Main Page
A6: FOR INTRA DAY TRADING | K6: =Main!B10 -> 2019-11-08
A9: Sr.no | B9: Scrip | C9: CLOSE RATE | D9: Pivot Point | E9: Supports | H9: Resistances
C10: Point | E10: S1 | F10: S2 | G10: S3 | H10: R1 | I10: R2 | J10: R3 | K10: HIGH | L10: LOW | M10: Total Trade Quanity in Lakhs
A11: 1 | B11: 3MINDIA | C11: 22463.45 | D11: 22454.48 | E11: 22308.97 | F11: 22154.48 | G11: 22008.97 | H11: 22608.97 | I11: 22754.48 | J11: 22908.97 | K11: 22600 | L11: 22300 | M11: 0.00648
A12: 2 | B12: ACC | C12: 1527.15 | D12: 1531.10 | E12: 1516.05 | F12: 1504.95 | G12: 1489.90 | H12: 1542.20 | I12: 1557.25 | J12: 1568.35 | K12: 1546.15 | L12: 1520 | M12: 8.24638
A13: 3 | B13: AIAENG | C13: 1692.7 | D13: 1696.85 | E13: 1675.80 | F13: 1658.90 | G13: 1637.85 | H13: 1713.75 | I13: 1734.80 | J13: 1751.70 | K13: 1717.9 | L13: 1679.95 | M13: 0.1857
A14: 4 | B14: APLAPOLLO | C14: 1454.15 | D14: 1460.67 | E14: 1436.28 | F14: 1418.42 | G14: 1394.03 | H14: 1478.53 | I14: 1502.92 | J14: 1520.78 | K14: 1485.05 | L14: 1442.8 | M14: 0.17439
A15: 5 | B15: AUBANK | C15: 685.1 | D15: 681.20 | E15: 671.40 | F15: 657.70 | G15: 647.90 | H15: 694.90 | I15: 704.70 | J15: 718.40 | K15: 691 | L15: 667.5 | M15: 3.58799
A16: 6 | B16: AAVAS | C16: 1545.2 | D16: 1536.07 | E16: 1507.13 | F16: 1469.07 | G16: 1440.13 | H16: 1574.13 | I16: 1603.07 | J16: 1641.13 | K16: 1565 | L16: 1498 | M16: 0.4471
A17: 7 | B17: ABBOTINDIA | C17: 11695.25 | D17: 11655.08 | E17: 11550.17 | F17: 11405.08 | G17: 11300.17 | H17: 11800.17 | I17: 11905.08 | J17: 12050.17 | K17: 11760 | L17: 11510 | M17: 0.05421
A18: 8 | B18: ADANIGAS | C18: 147.35 | D18: 147.72 | E18: 146.73 | F18: 146.12 | G18: 145.13 | H18: 148.33 | I18: 149.32 | J18: 149.93 | K18: 148.7 | L18: 147.1 | M18: 3.85595
A19: 9 | B19: ADANIGREEN | C19: 88.7 | D19: 89.40 | E19: 87.60 | F19: 86.50 | G19: 84.70 | H19: 90.50 | I19: 92.30 | J19: 93.40 | K19: 91.2 | L19: 88.3 | M19: 9.11495
A20: 10 | B20: ADANIPORTS | C20: 390.45 | D20: 390.17 | E20: 388.33 | F20: 386.22 | G20: 384.38 | H20: 392.28 | I20: 394.12 | J20: 396.23 | K20: 392 | L20: 388.05 | M20: 16.15593
A21: 11 | B21: ADANIPOWER | C21: 70.55 | D21: 70.77 | E21: 70.03 | F21: 69.52 | G21: 68.78 | H21: 71.28 | I21: 72.02 | J21: 72.53 | K21: 71.5 | L21: 70.25 | M21: 55.64428
A22: 12 | B22: ADANITRANS | C22: 298.55 | D22: 295.15 | E22: 286.60 | F22: 274.65 | G22: 266.10 | H22: 307.10 | I22: 315.65 | J22: 327.60 | K22: 303.7 | L22: 283.2 | M22: 19.01839
A23: 13 | B23: ABCAPITAL | C23: 84.7 | D23: 84.60 | E23: 83.70 | F23: 82.70 | G23: 81.80 | H23: 85.60 | I23: 86.50 | J23: 87.50 | K23: 85.5 | L23: 83.6 | M23: 45.86782
A24: 14 | B24: ABFRL | C24: 202.5 | D24: 201.88 | E24: 197.17 | F24: 191.83 | G24: 187.12 | H24: 207.22 | I24: 211.93 | J24: 217.27 | K24: 206.6 | L24: 196.55 | M24: 7.22566
A25: 15 | B25: ADVENZYMES | C25: 178.6 | D25: 178.45 | E25: 173.00 | F25: 167.40 | G25: 161.95 | H25: 184.05 | I25: 189.50 | J25: 195.10 | K25: 183.9 | L25: 172.85 | M25: 1.37701
A26: 16 | B26: AEGISCHEM | C26: 168.05 | D26: 167.93 | E26: 166.37 | F26: 164.68 | G26: 163.12 | H26: 169.62 | I26: 171.18 | J26: 172.87 | K26: 169.5 | L26: 166.25 | M26: 1.03663
A27: 17 | B27: AJANTPHARM | C27: 991.3 | D27: 998.37 | E27: 977.93 | F27: 964.57 | G27: 944.13 | H27: 1011.73 | I27: 1032.17 | J27: 1045.53 | K27: 1018.8 | L27: 985 | M27: 0.98143
A28: 18 | B28: AKZOINDIA | C28: 2186.2 | D28: 2203.08 | E28: 2158.22 | F28: 2130.23 | G28: 2085.37 | H28: 2231.07 | I28: 2275.93 | J28: 2303.92 | K28: 2247.95 | L28: 2175.1 | M28: 0.09782
A29: 19 | B29: APLLTD | C29: 576.45 | D29: 577.65 | E29: 573.80 | F29: 571.15 | G29: 567.30 | H29: 580.30 | I29: 584.15 | J29: 586.80 | K29: 581.5 | L29: 575 | M29: 0.48519
A30: 20 | B30: ALKEM | C30: 2006.95 | D30: 2023.00 | E30: 1976.00 | F30: 1945.05 | G30: 1898.05 | H30: 2053.95 | I30: 2100.95 | J30: 2131.90 | K30: 2070 | L30: 1992.05 | M30: 1.27514
A31: 21 | B31: ALBK | C31: 27 | D31: 26.98 | E31: 26.82 | F31: 26.63 | G31: 26.47 | H31: 27.17 | I31: 27.33 | J31: 27.52 | K31: 27.15 | L31: 26.8 | M31: 5.17167
A32: 22 | B32: ALLCARGO | C32: 106.6 | D32: 106.63 | E32: 105.47 | F32: 104.33 | G32: 103.17 | H32: 107.77 | I32: 108.93 | J32: 110.07 | K32: 107.8 | L32: 105.5 | M32: 0.73331
A33: 23 | B33: AMARAJABAT | C33: 662.5 | D33: 663.02 | E33: 658.13 | F33: 653.77 | G33: 648.88 | H33: 667.38 | I33: 672.27 | J33: 676.63 | K33: 667.9 | L33: 658.65 | M33: 2.53184
A34: 24 | B34: AMBER | C34: 999.55 | D34: 1008.20 | E34: 966.50 | F34: 933.45 | G34: 891.75 | H34: 1041.25 | I34: 1082.95 | J34: 1116.00 | K34: 1049.9 | L34: 975.15 | M34: 0.36691
A35: 25 | B35: AMBUJACEM | C35: 203.2 | D35: 203.32 | E35: 201.63 | F35: 200.07 | G35: 198.38 | H35: 204.88 | I35: 206.57 | J35: 208.13 | K35: 205 | L35: 201.75 | M35: 25.60585
A36: 26 | B36: ANDHRABANK | C36: 18.65 | D36: 18.87 | E36: 18.23 | F36: 17.82 | G36: 17.18 | H36: 19.28 | I36: 19.92 | J36: 20.33 | K36: 19.5 | L36: 18.45 | M36: 33.40083
A37: 27 | B37: APOLLOHOSP | C37: 1463.9 | D37: 1451.13 | E37: 1433.27 | F37: 1402.63 | G37: 1384.77 | H37: 1481.77 | I37: 1499.63 | J37: 1530.27 | K37: 1469 | L37: 1420.5 | M37: 9.09619
A38: 28 | B38: APOLLOTYRE | C38: 167 | D38: 167.57 | E38: 165.43 | F38: 163.87 | G38: 161.73 | H38: 169.13 | I38: 171.27 | J38: 172.83 | K38: 169.7 | L38: 166 | M38: 41.78035
A39: 29 | B39: ARVINDFASN | C39: 431.5 | D39: 432.02 | E39: 426.48 | F39: 421.47 | G39: 415.93 | H39: 437.03 | I39: 442.57 | J39: 447.58 | K39: 437.55 | L39: 427 | M39: 0.23651
A40: 30 | B40: ASHOKLEY | C40: 76.7 | D40: 76.33 | E40: 75.52 | F40: 74.33 | G40: 73.52 | H40: 77.52 | I40: 78.33 | J40: 79.52 | K40: 77.15 | L40: 75.15 | M40: 156.33155
A41: 31 | B41: ASHOKA | C41: 97.1 | D41: 97.95 | E41: 96.00 | F41: 94.90 | G41: 92.95 | H41: 99.05 | I41: 101.00 | J41: 102.10 | K41: 99.9 | L41: 96.85 | M41: 2.76882
A42: 32 | B42: ASIANPAINT | C42: 1826.95 | D42: 1818.68 | E42: 1806.47 | F42: 1785.98 | G42: 1773.77 | H42: 1839.17 | I42: 1851.38 | J42: 1871.87 | K42: 1830.9 | L42: 1798.2 | M42: 13.80635
A43: 33 | B43: ASTERDM | C43: 140.95 | D43: 141.00 | E43: 137.65 | F43: 134.35 | G43: 131.00 | H43: 144.30 | I43: 147.65 | J43: 150.95 | K43: 144.35 | L43: 137.7 | M43: 1.21385
A44: 34 | B44: ASTRAZEN | C44: 2495.1 | D44: 2511.50 | E44: 2454.00 | F44: 2412.90 | G44: 2355.40 | H44: 2552.60 | I44: 2610.10 | J44: 2651.20 | K44: 2569 | L44: 2470.4 | M44: 0.11064
A45: 35 | B45: ASTRAL | C45: 1090.45 | D45: 1083.98 | E45: 1058.97 | F45: 1027.48 | G45: 1002.47 | H45: 1115.47 | I45: 1140.48 | J45: 1171.97 | K45: 1109 | L45: 1052.5 | M45: 2.59535
A46: 36 | B46: ATUL | C46: 4225.65 | D46: 4225.93 | E46: 4183.77 | F46: 4141.88 | G46: 4099.72 | H46: 4267.82 | I46: 4309.98 | J46: 4351.87 | K46: 4268.1 | L46: 4184.05 | M46: 0.09873
A47: 37 | B47: AUROPHARMA | C47: 452 | D47: 449.80 | E47: 444.80 | F47: 437.60 | G47: 432.60 | H47: 457.00 | I47: 462.00 | J47: 469.20 | K47: 454.8 | L47: 442.6 | M47: 39.16537
A48: 38 | B48: AVANTIFEED | C48: 523.8 | D48: 516.27 | E48: 497.53 | F48: 471.27 | G48: 452.53 | H48: 542.53 | I48: 561.27 | J48: 587.53 | K48: 535 | L48: 490 | M48: 35.29633
A49: 39 | B49: DMART | C49: 1987.85 | D49: 1986.28 | E49: 1977.57 | F49: 1967.28 | G49: 1958.57 | H49: 1996.57 | I49: 2005.28 | J49: 2015.57 | K49: 1995 | L49: 1976 | M49: 2.32357
A50: 40 | B50: AXISBANK | C50: 734.75 | D50: 741.08 | E50: 726.17 | F50: 717.58 | G50: 702.67 | H50: 749.67 | I50: 764.58 | J50: 773.17 | K50: 756 | L50: 732.5 | M50: 98.7157
A51: 41 | B51: BASF | C51: 962.85 | D51: 977.62 | E51: 935.23 | F51: 907.62 | G51: 865.23 | H51: 1005.23 | I51: 1047.62 | J51: 1075.23 | K51: 1020 | L51: 950 | M51: 1.16227
A52: 42 | B52: BEML | C52: 980.75 | D52: 987.08 | E52: 966.17 | F52: 951.58 | G52: 930.67 | H52: 1001.67 | I52: 1022.58 | J52: 1037.17 | K52: 1008 | L52: 972.5 | M52: 8.15622
A53: 43 | B53: BSE | C53: 541.3 | D53: 539.47 | E53: 527.93 | F53: 514.57 | G53: 503.03 | H53: 552.83 | I53: 564.37 | J53: 577.73 | K53: 551 | L53: 526.1 | M53: 1.55312
A54: 44 | B54: BAJAJ-AUTO | C54: 3265.85 | D54: 3255.27 | E54: 3233.53 | F54: 3201.22 | G54: 3179.48 | H54: 3287.58 | I54: 3309.32 | J54: 3341.63 | K54: 3277 | L54: 3222.95 | M54: 3.26912
A55: 45 | B55: BAJAJCON | C55: 255.75 | D55: 256.02 | E55: 253.03 | F55: 250.32 | G55: 247.33 | H55: 258.73 | I55: 261.72 | J55: 264.43 | K55: 259 | L55: 253.3 | M55: 1.19713
A56: 46 | B56: BAJAJELEC | C56: 335.15 | D56: 340.03 | E56: 328.07 | F56: 320.98 | G56: 309.02 | H56: 347.12 | I56: 359.08 | J56: 366.17 | K56: 352 | L56: 332.95 | M56: 4.54947
A57: 47 | B57: BAJFINANCE | C57: 4225.85 | D57: 4217.75 | E57: 4196.30 | F57: 4166.75 | G57: 4145.30 | H57: 4247.30 | I57: 4268.75 | J57: 4298.30 | K57: 4239.2 | L57: 4188.2 | M57: 11.41603
A58: 48 | B58: BAJAJFINSV | C58: 8832.9 | D58: 8818.22 | E58: 8776.73 | F58: 8720.57 | G58: 8679.08 | H58: 8874.38 | I58: 8915.87 | J58: 8972.03 | K58: 8859.7 | L58: 8762.05 | M58: 2.13383
A59: 49 | B59: BAJAJHLDNG | C59: 3799.95 | D59: 3792.00 | E59: 3734.00 | F59: 3668.05 | G59: 3610.05 | H59: 3857.95 | I59: 3915.95 | J59: 3981.90 | K59: 3850 | L59: 3726.05 | M59: 0.3908
A60: 50 | B60: BALKRISIND | C60: 865.95 | D60: 867.42 | E60: 858.43 | F60: 850.92 | G60: 841.93 | H60: 874.93 | I60: 883.92 | J60: 891.43 | K60: 876.4 | L60: 859.9 | M60: 3.92317
A61: 51 | B61: BALMLAWRIE | C61: 198.35 | D61: 198.33 | E61: 196.72 | F61: 195.08 | G61: 193.47 | H61: 199.97 | I61: 201.58 | J61: 203.22 | K61: 199.95 | L61: 196.7 | M61: 0.58165
A62: 52 | B62: BALRAMCHIN | C62: 152.75 | D62: 153.38 | E62: 150.47 | F62: 148.18 | G62: 145.27 | H62: 155.67 | I62: 158.58 | J62: 160.87 | K62: 156.3 | L62: 151.1 | M62: 13.13852
A63: 53 | B63: BANDHANBNK | C63: 568.6 | D63: 574.57 | E63: 559.43 | F63: 550.27 | G63: 535.13 | H63: 583.73 | I63: 598.87 | J63: 608.03 | K63: 589.7 | L63: 565.4 | M63: 17.94482
A64: 54 | B64: BANKBARODA | C64: 96.2 | D64: 97.50 | E64: 94.35 | F64: 92.50 | G64: 89.35 | H64: 99.35 | I64: 102.50 | J64: 104.35 | K64: 100.65 | L64: 95.65 | M64: 340.05915
A65: 55 | B65: BANKINDIA | C65: 68.75 | D65: 69.15 | E65: 67.65 | F65: 66.55 | G65: 65.05 | H65: 70.25 | I65: 71.75 | J65: 72.85 | K65: 70.65 | L65: 68.05 | M65: 78.72854
A66: 56 | B66: MAHABANK | C66: 12.1 | D66: 12.23 | E66: 11.97 | F66: 11.83 | G66: 11.57 | H66: 12.37 | I66: 12.63 | J66: 12.77 | K66: 12.5 | L66: 12.1 | M66: 4.51693
A67: 57 | B67: BATAINDIA | C67: 1725.75 | D67: 1716.98 | E67: 1704.07 | F67: 1682.38 | G67: 1669.47 | H67: 1738.67 | I67: 1751.58 | J67: 1773.27 | K67: 1729.9 | L67: 1695.3 | M67: 3.21619
A68: 58 | B68: BAYERCROP | C68: 3549.35 | D68: 3595.38 | E68: 3490.97 | F68: 3432.58 | G68: 3328.17 | H68: 3653.77 | I68: 3758.18 | J68: 3816.57 | K68: 3699.8 | L68: 3537 | M68: 0.02946
A69: 59 | B69: BERGEPAINT | C69: 506.7 | D69: 503.95 | E69: 498.40 | F69: 490.10 | G69: 484.55 | H69: 512.25 | I69: 517.80 | J69: 526.10 | K69: 509.5 | L69: 495.65 | M69: 33.73835
A70: 60 | B70: BDL | C70: 325.65 | D70: 324.63 | E70: 316.27 | F70: 306.88 | G70: 298.52 | H70: 334.02 | I70: 342.38 | J70: 351.77 | K70: 333 | L70: 315.25 | M70: 0.70185
A71: 61 | B71: BEL | C71: 108.9 | D71: 108.95 | E71: 107.65 | F71: 106.40 | G71: 105.10 | H71: 110.20 | I71: 111.50 | J71: 112.75 | K71: 110.25 | L71: 107.7 | M71: 87.15227
A72: 62 | B72: BHARATFORG | C72: 469.15 | D72: 467.77 | E72: 461.53 | F72: 453.92 | G72: 447.68 | H72: 475.38 | I72: 481.62 | J72: 489.23 | K72: 474 | L72: 460.15 | M72: 11.03108
A73: 63 | B73: BHEL | C73: 55.45 | D73: 55.43 | E73: 54.77 | F73: 54.08 | G73: 53.42 | H73: 56.12 | I73: 56.78 | J73: 57.47 | K73: 56.1 | L73: 54.75 | M73: 137.82432
A74: 64 | B74: BPCL | C74: 513.2 | D74: 516.68 | E74: 506.82 | F74: 500.43 | G74: 490.57 | H74: 523.07 | I74: 532.93 | J74: 539.32 | K74: 526.55 | L74: 510.3 | M74: 41.01853
A75: 65 | B75: BHARTIARTL | C75: 371.75 | D75: 372.10 | E75: 368.70 | F75: 365.65 | G75: 362.25 | H75: 375.15 | I75: 378.55 | J75: 381.60 | K75: 375.5 | L75: 369.05 | M75: 48.16149
A76: 66 | B76: INFRATEL | C76: 229.45 | D76: 227.63 | E76: 224.32 | F76: 219.18 | G76: 215.87 | H76: 232.77 | I76: 236.08 | J76: 241.22 | K76: 230.95 | L76: 222.5 | M76: 107.21436
A77: 67 | B77: BIOCON | C77: 263.95 | D77: 261.62 | E77: 258.38 | F77: 252.82 | G77: 249.58 | H77: 267.18 | I77: 270.42 | J77: 275.98 | K77: 264.85 | L77: 256.05 | M77: 56.64711
A78: 68 | B78: BIRLACORPN | C78: 634.85 | D78: 633.58 | E78: 628.17 | F78: 621.48 | G78: 616.07 | H78: 640.27 | I78: 645.68 | J78: 652.37 | K78: 639 | L78: 626.9 | M78: 0.97276
A79: 69 | B79: BSOFT | C79: 61.95 | D79: 63.05 | E79: 60.20 | F79: 58.45 | G79: 55.60 | H79: 64.80 | I79: 67.65 | J79: 69.40 | K79: 65.9 | L79: 61.3 | M79: 4.73481
A80: 70 | B80: BLISSGVS | C80: 140.65 | D80: 141.60 | E80: 138.50 | F80: 136.35 | G80: 133.25 | H80: 143.75 | I80: 146.85 | J80: 149.00 | K80: 144.7 | L80: 139.45 | M80: 0.63187
A81: 71 | B81: BLUEDART | C81: 2289.85 | D81: 2295.28 | E81: 2261.57 | F81: 2233.28 | G81: 2199.57 | H81: 2323.57 | I81: 2357.28 | J81: 2385.57 | K81: 2329 | L81: 2267 | M81: 0.01639
A82: 72 | B82: BLUESTARCO | C82: 800.8 | D82: 798.95 | E82: 788.90 | F82: 777.00 | G82: 766.95 | H82: 810.85 | I82: 820.90 | J82: 832.80 | K82: 809 | L82: 787.05 | M82: 0.20188
A83: 73 | B83: BBTC | C83: 1187 | D83: 1193.65 | E83: 1175.30 | F83: 1163.60 | G83: 1145.25 | H83: 1205.35 | I83: 1223.70 | J83: 1235.40 | K83: 1212 | L83: 1181.95 | M83: 0.89436
A84: 74 | B84: BOMDYEING | C84: 85.5 | D84: 85.93 | E84: 84.62 | F84: 83.73 | G84: 82.42 | H84: 86.82 | I84: 88.13 | J84: 89.02 | K84: 87.25 | L84: 85.05 | M84: 28.37053
A85: 75 | B85: BOSCHLTD | C85: 15259.7 | D85: 15073.53 | E85: 14776.72 | F85: 14293.73 | G85: 13996.92 | H85: 15556.52 | I85: 15853.33 | J85: 16336.32 | K85: 15370.35 | L85: 14590.55 | M85: 0.53604
A86: 76 | B86: BRIGADE | C86: 207.25 | D86: 207.68 | E86: 202.87 | F86: 198.48 | G86: 193.67 | H86: 212.07 | I86: 216.88 | J86: 221.27 | K86: 212.5 | L86: 203.3 | M86: 1.77636
A87: 77 | B87: BRITANNIA | C87: 3223.8 | D87: 3228.43 | E87: 3200.27 | F87: 3176.73 | G87: 3148.57 | H87: 3251.97 | I87: 3280.13 | J87: 3303.67 | K87: 3256.6 | L87: 3204.9 | M87: 2.88996
A88: 78 | B88: CARERATING | C88: 534.9 | D88: 534.67 | E88: 533.23 | F88: 531.57 | G88: 530.13 | H88: 536.33 | I88: 537.77 | J88: 539.43 | K88: 536.1 | L88: 533 | M88: 1.19687
A89: 79 | B89: CCL | C89: 203.05 | D89: 204.65 | E89: 200.40 | F89: 197.75 | G89: 193.50 | H89: 207.30 | I89: 211.55 | J89: 214.20 | K89: 208.9 | L89: 202 | M89: 0.57226
A90: 80 | B90: CESC | C90: 776.65 | D90: 777.97 | E90: 769.08 | F90: 761.52 | G90: 752.63 | H90: 785.53 | I90: 794.42 | J90: 801.98 | K90: 786.85 | L90: 770.4 | M90: 2.31951
A91: 81 | B91: CGPOWER | C91: 16.8 | D91: 16.80 | E91: 16.80 | F91: 16.80 | G91: 16.80 | H91: 16.80 | I91: 16.80 | J91: 16.80 | K91: 16.8 | L91: 16.8 | M91: 3.9236
A92: 82 | B92: CRISIL | C92: 1495.6 | D92: 1490.85 | E92: 1473.45 | F92: 1451.30 | G92: 1433.90 | H92: 1513.00 | I92: 1530.40 | J92: 1552.55 | K92: 1508.25 | L92: 1468.7 | M92: 0.49045
A93: 83 | B93: CADILAHC | C93: 234.9 | D93: 236.17 | E93: 230.83 | F93: 226.77 | G93: 221.43 | H93: 240.23 | I93: 245.57 | J93: 249.63 | K93: 241.5 | L93: 232.1 | M93: 14.13454
A94: 84 | B94: CANFINHOME | C94: 408.6 | D94: 413.13 | E94: 402.57 | F94: 396.53 | G94: 385.97 | H94: 419.17 | I94: 429.73 | J94: 435.77 | K94: 423.7 | L94: 407.1 | M94: 3.30004
A95: 85 | B95: CANBK | C95: 209.6 | D95: 210.98 | E95: 206.97 | F95: 204.33 | G95: 200.32 | H95: 213.62 | I95: 217.63 | J95: 220.27 | K95: 215 | L95: 208.35 | M95: 82.14699
A96: 86 | B96: CAPLIPOINT | C96: 392.5 | D96: 393.67 | E96: 388.83 | F96: 385.17 | G96: 380.33 | H96: 397.33 | I96: 402.17 | J96: 405.83 | K96: 398.5 | L96: 390 | M96: 0.3517
A97: 87 | B97: CGCL | C97: 217.75 | D97: 217.27 | E97: 213.53 | F97: 209.32 | G97: 205.58 | H97: 221.48 | I97: 225.22 | J97: 229.43 | K97: 221 | L97: 213.05 | M97: 3.67065
A98: 88 | B98: CARBORUNIV | C98: 307.05 | D98: 308.02 | E98: 304.03 | F98: 301.02 | G98: 297.03 | H98: 311.03 | I98: 315.02 | J98: 318.03 | K98: 312 | L98: 305 | M98: 1.6553
A99: 89 | B99: CASTROLIND | C99: 153 | D99: 153.45 | E99: 151.35 | F99: 149.70 | G99: 147.60 | H99: 155.10 | I99: 157.20 | J99: 158.85 | K99: 155.55 | L99: 151.8 | M99: 8.77152
A100: 90 | B100: CEATLTD | C100: 983.1 | D100: 993.07 | E100: 969.03 | F100: 954.97 | G100: 930.93 | H100: 1007.13 | I100: 1031.17 | J100: 1045.23 | K100: 1017.1 | L100: 979 | M100: 1.16643
A101: 91 | B101: CENTRALBK | C101: 20.7 | D101: 20.82 | E101: 20.38 | F101: 20.07 | G101: 19.63 | H101: 21.13 | I101: 21.57 | J101: 21.88 | K101: 21.25 | L101: 20.5 | M101: 5.50034
A102: 92 | B102: CDSL | C102: 234.25 | D102: 231.88 | E102: 224.12 | F102: 213.98 | G102: 206.22 | H102: 242.02 | I102: 249.78 | J102: 259.92 | K102: 239.65 | L102: 221.75 | M102: 19.36445
A103: 93 | B103: CENTURYPLY | C103: 168.05 | D103: 167.28 | E103: 165.77 | F103: 163.48 | G103: 161.97 | H103: 169.57 | I103: 171.08 | J103: 173.37 | K103: 168.8 | L103: 165 | M103: 1.9641
A104: 94 | B104: CERA | C104: 2615.95 | D104: 2603.83 | E104: 2563.37 | F104: 2510.78 | G104: 2470.32 | H104: 2656.42 | I104: 2696.88 | J104: 2749.47 | K104: 2644.3 | L104: 2551.25 | M104: 0.03718
A105: 95 | B105: CHALET | C105: 331 | D105: 332.10 | E105: 325.20 | F105: 319.40 | G105: 312.50 | H105: 337.90 | I105: 344.80 | J105: 350.60 | K105: 339 | L105: 326.3 | M105: 0.00952
A106: 96 | B106: CHAMBLFERT | C106: 164.6 | D106: 166.35 | E106: 161.75 | F106: 158.90 | G106: 154.30 | H106: 169.20 | I106: 173.80 | J106: 176.65 | K106: 170.95 | L106: 163.5 | M106: 2.38999
A107: 97 | B107: CHENNPETRO | C107: 154.65 | D107: 154.97 | E107: 153.18 | F107: 151.72 | G107: 149.93 | H107: 156.43 | I107: 158.22 | J107: 159.68 | K107: 156.75 | L107: 153.5 | M107: 0.58628
A108: 98 | B108: CHOLAHLDNG | C108: 475.4 | D108: 472.25 | E108: 464.50 | F108: 453.60 | G108: 445.85 | H108: 483.15 | I108: 490.90 | J108: 501.80 | K108: 480 | L108: 461.35 | M108: 1.14977
A109: 99 | B109: CHOLAFIN | C109: 297.95 | D109: 301.53 | E109: 293.52 | F109: 289.08 | G109: 281.07 | H109: 305.97 | I109: 313.98 | J109: 318.42 | K109: 309.55 | L109: 297.1 | M109: 10.70025
A110: 100 | B110: CIPLA | C110: 471.85 | D110: 476.42 | E110: 465.43 | F110: 459.02 | G110: 448.03 | H110: 482.83 | I110: 493.82 | J110: 500.23 | K110: 487.4 | L110: 470 | M110: 58.92783
A111: 101 | B111: CUB | C111: 211.65 | D111: 209.43 | E111: 206.37 | F111: 201.08 | G111: 198.02 | H111: 214.72 | I111: 217.78 | J111: 223.07 | K111: 212.5 | L111: 204.15 | M111: 12.15034
A112: 102 | B112: COALINDIA | C112: 212.5 | D112: 212.38 | E112: 211.02 | F112: 209.53 | G112: 208.17 | H112: 213.87 | I112: 215.23 | J112: 216.72 | K112: 213.75 | L112: 210.9 | M112: 35.2924
A113: 103 | B113: COCHINSHIP | C113: 398.15 | D113: 401.05 | E113: 393.10 | F113: 388.05 | G113: 380.10 | H113: 406.10 | I113: 414.05 | J113: 419.10 | K113: 409 | L113: 396 | M113: 0.9687
A114: 104 | B114: COFFEEDAY | C114: 38.9 | D114: 38.90 | E114: 38.90 | F114: 38.90 | G114: 38.90 | H114: 38.90 | I114: 38.90 | J114: 38.90 | K114: 38.9 | L114: 38.9 | M114: 0.4007
A115: 105 | B115: COLPAL | C115: 1601.3 | D115: 1582.43 | E115: 1553.87 | F115: 1506.43 | G115: 1477.87 | H115: 1629.87 | I115: 1658.43 | J115: 1705.87 | K115: 1611 | L115: 1535 | M115: 13.68053
A116: 106 | B116: CONCOR | C116: 579.6 | D116: 581.27 | E116: 576.13 | F116: 572.67 | G116: 567.53 | H116: 584.73 | I116: 589.87 | J116: 593.33 | K116: 586.4 | L116: 577.8 | M116: 5.42342
A117: 107 | B117: COROMANDEL | C117: 469.25 | D117: 470.35 | E117: 463.80 | F117: 458.35 | G117: 451.80 | H117: 475.80 | I117: 482.35 | J117: 487.80 | K117: 476.9 | L117: 464.9 | M117: 0.82685
A118: 108 | B118: CORPBANK | C118: 17.65 | D118: 17.98 | E118: 17.22 | F118: 16.78 | G118: 16.02 | H118: 18.42 | I118: 19.18 | J118: 19.62 | K118: 18.75 | L118: 17.55 | M118: 8.38394
A119: 109 | B119: COX&KINGS | C119: 1.5 | D119: 1.50 | E119: 1.50 | F119: 1.50 | G119: 1.50 | H119: 1.50 | I119: 1.50 | J119: 1.50 | K119: 1.5 | L119: 1.5 | M119: 5.27658
A120: 110 | B120: CREDITACC | C120: 693.8 | D120: 693.17 | E120: 686.28 | F120: 678.77 | G120: 671.88 | H120: 700.68 | I120: 707.57 | J120: 715.08 | K120: 700.05 | L120: 685.65 | M120: 0.46307
A121: 111 | B121: CROMPTON | C121: 255.1 | D121: 253.67 | E121: 250.53 | F121: 245.97 | G121: 242.83 | H121: 258.23 | I121: 261.37 | J121: 265.93 | K121: 256.8 | L121: 249.1 | M121: 9.13035
A122: 112 | B122: CUMMINSIND | C122: 552.2 | D122: 550.43 | E122: 547.02 | F122: 541.83 | G122: 538.42 | H122: 555.62 | I122: 559.03 | J122: 564.22 | K122: 553.85 | L122: 545.25 | M122: 6.81069
A123: 113 | B123: CYIENT | C123: 385.45 | D123: 387.43 | E123: 382.07 | F123: 378.68 | G123: 373.32 | H123: 390.82 | I123: 396.18 | J123: 399.57 | K123: 392.8 | L123: 384.05 | M123: 4.5596
A124: 114 | B124: DBCORP | C124: 148.2 | D124: 147.55 | E124: 146.60 | F124: 145.00 | G124: 144.05 | H124: 149.15 | I124: 150.10 | J124: 151.70 | K124: 148.5 | L124: 145.95 | M124: 0.1729
A125: 115 | B125: DCBBANK | C125: 182.85 | D125: 183.95 | E125: 180.90 | F125: 178.95 | G125: 175.90 | H125: 185.90 | I125: 188.95 | J125: 190.90 | K125: 187 | L125: 182 | M125: 5.46493
A126: 116 | B126: DCMSHRIRAM | C126: 356.6 | D126: 358.55 | E126: 353.55 | F126: 350.50 | G126: 345.50 | H126: 361.60 | I126: 366.60 | J126: 369.65 | K126: 363.55 | L126: 355.5 | M126: 0.61005
A127: 117 | B127: DLF | C127: 192.5 | D127: 192.87 | E127: 187.93 | F127: 183.37 | G127: 178.43 | H127: 197.43 | I127: 202.37 | J127: 206.93 | K127: 197.8 | L127: 188.3 | M127: 239.39489
A128: 118 | B128: DABUR | C128: 477.7 | D128: 476.83 | E128: 472.87 | F128: 468.03 | G128: 464.07 | H128: 481.67 | I128: 485.63 | J128: 490.47 | K128: 480.8 | L128: 472 | M128: 14.56741
A129: 119 | B129: DALBHARAT | C129: 825.2 | D129: 823.07 | E129: 817.13 | F129: 809.07 | G129: 803.13 | H129: 831.13 | I129: 837.07 | J129: 845.13 | K129: 829 | L129: 815 | M129: 1.21314
A130: 120 | B130: DEEPAKNTR | C130: 356.55 | D130: 356.47 | E130: 348.98 | F130: 341.42 | G130: 333.93 | H130: 364.03 | I130: 371.52 | J130: 379.08 | K130: 363.95 | L130: 348.9 | M130: 4.80522
A131: 121 | B131: DELTACORP | C131: 198.7 | D131: 199.35 | E131: 196.00 | F131: 193.30 | G131: 189.95 | H131: 202.05 | I131: 205.40 | J131: 208.10 | K131: 202.7 | L131: 196.65 | M131: 5.51575
A132: 122 | B132: DEN | C132: 42.95 | D132: 43.55 | E132: 41.40 | F132: 39.85 | G132: 37.70 | H132: 45.10 | I132: 47.25 | J132: 48.80 | K132: 45.7 | L132: 42 | M132: 0.95731
A133: 123 | B133: DHFL | C133: 22.2 | D133: 22.20 | E133: 22.20 | F133: 22.20 | G133: 22.20 | H133: 22.20 | I133: 22.20 | J133: 22.20 | K133: 22.2 | L133: 22.2 | M133: 2.29396
A134: 124 | B134: DBL | C134: 417 | D134: 421.70 | E134: 409.70 | F134: 402.40 | G134: 390.40 | H134: 429.00 | I134: 441.00 | J134: 448.30 | K134: 433.7 | L134: 414.4 | M134: 2.39064
A135: 125 | B135: DISHTV | C135: 14.15 | D135: 14.18 | E135: 13.82 | F135: 13.48 | G135: 13.12 | H135: 14.52 | I135: 14.88 | J135: 15.22 | K135: 14.55 | L135: 13.85 | M135: 294.99355
A136: 126 | B136: DCAL | C136: 124.15 | D136: 124.33 | E136: 120.02 | F136: 115.88 | G136: 111.57 | H136: 128.47 | I136: 132.78 | J136: 136.92 | K136: 128.65 | L136: 120.2 | M136: 7.1694
A137: 127 | B137: DIVISLAB | C137: 1718 | D137: 1707.55 | E137: 1691.55 | F137: 1665.10 | G137: 1649.10 | H137: 1734.00 | I137: 1750.00 | J137: 1776.45 | K137: 1723.55 | L137: 1681.1 | M137: 3.62279
A138: 128 | B138: DIXON | C138: 2747 | D138: 2739.77 | E138: 2669.78 | F138: 2592.57 | G138: 2522.58 | H138: 2816.98 | I138: 2886.97 | J138: 2964.18 | K138: 2809.75 | L138: 2662.55 | M138: 0.28715
A139: 129 | B139: LALPATHLAB | C139: 1495.75 | D139: 1496.57 | E139: 1487.23 | F139: 1478.72 | G139: 1469.38 | H139: 1505.08 | I139: 1514.42 | J139: 1522.93 | K139: 1505.9 | L139: 1488.05 | M139: 0.81843
A140: 130 | B140: DRREDDY | C140: 2871.05 | D140: 2861.08 | E140: 2838.97 | F140: 2806.88 | G140: 2784.77 | H140: 2893.17 | I140: 2915.28 | J140: 2947.37 | K140: 2883.2 | L140: 2829 | M140: 4.41155
A141: 131 | B141: EIDPARRY | C141: 168.8 | D141: 168.63 | E141: 165.27 | F141: 161.73 | G141: 158.37 | H141: 172.17 | I141: 175.53 | J141: 179.07 | K141: 172 | L141: 165.1 | M141: 1.22
A142: 132 | B142: EIHOTEL | C142: 158 | D142: 159.00 | E142: 156.50 | F142: 155.00 | G142: 152.50 | H142: 160.50 | I142: 163.00 | J142: 164.50 | K142: 161.5 | L142: 157.5 | M142: 1.30066
A143: 133 | B143: EDELWEISS | C143: 105.6 | D143: 105.60 | E143: 105.60 | F143: 105.60 | G143: 105.60 | H143: 105.60 | I143: 105.60 | J143: 105.60 | K143: 105.6 | L143: 105.6 | M143: 1.54265
A144: 134 | B144: EICHERMOT | C144: 21423.95 | D144: 21431.70 | E144: 21163.40 | F144: 20902.85 | G144: 20634.55 | H144: 21692.25 | I144: 21960.55 | J144: 22221.10 | K144: 21700 | L144: 21171.15 | M144: 1.05586
A145: 135 | B145: ELGIEQUIP | C145: 279.95 | D145: 280.02 | E145: 276.03 | F145: 272.12 | G145: 268.13 | H145: 283.93 | I145: 287.92 | J145: 291.83 | K145: 284 | L145: 276.1 | M145: 0.03505
A146: 136 | B146: EMAMILTD | C146: 325.75 | D146: 326.43 | E146: 321.97 | F146: 318.18 | G146: 313.72 | H146: 330.22 | I146: 334.68 | J146: 338.47 | K146: 330.9 | L146: 322.65 | M146: 5.39891
A147: 137 | B147: ENDURANCE | C147: 1122.2 | D147: 1124.00 | E147: 1109.00 | F147: 1095.80 | G147: 1080.80 | H147: 1137.20 | I147: 1152.20 | J147: 1165.40 | K147: 1139 | L147: 1110.8 | M147: 0.1474
A148: 138 | B148: ENGINERSIN | C148: 110.85 | D148: 112.30 | E148: 109.10 | F148: 107.35 | G148: 104.15 | H148: 114.05 | I148: 117.25 | J148: 119.00 | K148: 115.5 | L148: 110.55 | M148: 7.57911
A149: 139 | B149: EQUITAS | C149: 99.35 | D149: 100.42 | E149: 97.93 | F149: 96.52 | G149: 94.03 | H149: 101.83 | I149: 104.32 | J149: 105.73 | K149: 102.9 | L149: 99 | M149: 39.52456
A150: 140 | B150: ERIS | C150: 425.55 | D150: 421.08 | E150: 411.67 | F150: 397.78 | G150: 388.37 | H150: 434.97 | I150: 444.38 | J150: 458.27 | K150: 430.5 | L150: 407.2 | M150: 1.07568
A151: 141 | B151: ESCORTS | C151: 647.9 | D151: 650.18 | E151: 641.12 | F151: 634.33 | G151: 625.27 | H151: 656.97 | I151: 666.03 | J151: 672.82 | K151: 659.25 | L151: 643.4 | M151: 12.23367
A152: 142 | B152: ESSELPACK | C152: 118.65 | D152: 118.08 | E152: 116.27 | F152: 113.88 | G152: 112.07 | H152: 120.47 | I152: 122.28 | J152: 124.67 | K152: 119.9 | L152: 115.7 | M152: 0.82038
A153: 143 | B153: EXIDEIND | C153: 188.7 | D153: 189.78 | E153: 186.92 | F153: 185.13 | G153: 182.27 | H153: 191.57 | I153: 194.43 | J153: 196.22 | K153: 192.65 | L153: 188 | M153: 34.11971
A154: 144 | B154: FDC | C154: 177.65 | D154: 177.97 | E154: 176.43 | F154: 175.22 | G154: 173.68 | H154: 179.18 | I154: 180.72 | J154: 181.93 | K154: 179.5 | L154: 176.75 | M154: 1.95588
A155: 145 | B155: FEDERALBNK | C155: 83.95 | D155: 84.30 | E155: 83.15 | F155: 82.35 | G155: 81.20 | H155: 85.10 | I155: 86.25 | J155: 87.05 | K155: 85.45 | L155: 83.5 | M155: 103.63401
A156: 146 | B156: FMGOETZE | C156: 630.65 | D156: 608.02 | E156: 566.03 | F156: 501.42 | G156: 459.43 | H156: 672.63 | I156: 714.62 | J156: 779.23 | K156: 650 | L156: 543.4 | M156: 3.53887
A157: 147 | B157: FINEORG | C157: 1932.5 | D157: 1925.83 | E157: 1911.67 | F157: 1890.83 | G157: 1876.67 | H157: 1946.67 | I157: 1960.83 | J157: 1981.67 | K157: 1940 | L157: 1905 | M157: 0.03263
A158: 148 | B158: FINCABLES | C158: 375.95 | D158: 378.30 | E158: 372.65 | F158: 369.35 | G158: 363.70 | H158: 381.60 | I158: 387.25 | J158: 390.55 | K158: 383.95 | L158: 375 | M158: 0.27041
A159: 149 | B159: FINPIPE | C159: 608.15 | D159: 602.98 | E159: 588.17 | F159: 568.18 | G159: 553.37 | H159: 622.97 | I159: 637.78 | J159: 657.77 | K159: 617.8 | L159: 583 | M159: 0.6418
A160: 150 | B160: FSL | C160: 46.3 | D160: 46.18 | E160: 45.62 | F160: 44.93 | G160: 44.37 | H160: 46.87 | I160: 47.43 | J160: 48.12 | K160: 46.75 | L160: 45.5 | M160: 15.66112
A161: 151 | B161: FORTIS | C161: 150.8 | D161: 151.03 | E161: 147.67 | F161: 144.53 | G161: 141.17 | H161: 154.17 | I161: 157.53 | J161: 160.67 | K161: 154.4 | L161: 147.9 | M161: 134.76171
A162: 152 | B162: FCONSUMER | C162: 25.65 | D162: 25.90 | E162: 25.20 | F162: 24.75 | G162: 24.05 | H162: 26.35 | I162: 27.05 | J162: 27.50 | K162: 26.6 | L162: 25.45 | M162: 7.11368
A163: 153 | B163: FLFL | C163: 398.05 | D163: 396.62 | E163: 392.33 | F163: 386.62 | G163: 382.33 | H163: 402.33 | I163: 406.62 | J163: 412.33 | K163: 400.9 | L163: 390.9 | M163: 0.0568
A164: 154 | B164: FRETAIL | C164: 360.35 | D164: 359.33 | E164: 352.67 | F164: 344.98 | G164: 338.32 | H164: 367.02 | I164: 373.68 | J164: 381.37 | K164: 366 | L164: 351.65 | M164: 2.19007
A165: 155 | B165: GAIL | C165: 132.1 | D165: 133.58 | E165: 129.82 | F165: 127.53 | G165: 123.77 | H165: 135.87 | I165: 139.63 | J165: 141.92 | K165: 137.35 | L165: 131.3 | M165: 112.64143
A166: 156 | B166: GEPIL | C166: 683.85 | D166: 685.95 | E166: 674.00 | F166: 664.15 | G166: 652.20 | H166: 695.80 | I166: 707.75 | J166: 717.60 | K166: 697.9 | L166: 676.1 | M166: 0.16279
A167: 157 | B167: GET&D | C167: 168.6 | D167: 169.70 | E167: 165.90 | F167: 163.20 | G167: 159.40 | H167: 172.40 | I167: 176.20 | J167: 178.90 | K167: 173.5 | L167: 167 | M167: 0.32126
A168: 158 | B168: GHCL | C168: 210.3 | D168: 211.77 | E168: 208.53 | F168: 206.77 | G168: 203.53 | H168: 213.53 | I168: 216.77 | J168: 218.53 | K168: 215 | L168: 210 | M168: 0.54914
A169: 159 | B169: GMRINFRA | C169: 22.3 | D169: 22.22 | E169: 21.88 | F169: 21.47 | G169: 21.13 | H169: 22.63 | I169: 22.97 | J169: 23.38 | K169: 22.55 | L169: 21.8 | M169: 229.8016
A170: 160 | B170: GALAXYSURF | C170: 1480.6 | D170: 1482.88 | E170: 1467.77 | F170: 1454.93 | G170: 1439.82 | H170: 1495.72 | I170: 1510.83 | J170: 1523.67 | K170: 1498 | L170: 1470.05 | M170: 0.03531
A171: 161 | B171: GARFIBRES | C171: 1203.55 | D171: 1201.08 | E171: 1193.47 | F171: 1183.38 | G171: 1175.77 | H171: 1211.17 | I171: 1218.78 | J171: 1228.87 | K171: 1208.7 | L171: 1191 | M171: 0.01327
A172: 162 | B172: GAYAPROJ | C172: 112.45 | D172: 112.48 | E172: 110.22 | F172: 107.98 | G172: 105.72 | H172: 114.72 | I172: 116.98 | J172: 119.22 | K172: 114.75 | L172: 110.25 | M172: 0.35065
A173: 163 | B173: GICRE | C173: 281.1 | D173: 283.73 | E173: 275.42 | F173: 269.73 | G173: 261.42 | H173: 289.42 | I173: 297.73 | J173: 303.42 | K173: 292.05 | L173: 278.05 | M173: 2.63358
A174: 164 | B174: GILLETTE | C174: 7511.85 | D174: 7561.95 | E174: 7440.90 | F174: 7369.95 | G174: 7248.90 | H174: 7632.90 | I174: 7753.95 | J174: 7824.90 | K174: 7683 | L174: 7491 | M174: 0.05817
A175: 165 | B175: GLAXO | C175: 1620.65 | D175: 1619.52 | E175: 1602.13 | F175: 1583.62 | G175: 1566.23 | H175: 1638.03 | I175: 1655.42 | J175: 1673.93 | K175: 1636.9 | L175: 1601 | M175: 0.38537
A176: 166 | B176: GLENMARK | C176: 293.85 | D176: 295.05 | E176: 286.10 | F176: 278.35 | G176: 269.40 | H176: 302.80 | I176: 311.75 | J176: 319.50 | K176: 304 | L176: 287.3 | M176: 27.94278
A177: 167 | B177: GODFRYPHLP | C177: 1135.2 | D177: 1132.82 | E177: 1118.38 | F177: 1101.57 | G177: 1087.13 | H177: 1149.63 | I177: 1164.07 | J177: 1180.88 | K177: 1147.25 | L177: 1116 | M177: 0.56405
A178: 168 | B178: GODREJAGRO | C178: 491.95 | D178: 489.78 | E178: 482.17 | F178: 472.38 | G178: 464.77 | H178: 499.57 | I178: 507.18 | J178: 516.97 | K178: 497.4 | L178: 480 | M178: 1.03168
A179: 169 | B179: GODREJCP | C179: 752.65 | D179: 752.88 | E179: 741.77 | F179: 730.88 | G179: 719.77 | H179: 763.77 | I179: 774.88 | J179: 785.77 | K179: 764 | L179: 742 | M179: 10.38973
A180: 170 | B180: GODREJIND | C180: 425 | D180: 427.07 | E180: 420.13 | F180: 415.27 | G180: 408.33 | H180: 431.93 | I180: 438.87 | J180: 443.73 | K180: 434 | L180: 422.2 | M180: 1.10753
A181: 171 | B181: GODREJPROP | C181: 989.8 | D181: 1000.20 | E181: 975.40 | F181: 961.00 | G181: 936.20 | H181: 1014.60 | I181: 1039.40 | J181: 1053.80 | K181: 1025 | L181: 985.8 | M181: 4.04576
A182: 172 | B182: GRANULES | C182: 119.9 | D182: 120.07 | E182: 118.13 | F182: 116.37 | G182: 114.43 | H182: 121.83 | I182: 123.77 | J182: 125.53 | K182: 122 | L182: 118.3 | M182: 5.77518
A183: 173 | B183: GRAPHITE | C183: 307 | D183: 304.37 | E183: 298.73 | F183: 290.47 | G183: 284.83 | H183: 312.63 | I183: 318.27 | J183: 326.53 | K183: 310 | L183: 296.1 | M183: 19.89859
A184: 174 | B184: GRASIM | C184: 777.85 | D184: 777.08 | E184: 772.17 | F184: 766.48 | G184: 761.57 | H184: 782.77 | I184: 787.68 | J184: 793.37 | K184: 782 | L184: 771.4 | M184: 11.33781
A185: 175 | B185: GESHIP | C185: 292.45 | D185: 292.62 | E185: 286.23 | F185: 280.02 | G185: 273.63 | H185: 298.83 | I185: 305.22 | J185: 311.43 | K185: 299 | L185: 286.4 | M185: 1.8711
A186: 176 | B186: GREAVESCOT | C186: 131.7 | D186: 131.55 | E186: 128.70 | F186: 125.70 | G186: 122.85 | H186: 134.55 | I186: 137.40 | J186: 140.40 | K186: 134.4 | L186: 128.55 | M186: 1.51313
A187: 177 | B187: GRINDWELL | C187: 598.2 | D187: 597.95 | E187: 593.45 | F187: 588.70 | G187: 584.20 | H187: 602.70 | I187: 607.20 | J187: 611.95 | K187: 602.45 | L187: 593.2 | M187: 1.42861
A188: 178 | B188: GUJALKALI | C188: 415.05 | D188: 428.32 | E188: 396.73 | F188: 378.42 | G188: 346.83 | H188: 446.63 | I188: 478.22 | J188: 496.53 | K188: 459.9 | L188: 410 | M188: 2.88667
A189: 179 | B189: GUJGASLTD | C189: 194.15 | D189: 194.98 | E189: 191.97 | F189: 189.78 | G189: 186.77 | H189: 197.17 | I189: 200.18 | J189: 202.37 | K189: 198 | L189: 192.8 | M189: 7.38762
A190: 180 | B190: GMDCLTD | C190: 63.15 | D190: 63.07 | E190: 62.58 | F190: 62.02 | G190: 61.53 | H190: 63.63 | I190: 64.12 | J190: 64.68 | K190: 63.55 | L190: 62.5 | M190: 0.621
A191: 181 | B191: GNFC | C191: 206 | D191: 206.08 | E191: 202.92 | F191: 199.83 | G191: 196.67 | H191: 209.17 | I191: 212.33 | J191: 215.42 | K191: 209.25 | L191: 203 | M191: 3.51698
A192: 182 | B192: GPPL | C192: 86.3 | D192: 86.32 | E192: 83.78 | F192: 81.27 | G192: 78.73 | H192: 88.83 | I192: 91.37 | J192: 93.88 | K192: 88.85 | L192: 83.8 | M192: 3.29204
A193: 183 | B193: GSFC | C193: 77.85 | D193: 77.93 | E193: 77.12 | F193: 76.38 | G193: 75.57 | H193: 78.67 | I193: 79.48 | J193: 80.22 | K193: 78.75 | L193: 77.2 | M193: 2.57257
A194: 184 | B194: GSPL | C194: 214.85 | D194: 214.87 | E194: 210.03 | F194: 205.22 | G194: 200.38 | H194: 219.68 | I194: 224.52 | J194: 229.33 | K194: 219.7 | L194: 210.05 | M194: 2.63768
A195: 185 | B195: GULFOILLUB | C195: 852.5 | D195: 854.25 | E195: 846.25 | F195: 840.00 | G195: 832.00 | H195: 860.50 | I195: 868.50 | J195: 874.75 | K195: 862.25 | L195: 848 | M195: 0.02317
A196: 186 | B196: HEG | C196: 1025.45 | D196: 1022.92 | E196: 1007.53 | F196: 989.62 | G196: 974.23 | H196: 1040.83 | I196: 1056.22 | J196: 1074.13 | K196: 1038.3 | L196: 1005 | M196: 4.99278
A197: 187 | B197: HCLTECH | C197: 1148.45 | D197: 1146.25 | E197: 1138.30 | F197: 1128.15 | G197: 1120.20 | H197: 1156.40 | I197: 1164.35 | J197: 1174.50 | K197: 1154.2 | L197: 1136.1 | M197: 12.69319
A198: 188 | B198: HDFCAMC | C198: 3016.75 | D198: 2982.68 | E198: 2926.37 | F198: 2835.98 | G198: 2779.67 | H198: 3073.07 | I198: 3129.38 | J198: 3219.77 | K198: 3039 | L198: 2892.3 | M198: 12.7233
A199: 189 | B199: HDFCBANK | C199: 1263.7 | D199: 1261.13 | E199: 1252.57 | F199: 1241.43 | G199: 1232.87 | H199: 1272.27 | I199: 1280.83 | J199: 1291.97 | K199: 1269.7 | L199: 1250 | M199: 84.81517
A200: 190 | B200: HDFCLIFE | C200: 580.15 | D200: 581.68 | E200: 574.62 | F200: 569.08 | G200: 562.02 | H200: 587.22 | I200: 594.28 | J200: 599.82 | K200: 588.75 | L200: 576.15 | M200: 32.17588
A201: 191 | B201: HATHWAY | C201: 21.2 | D201: 21.27 | E201: 20.93 | F201: 20.67 | G201: 20.33 | H201: 21.53 | I201: 21.87 | J201: 22.13 | K201: 21.6 | L201: 21 | M201: 1.21183
A202: 192 | B202: HATSUN | C202: 597.15 | D202: 599.37 | E202: 590.78 | F202: 584.42 | G202: 575.83 | H202: 605.73 | I202: 614.32 | J202: 620.68 | K202: 607.95 | L202: 593 | M202: 0.02236
A203: 193 | B203: HAVELLS | C203: 710 | D203: 705.13 | E203: 695.67 | F203: 681.33 | G203: 671.87 | H203: 719.47 | I203: 728.93 | J203: 743.27 | K203: 714.6 | L203: 690.8 | M203: 27.60947
A204: 194 | B204: HEIDELBERG | C204: 196.85 | D204: 198.65 | E204: 193.30 | F204: 189.75 | G204: 184.40 | H204: 202.20 | I204: 207.55 | J204: 211.10 | K204: 204 | L204: 195.1 | M204: 4.3512
A205: 195 | B205: HERITGFOOD | C205: 340.2 | D205: 338.68 | E205: 331.62 | F205: 323.03 | G205: 315.97 | H205: 347.27 | I205: 354.33 | J205: 362.92 | K205: 345.75 | L205: 330.1 | M205: 0.26516
A206: 196 | B206: HEROMOTOCO | C206: 2660.85 | D206: 2659.12 | E206: 2644.73 | F206: 2628.62 | G206: 2614.23 | H206: 2675.23 | I206: 2689.62 | J206: 2705.73 | K206: 2673.5 | L206: 2643 | M206: 4.40308
... 320 more rows

Sheet Bulk Deals
E6: Back To Main Page
A7: Subject : | B7: BULK DEAL | D7: =Main!B10 -> 2019-11-08
A9: Date | B9: Scrip code | C9: Scrip Name | D9: Client Name | E9: Buy / Sell | F9: Quantity Traded | G9: Trade Price / Wt.Avg.trade price | H9: Exchange
A10: 2019-11-07 | B10: 542580 | C10: AARTECH | D10: FORTUNE FUTURES PRIVATE LIMITED CO | E10: BUY | F10: 56,000 | G10: 34.13 | H10: BSE
A11: 2019-11-07 | B11: 542580 | C11: AARTECH | D11: NIKESH AGRO FARMS AND INFRASTRUCTURE PRIVATE LTD | E11: SELL | F11: 56,000 | G11: 34.13 | H11: BSE
A12: 2019-11-07 | B12: 541401 | C12: ARIHANTINS | D12: ASHISH HASAMUKHLAL SHAH | E12: BUY | F12: 84,000 | G12: 6.44 | H12: BSE
A13: 2019-11-07 | B13: 541401 | C13: ARIHANTINS | D13: DHAVAL VIPULBHAI SHAH | E13: SELL | F13: 56,000 | G13: 6.38 | H13: BSE
A14: 2019-11-07 | B14: 539266 | C14: CONCRETE | D14: SURESH RAJA | E14: BUY | F14: 41,705 | G14: 4.62 | H14: BSE
A15: 2019-11-07 | B15: 539770 | C15: DARJEELING | D15: VIDHI NIKUNJ SHAH | E15: BUY | F15: 21,176 | G15: 96.25 | H15: BSE
A16: 2019-11-07 | B16: 539770 | C16: DARJEELING | D16: VIDHI NIKUNJ SHAH | E16: SELL | F16: 3,500 | G16: 95.6 | H16: BSE
A17: 2019-11-07 | B17: 542666 | C17: GKP | D17: DIMPLE VIPUL PATEL . | E17: SELL | F17: 56,000 | G17: 34.30 | H17: BSE
A18: 2019-11-07 | B18: 542666 | C18: GKP | D18: H V VORA HUF | E18: BUY | F18: 56,000 | G18: 34.30 | H18: BSE
A19: 2019-11-07 | B19: 538765 | C19: JSHL | D19: VIVEK DWIVEDI | E19: BUY | F19: 55,000 | G19: 10.47 | H19: BSE
A20: 2019-11-07 | B20: 538765 | C20: JSHL | D20: VIVEK DWIVEDI | E20: SELL | F20: 65,000 | G20: 10.45 | H20: BSE
A21: 2019-11-07 | B21: 540809 | C21: MRCEXIM | D21: ASHOK AMRITLAL SHAH | E21: SELL | F21: 200,000 | G21: 5.29 | H21: BSE
A22: 2019-11-07 | B22: 540809 | C22: MRCEXIM | D22: BHARAT MALHOTRA | E22: BUY | F22: 160,000 | G22: 5.34 | H22: BSE
A23: 2019-11-07 | B23: 512489 | C23: OASISEC | D23: RANGNATH SOMANI | E23: SELL | F23: 73,778 | G23: 25 | H23: BSE
A24: 2019-11-07 | B24: 512489 | C24: OASISEC | D24: ANIL KUMAR BAGRI | E24: BUY | F24: 73,778 | G24: 25.00 | H24: BSE
A25: 2019-11-07 | B25: 539814 | C25: RADHEY | D25: AMIT JUGRAJ JAIN | E25: BUY | F25: 35,010 | G25: 19.78 | H25: BSE
A26: 2019-11-07 | B26: 539814 | C26: RADHEY | D26: SHIV PARVATI LEASING PRIVATE LIMITED | E26: SELL | F26: 60,000 | G26: 19.73 | H26: BSE
A27: 2019-11-07 | B27: 539814 | C27: RADHEY | D27: SHEETAL JAIN R | E27: BUY | F27: 20,000 | G27: 20.4 | H27: BSE
A28: 2019-11-07 | B28: 542019 | C28: SHUBHAM | D28: CHANDAN GARG | E28: SELL | F28: 33,000 | G28: 75 | H28: BSE
A29: 2019-11-07 | B29: 542019 | C29: SHUBHAM | D29: KAMALCHAND JAIN (HUF) | E29: BUY | F29: 33,000 | G29: 75 | H29: BSE
A30: 2019-11-07 | B30: 542019 | C30: SHUBHAM | D30: KAMALCHAND JAIN (HUF) | E30: SELL | F30: 24,000 | G30: 86.15 | H30: BSE
A31: 2019-11-07 | B31: 502742 | C31: SINTEX | D31: IDBI TRUSTEESHIP SERVICES LTD | E31: SELL | F31: 7,152,031 | G31: 0.58 | H31: BSE
A32: 2019-11-07 | B32: AIRAN | C32: Airan Limited | D32: FORTUNE INVESTMENT | E32: BUY | F32: 2,225,000 | G32: 12.15 | H32: NSE
A33: 2019-11-07 | B33: AIRAN | C33: Airan Limited | D33: GLOBAL TRADING AND INVESTMENT | E33: BUY | F33: 14,322 | G33: 11.74 | H33: NSE
A34: 2019-11-07 | B34: ASTRON | C34: Astron Paper Bord Mil Ltd | D34: ALPHA LEON ENTERPRISES LLP | E34: BUY | F34: 626,879 | G34: 41.1 | H34: NSE
A35: 2019-11-07 | B35: BKMINDST | C35: BKM Industries Limited | D35: ANIKET GUPTA | E35: BUY | F35: 500,000 | G35: 0.8 | H35: NSE
A36: 2019-11-07 | B36: GLOBUSSPR | C36: Globus Spirits Limited | D36: ARKAYA INVESTMENTS | E36: BUY | F36: 169,590 | G36: 143.62 | H36: NSE
A37: 2019-11-07 | B37: IBULHSGFIN | C37: Indiabulls Hsg Fin Ltd | D37: SURJECTIVE RESEARCH CAPITAL LLP | E37: BUY | F37: 3,974,642 | G37: 241.49 | H37: NSE
A38: 2019-11-07 | B38: IBULHSGFIN | C38: Indiabulls Hsg Fin Ltd | D38: QE SECURITIES | E38: BUY | F38: 2,243,731 | G38: 241.6 | H38: NSE
A39: 2019-11-07 | B39: IBULHSGFIN | C39: Indiabulls Hsg Fin Ltd | D39: CENTILLION RESEARCH INDIA LLP | E39: BUY | F39: 2,451,479 | G39: 242.43 | H39: NSE
A40: 2019-11-07 | B40: IBULHSGFIN | C40: Indiabulls Hsg Fin Ltd | D40: SHADOWFAX TRADERS RAMESH CHAND JAIN | E40: BUY | F40: 2,339,521 | G40: 241.32 | H40: NSE
A41: 2019-11-07 | B41: IBULHSGFIN | C41: Indiabulls Hsg Fin Ltd | D41: GRAVITON RESEARCH CAPITAL LLP | E41: BUY | F41: 2,470,229 | G41: 240.84 | H41: NSE
A42: 2019-11-07 | B42: IBULHSGFIN | C42: Indiabulls Hsg Fin Ltd | D42: TOWER RESEARCH CAPITAL MARKETS INDIA PRIVATE LIMITED | E42: BUY | F42: 3,320,386 | G42: 241.4 | H42: NSE
A43: 2019-11-07 | B43: IBULHSGFIN | C43: Indiabulls Hsg Fin Ltd | D43: ALPHAGREP COMMODITIES PRIVATE LIMITED | E43: BUY | F43: 2,799,224 | G43: 241.4 | H43: NSE
A44: 2019-11-07 | B44: JINDALSTEL | C44: Jindal Steel & Power | D44: SURJECTIVE RESEARCH CAPITAL LLP | E44: BUY | F44: 5,424,258 | G44: 143.99 | H44: NSE
A45: 2019-11-07 | B45: JKIL | C45: J.Kumar Infraprojects Lim | D45: HDFC MUTUAL FUND | E45: BUY | F45: 1,035,000 | G45: 150.5 | H45: NSE
A46: 2019-11-07 | B46: RIIL | C46: Reliance Indl Infra Ltd | D46: N.K.SECURITIES | E46: BUY | F46: 84,057 | G46: 327.2 | H46: NSE
A47: 2019-11-07 | B47: SANCO | C47: Sanco Industries Ltd. | D47: RESOURCE OPZIONE CONSULTANCY PRIVATE LIMITED | E47: BUY | F47: 126,725 | G47: 16.05 | H47: NSE
A48: 2019-11-07 | B48: YESBANK | C48: Yes Bank Limited | D48: TOWER RESEARCH CAPITAL MARKETS INDIA PRIVATE LIMITED | E48: BUY | F48: 14,944,723 | G48: 67.83 | H48: NSE
A49: 2019-11-07 | B49: AIRAN | C49: Airan Limited | D49: GLOBAL TRADING AND INVESTMENT | E49: SELL | F49: 2,230,010 | G49: 12.15 | H49: NSE
A50: 2019-11-07 | B50: ASTRON | C50: Astron Paper Bord Mil Ltd | D50: EURO PLUS CAPITAL LIMITED | E50: SELL | F50: 280,974 | G50: 41.09 | H50: NSE
A51: 2019-11-07 | B51: ASTRON | C51: Astron Paper Bord Mil Ltd | D51: SHAH NIRAJ | E51: SELL | F51: 270,024 | G51: 41.19 | H51: NSE
A52: 2019-11-07 | B52: ASTRON | C52: Astron Paper Bord Mil Ltd | D52: ALPHA LEON ENTERPRISES LLP | E52: SELL | F52: 593,466 | G52: 41.24 | H52: NSE
A53: 2019-11-07 | B53: BKMINDST | C53: BKM Industries Limited | D53: NISHTHA INVESTMENT & CONSULTANCY SERVICES PVT. LTD. | E53: SELL | F53: 568,331 | G53: 0.76 | H53: NSE
A54: 2019-11-07 | B54: GLOBUSSPR | C54: Globus Spirits Limited | D54: ARKAYA INVESTMENTS | E54: SELL | F54: 178,590 | G54: 143.61 | H54: NSE
A55: 2019-11-07 | B55: IBULHSGFIN | C55: Indiabulls Hsg Fin Ltd | D55: SURJECTIVE RESEARCH CAPITAL LLP | E55: SELL | F55: 3,975,650 | G55: 241.57 | H55: NSE
A56: 2019-11-07 | B56: IBULHSGFIN | C56: Indiabulls Hsg Fin Ltd | D56: SHADOWFAX TRADERS RAMESH CHAND JAIN | E56: SELL | F56: 2,339,521 | G56: 241.42 | H56: NSE
A57: 2019-11-07 | B57: IBULHSGFIN | C57: Indiabulls Hsg Fin Ltd | D57: TOWER RESEARCH CAPITAL MARKETS INDIA PRIVATE LIMITED | E57: SELL | F57: 3,354,263 | G57: 241.61 | H57: NSE
A58: 2019-11-07 | B58: IBULHSGFIN | C58: Indiabulls Hsg Fin Ltd | D58: ALPHAGREP COMMODITIES PRIVATE LIMITED | E58: SELL | F58: 2,799,224 | G58: 241.5 | H58: NSE
A59: 2019-11-07 | B59: IBULHSGFIN | C59: Indiabulls Hsg Fin Ltd | D59: GRAVITON RESEARCH CAPITAL LLP | E59: SELL | F59: 2,470,229 | G59: 241.17 | H59: NSE
A60: 2019-11-07 | B60: IBULHSGFIN | C60: Indiabulls Hsg Fin Ltd | D60: QE SECURITIES | E60: SELL | F60: 2,243,572 | G60: 242.33 | H60: NSE
A61: 2019-11-07 | B61: IBULHSGFIN | C61: Indiabulls Hsg Fin Ltd | D61: CENTILLION RESEARCH INDIA LLP | E61: SELL | F61: 2,451,479 | G61: 242.58 | H61: NSE
A62: 2019-11-07 | B62: JINDALSTEL | C62: Jindal Steel & Power | D62: SURJECTIVE RESEARCH CAPITAL LLP | E62: SELL | F62: 5,422,878 | G62: 144.12 | H62: NSE
A63: 2019-11-07 | B63: JKIL | C63: J.Kumar Infraprojects Lim | D63: SMALLCAP WORLD FUND INC | E63: SELL | F63: 689,814 | G63: 150.5 | H63: NSE
A64: 2019-11-07 | B64: PRSMJOHNSN | C64: Prism Johnson LTD | D64: GOVERNMENT PENSION FUND GLOBAL | E64: SELL | F64: 4512647 | G64: 73 | H64: NSE
A65: 2019-11-07 | B65: RCOM | C65: Reliance Comm. Ltd. | D65: AXIS TRUSTEE SERVICES LIMITED | E65: SELL | F65: 50000000 | G65: 0.66 | H65: NSE
A66: 2019-11-07 | B66: RIIL | C66: Reliance Indl Infra Ltd | D66: N.K.SECURITIES | E66: SELL | F66: 84057 | G66: 327.43 | H66: NSE
A67: 2019-11-07 | B67: SANCO | C67: Sanco Industries Ltd. | D67: BHAMINI KAMAL PAREKH | E67: SELL | F67: 127000 | G67: 16.05 | H67: NSE
A68: 2019-11-07 | B68: YESBANK | C68: Yes Bank Limited | D68: TOWER RESEARCH CAPITAL MARKETS INDIA PRIVATE LIMITED | E68: SELL | F68: 14036707 | G68: 67.84 | H68: NSE

Sheet Call Tracker (Equity & F&O)
M5: Back To Main Page
A6: Retail Research Technical Calls & Fundamental Performance Report for the month of November-2019
M7: =Main!B10 -> 2019-11-08
B8: Positional Call
A9: Sr.no | B9: Date | D9: Company | E9: Rec | F9: Rec Price | G9: Stop Loss*** | H9: Call Closed At | I9: Target | J9: Remark | K9: Profit / Loss per Share | L9: Gain / Loss % | M9: Status | N9: Closed Date | O9: NSE Closed Price
A10: 1 | B10: 2019-09-26 | D10: HDFC | E10: Buy | F10: 2070 | G10: 1940 | H10: 2165 | I10: 2250-2300 | J10: Profit of Rs.95/- | K10: =H10-F10 -> 95 | L10: =K10/F10 -> 4.59% | M10: Successful | N10: 2019-11-01 | R10: H
A11: 2 | B11: 2019-10-01 | D11: UPL | E11: Buy | F11: 595 | G11: 564 | H11: 599.5 | I11: 650-660 | J11: Profit of Rs.4.50/- | K11: 4.5 | L11: 0.76% | M11: Neutral | N11: 2019-11-07 | R11: R
A12: 3 | B12: 2019-10-07 | D12: PIDILITIND | E12: Buy | F12: 1367.5 | G12: 1297 | H12: 1413.5 | I12: 1500-1520 | J12: Part Profit of Rs.46/- | K12: =H12-F12 -> 46 | L12: =K12/F12 -> 3.36% | M12: Successful | N12: 2019-10-31 | O12: =VLOOKUP(D12,Sheet2!A51:M1690,6,0) -> 1382.6 | R12: R
A13: 4 | B13: 2019-10-22 | D13: HEIDELBERG | E13: Buy | F13: 188.5 | G13: 178 | H13: 199 | I13: 205-210 | J13: Profit of Rs.10.50/- | K13: 10.5 | L13: 5.57% | M13: Successful | N13: 2019-11-05 | R13: H
A14: 5 | B14: 2019-10-27 | D14: AMBUJACEM | E14: Buy | F14: 197 | G14: 185.4 | H14: 203.5 | I14: 216-220 | J14: Part Profit of Rs.6.5/- | K14: =H14-F14 -> 6.5 | L14: =K14/F14 -> 3.30% | M14: Successful | N14: 2019-10-30 | O14: =VLOOKUP(D14,Sheet2!A60:M1699,6,0) -> 203.2 | R14: R
A15: 6 | B15: 2019-11-04 | D15: UBL | E15: Buy | F15: 1240 | G15: 1178 | H15: 1277.5 | I15: 1340-1360 | J15: Part Profit of Rs.37.50/- | K15: =H15-F15 -> 37.5 | L15: =K15/F15 -> 3.02% | M15: Successful | N15: 2019-11-06 | O15: =VLOOKUP(D15,Sheet2!A61:M1700,6,0) -> 1236.6 | R15: H
A16: 7 | B16: 2019-11-05 | D16: TATAMOTORS | E16: Sell | F16: 172-174 | G16: 183.3 | I16: 158-155 | J16: Open | O16: =VLOOKUP(D16,Sheet2!A62:M1701,6,0) -> 171.5 | R16: R
A17: 8 | B17: 2019-11-06 | D17: BANDHANBNK | E17: Buy | F17: 570-575 | G17: 538 | I17: 630-650 | J17: Open | O17: =VLOOKUP(D17,Sheet2!A63:M1702,6,0) -> 568.6 | R17: H
A18: 9 | B18: 2019-11-07 | D18: PRESTIGE | E18: Buy | F18: 310-314 | G18: 288 | I18: 340-360 | J18: Open
A19: 10 | B19: 2019-11-07 | D19: JINDALSTEL | E19: Sell | F19: 138 | G19: 148.3 | H19: 143 | I19: 120-117 | J19: Loss of Rs.5/- | K19: =F19-H19 -> -5 | L19: =K19/F19 -> -3.62% | M19: Unsuccessful | N19: 2019-11-07
A30: CLBS = Closing Basis ***
A31: Dividend adjusted <> | F31: Reinitiated $
A32: Part book {} | F32: Revised stoploss #
B34: Momentum Call
A35: Sr.no | B35: Date | D35: Company | E35: Rec | F35: Rec Price | G35: Stop Loss | H35: Call Closed At | I35: Target | J35: Remark | K35: Profit / Loss per Share/Lot | L35: Gain / Loss % | M35: Gain / Loss per Lot | N35: Lot | O35: Status | P35: Closed Date
A36: 1 | B36: 2019-10-29 | D36: RELIANCE | E36: Sell | F36: 1445-1450 | G36: 1505 | I36: 1380-1350 | J36: Open | R36: H
A37: 2 | B37: 2019-10-29 | D37: INDUSINDBK | E37: Buy | F37: 1319 | G37: 1278 | H37: 1347.5 | I37: 1370-1390 | J37: Profit of Rs.28.5/- | K37: =H37-F37 -> 28.5 | L37: =K37/F37 -> 2.16% | O37: Successful | P37: 2019-11-01 | R37: H
A38: 3 | B38: 2019-10-30 | D38: POWERGRID | E38: Buy | F38: 199.5 | G38: 194.5 | H38: 194.5 | I38: 210 | J38: Loss of Rs.5/- | K38: -5 | L38: -2.51% | O38: Unsuccessful | P38: 2019-11-07 | R38: H
A39: 4 | B39: 2019-10-31 | D39: MFSL NOV FUT | E39: Buy | F39: 407 | G39: 396 | H39: 414 | I39: 425 | J39: Profit of Rs.7/- | K39: 7 | M39: =N39*K39 -> 8400 | N39: 1200 | O39: Successful | P39: 2019-11-04 | R39: N
A40: 5 | B40: 2019-10-31 | D40: HDFCBANK NOV FUT | E40: Buy | F40: 1239 | G40: 1215 | H40: 1251 | I40: 1280 | J40: Profit of Rs.12/- | K40: =H40-F40 -> 12 | M40: =N40*K40 -> 6000 | N40: 500 | O40: Successful | P40: 2019-11-06 | R40: N
A41: 6 | B41: 2019-11-01 | D41: TORNTPOWER NOV FUT | E41: Sell | F41: 285 | G41: 289 | H41: 282 | I41: 276 | J41: Profit of Rs.3/- | K41: =F41-H41 -> 3 | M41: =N41*K41 -> 9000 | N41: 3000 | O41: Successful | P41: 2019-11-01 | R41: N
A42: 7 | B42: 2019-11-01 | D42: SBIN | E42: Sell | F42: 314 | G42: 322 | H42: 323 | I42: 300-395 | J42: Loss of Rs.9/- | K42: =F42-H42 -> -9 | L42: =K42/F42 -> -2.87% | O42: Unsuccessful | P42: 2019-11-07 | R42: R
A43: 8 | B43: 2019-11-04 | D43: AXISBANK NOV FUT | E43: Sell | F43: 749 | G43: 758.3 | H43: 742.5 | I43: 733 | J43: Profit of Rs.6.50/- | K43: =F43-H43 -> 6.5 | M43: =N43*K43 -> 7800 | N43: 1200 | O43: Successful | P43: 2019-11-04 | R43: R
A44: 9 | B44: 2019-11-04 | D44: COLPAL NOV FUT | E44: Buy | F44: 1527.5 | G44: 1510 | H44: 1539 | I44: 1560 | J44: Profit of Rs.11.50/- | K44: =H44-F44 -> 11.5 | M44: =N44*K44 -> 8050 | N44: 700 | O44: Successful | P44: 2019-11-04 | R44: N
A45: 10 | B45: 2019-11-04 | D45: LUPIN | E45: Buy | F45: 762.5 | G45: 747 | H45: 781 | I45: 790-800 | J45: Profit of Rs.18.50/- | K45: 18.5 | L45: =K45/F45 -> 2.43% | O45: Successful | P45: 2019-11-06 | R45: H
A46: 11 | B46: 2019-11-04 | D46: MARUTI | E46: Sell | F46: 7515 | G46: 7777.7 | H46: 7335 | I46: 7100-7000 | J46: Profit of Rs.180/- | K46: =F46-H46 -> 180 | L46: =K46/F46 -> 2.40% | O46: Successful | P46: 2019-11-05 | R46: R
A47: 12 | B47: 2019-11-04 | D47: BANKBARODA | E47: Sell | F47: 101.5 | G47: 105 | H47: 99.6 | I47: 97-95 | J47: Profit of Rs.1.90/- | K47: =F47-H47 -> 1.9 | L47: =K47/F47 -> 1.87% | O47: Successful | P47: 2019-11-06 | R47: H
A48: 13 | B48: 2019-11-04 | D48: COALINDIA | E48: Sell | F48: 210-212 | G48: 216.3 | I48: 200-198 | J48: Open | R48: R
A49: 14 | B49: 2019-11-05 | D49: TCS | E49: Buy | F49: 2170 | G49: 2097 | H49: 2205 | I49: 2300-2330 | J49: Profit of Rs.35/- | K49: =H49-F49 -> 35 | L49: =K49/F49 -> 1.61% | O49: Successful | P49: 2019-11-05 | R49: R
A50: 15 | B50: 2019-11-05 | D50: COLPAL NOV FUT | E50: Buy | F50: 1527 | G50: 1509 | H50: 1540 | I50: 1560 | J50: Profit of Rs.13/- | K50: 13 | M50: =N50*K50 -> 9100 | N50: 700 | O50: Successful | P50: 2019-11-06 | R50: N
A51: 16 | B51: 2019-11-05 | D51: HDFCLIFE | E51: Buy | F51: 587-590 | G51: 569 | I51: 620-630 | J51: Open | R51: H
A52: 17 | B52: 2019-11-05 | D52: ICICIBANK NOV FUT | E52: Sell | F52: 470 | G52: 480.2 | H52: 480.2 | I52: 450 | J52: Loss of Rs.10.20/- | K52: =F52-H52 -> -10.2 | M52: =N52*K52 -> -14025 | N52: 1375 | O52: Unsuccessful | P52: 2019-11-06 | R52: R
A53: 18 | B53: 2019-11-06 | D53: HINDALCO | E53: Sell | F53: 202.35 | G53: 208.3 | H53: 199 | I53: 193-190 | J53: Profit of Rs.3.35/- | K53: =F53-H53 -> 3.35 | L53: =K53/F53 -> 1.66% | O53: Successful | P53: 2019-11-06 | R53: R
A54: 19 | B54: 2019-11-06 | D54: KOTAKBANK NOV FUT | E54: Buy | F54: 1568 | G54: 1544 | H54: 1588 | I54: 1600-1620 | J54: Profit of Rs.20/- | K54: =H54-F54 -> 20 | M54: =N54*K54 -> 8000 | N54: 400 | O54: Successful | P54: 2019-11-06 | R54: R
A55: 20 | B55: 2019-11-07 | D55: MGL NOV FUT | E55: Sell | F55: 979.5 | G55: 959 | H55: 960 | I55: 1020 | J55: Loss of Rs.19.50/- | K55: =F55-H55 -> 19.5 | M55: =N55*K55 -> 11700 | N55: 600 | O55: Unsuccessful | P55: 2019-11-07
A56: 21 | B56: 2019-11-07 | D56: HINDALCO | E56: Sell | F56: 202-203 | G56: 208.3 | I56: 193-190 | J56: Open
A57: 22 | B57: 2019-11-07 | D57: AXISBANK NOV FUT | E57: Buy | F57: 738-740 | G57: 729 | I57: 760 | J57: Open
A58: 23
A59: 24
A60: 25
A61: 26
A62: 27
A63: 28
A64: 29
A65: 30
A66: 31
A67: 32
A68: 33
A69: 34
A72: CLBS = Closing Basis ***
A73: Dividend adjusted <> | F73: Reinitiated $
F74: Revised stoploss #
A76: Master Trade High Risk
A77: Sr.no | B77: Date | D77: Company | E77: Rec | F77: Rec Price | G77: Stop Loss | H77: Call Closed At | I77: Target | J77: Remark | K77: Profit / Loss per share | L77: Gain / Loss per Lot | M77: Lot | N77: Status | O77: Closed Date
A78: 1 | B78: 2019-10-30 | D78: BAJAJ-AUTO NOV FUT | E78: Sell | F78: 3240 | G78: 3360 | H78: 3205 | I78: 3040 | J78: Profit of Rs.36.50/- | K78: =F78-H78 -> 35 | L78: =M78*36.5 -> 9125 | M78: 250 | N78: Successful | O78: 2019-11-04 | R78: H
D79: BAJAJ-AUTO 3100 PE NOV | E79: Sell | F79: 49.50 | H79: 48 | K79: =F79-H79 -> 1.5 | R79: H
A80: 2 | B80: 2019-10-30 | D80: LT NOV FUT | E80: Buy | F80: 1474-1479 | G80: 1418 | I80: 1550 | J80: Open | R80: H
D81: LT 1520 CE NOV | E81: Sell | F81: 27-29 | R81: H
A82: 3 | B82: 2019-10-30 | D82: HEROMOTOCO NOV FUT | E82: Buy | F82: 2715 | G82: 2640 | H82: 2747.5 | I82: 2900 | J82: Profit of Rs.27.50/- | K82: =H82-F82 -> 32.5 | L82: =M82*27.5 -> 5500 | M82: 200 | N82: Successful | O82: 2019-11-01 | R82: N
D83: HEROMOTOCO 2850 CE NOV | E83: Sell | F83: 55 | H83: 60 | K83: =F83-H83 -> -5 | R83: N
A84: 4 | B84: 2019-10-31 | D84: AXISBANK NOV FUT | E84: Buy | F84: 738 | G84: 718 | H84: 743.5 | I84: 760 | J84: Profit of Rs.5/- | K84: =H84-F84 -> 5.5 | L84: =M84*5 -> 6000 | M84: 1200 | N84: Successful | O84: 2019-11-01 | R84: H
D85: AXISBANK 760 CE NOV | E85: Sell | F85: 17.50 | H85: 18 | K85: =F85-H85 -> -0.5 | R85: H
A86: 5 | B86: 2019-11-01 | D86: NIFTY NOV FUT | E86: Sell | F86: 11905-11910 | G86: 12060 | I86: 11700 | J86: Open | R86: H
D87: Nifty 11750 PE 14-NOV | E87: Sell | F87: 76-80 | R87: H
A88: 6 | B88: 2019-11-05 | D88: HAVELLS NOV FUT | E88: Buy | F88: 687 | G88: 670 | H88: 696 | I88: 720-730 | J88: Profit of Rs.8.50/- | K88: =H88-F88 -> 9 | L88: =M88*8.5 -> 8500 | M88: 1000 | N88: Successful | O88: 2019-11-06 | R88: N
D89: HAVELLS 710 CE NOV | E89: Sell | F89: 13.50 | H89: 14 | K89: =F89-H89 -> -0.5 | R89: N
A90: 7 | B90: 2019-11-05 | D90: BATAINDIA NOV FUT | E90: Buy | F90: 1735 | G90: 1701 | H90: 1701 | I90: 1820 | J90: Loss of Rs.22.50/- | K90: =H90-F90 -> -34 | L90: =M90*-22.5 -> -12375 | M90: 550 | N90: Unsuccessful | O90: 2019-11-06 | R90: N
D91: BATAINDIA 1800 CE NOV | E91: Sell | F91: 35 | H91: 23.5 | K91: =F91-H91 -> 11.5 | R91: N
A92: 8 | B92: 2019-11-06 | D92: GRASIM NOV FUT | E92: Buy | F92: 774-776 | G92: 754 | I92: 820 | J92: Open | R92: N
D93: GRASIM 820 CE NOV | E93: Sell | F93: 15-16 | R93: N
A94: 9 | B94: 2019-11-06 | D94: ULTRACEMCO NOV FUT | E94: Buy | F94: 4150 | G94: 4070 | H94: 4195 | I94: 4350 | J94: Profit of Rs.37.50/- | K94: =H94-F94 -> 45 | L94: =M94*37.5 -> 7500 | M94: 200 | N94: Successful | O94: 2019-11-07 | R94: N
D95: ULTRACEMCO 4300 CE NOV | E95: Sell | F95: 70 | H95: 77.5 | K95: =F95-H95 -> -7.5 | R95: N
A96: 10 | B96: 2019-11-07 | D96: BAJAJ-AUTO NOV FUT | E96: Sell | F96: 3235-3245 | G96: 3355 | I96: 3100 | J96: Open
D97: BAJAJ-AUTO 3150 PE NOV | E97: Sell | F97: 45-50
A111: Master Trade Medium Risk
A112: Sr.no | B112: Date | D112: Company | E112: Rec | F112: Rec Price | G112: Stop Loss | H112: Call Closed At | I112: Target | J112: Remark | K112: Profit/ Loss per lot | L112: Gain / Loss per Lot | M112: Lot | N112: Status | O112: Closed Date
A113: 1 | B113: 2019-11-01 | D113: INFRATEL NOV 200 CE | E113: Buy | F113: 16.50 | H113: 21.5 | J113: Profit of Rs.2/- | K113: =H113-F113 -> 5 | L113: =2000*2 -> 4000 | M113: 2000 | N113: Successful | O113: 2019-11-04 | R113: H
D114: INFRATEL NOV 210 CE | E114: Sell | F114: 12.50 | H114: 15.5 | K114: -3 | R114: H
A115: 2 | B115: 2019-11-01 | D115: MARUTI NOV 7500 PE | E115: Buy | F115: 200 | H115: 270 | J115: Profit of Rs.30/- | K115: =H115-F115 -> 70 | L115: =30*M115 -> 2250 | M115: 75 | N115: Successful | O115: 2019-11-05 | R115: N
D116: MARUTI NOV 7300 PE | E116: Sell | F116: 132.50 | H116: 172.5 | K116: -40 | R116: N
A117: 3 | B117: 2019-11-01 | D117: BANKNIFTY 30000 PE 7-NOV | E117: Buy | F117: 250 | G117: 130 | H117: 130 | I117: 450-500 | J117: Loss of Rs.120/- | K117: =H117-F117 -> -120 | L117: =M117*K117 -> -2400 | M117: 20 | N117: Unsuccessful | O117: 2019-11-04 | R117: H
A118: 4 | B118: 2019-11-04 | D118: BANKNIFTY 14 NOV 30400 PE | E118: Buy | F118: 400-420 | J118: Open | R118: H
D119: BANKNIFTY 14 NOV 30100 PE | E119: Sell | F119: 295-305 | R119: H
A120: 5 | B120: 2019-11-04 | D120: MOTHERSUMI NOV 120 PE | E120: Buy | F120: 5.50-6.00 | J120: Open | R120: H
D121: MOTHERSUMI 115 PE | E121: Sell | F121: 4.00-4.20 | R121: H
A130: Techno -Funda (positional)
A131: Sr.no | B131: Date | D131: Company | E131: Rec | F131: Rec Price | G131: Stop Loss*** | H131: Call Closed At | I131: Target | J131: Remark | K131: Profit / Loss per Share | L131: Gain / Loss % | M131: Status | N131: Closed Date | O131: NSE Closed Price
A132: 1 | B132: 2019-08-13 | D132: ITC | E132: Buy | F132: 247 | G132: 228 | H132: 262.5 | I132: 290-300 | J132: Part Profit of Rs.15.5/- | K132: =H132-F132 -> 15.5 | L132: =K132/F132 -> 6.28% | M132: Successful | N132: 2019-10-01 | O132: =VLOOKUP(D132,Sheet2!A131:M1770,6,0) -> 265.85 | R132: H
A136: CLBS = Closing Basis *** | F136: Reinitiated $
A137: Dividend adjusted <> | F137: Revised stoploss #
B142: Investment Idea
A143: Sr.no | B143: Date | D143: Company | E143: Rec | F143: Rec Price | G143: Point of Review | H143: Close Rate | I143: Target | J143: Remark | K143: Profit / Loss per Share | L143: Gain / Loss % | M143: Status | N143: Closed Date
A144: 1 | B144: 2013-11-01 | D144: L&T Finance Holding | E144: Accu | F144: 82.00 | G144: - | H144: 100 | I144: 100.00 | J144: Target Achieved | K144: =H144-F144 -> 18.00 | L144: =K144/F144 -> 21.95% | M144: Successful | N144: 2016-10-14
A145: 2 | B145: 2014-06-04 | D145: Finolex Inds | E145: Buy | F145: 257.00 | G145: - | H145: 300 | I145: 300.00 | J145: Target Achieved | K145: 43.00 | L145: 16.73% | M145: Successful | N145: 2014-07-02
A146: 3 | B146: 2014-07-08 | D146: JK Cement | E146: Buy | F146: 393.00 | G146: - | H146: 468 | I146: 468.00 | J146: Target Achieved | K146: 75.00 | L146: 19.08% | M146: Successful | N146: 2014-08-12
A147: 4 | B147: 2014-08-06 | D147: Finolex Cables | E147: Buy | F147: 205.00 | G147: - | H147: 275 | I147: 250.00 | J147: Target Achieved | K147: 70.00 | L147: 34.15% | M147: Successful | N147: 2014-11-19
A148: 5 | B148: 2014-09-04 | D148: Exide Inds | E148: Buy | F148: 162.00 | G148: - | H148: 190 | I148: 190.00 | J148: Target Achieved | K148: 28.00 | L148: 17.28% | M148: Successful | N148: 2015-01-02
A149: 6 | B149: 2014-09-04 | D149: Deepak Nitrite | E149: Buy | F149: 75.00 | G149: - | H149: 91.5 | I149: 95-100 | J149: Profit of Rs.16.50/- | K149: 16.50 | L149: 22.00% | M149: Successful | N149: 2014-11-11
A150: 7 | B150: 2014-10-01 | D150: Mercks | E150: Buy | F150: 850.00 | G150: - | H150: 982.5 | I150: 1050.00 | J150: Profit of Rs.132.50/- | K150: 132.50 | L150: 15.59% | M150: Successful | N150: 2015-02-04
A151: 8 | B151: 2014-10-01 | D151: Grindwell Norton | E151: Buy | F151: 475.00 | G151: - | H151: 515 | I151: 600.00 | J151: Profit of Rs.40/- | K151: 40.00 | L151: 8.42% | M151: Successful | N151: 2014-10-27
A152: 9 | B152: 2014-10-01 | D152: Snowman Logistics | E152: Buy | F152: 86.00 | G152: - | H152: 99 | I152: 140.00 | J152: Profit of Rs.13.00/- | K152: 13.00 | L152: 15.12% | M152: Successful | N152: 2014-10-27
A153: 10 | B153: 2014-10-14 | D153: Birla Corp | E153: Buy | F153: 496.60 | G153: - | H153: 621 | I153: 580.00 | J153: Target Achieved | K153: 124.40 | L153: 25.05% | M153: Successful | N153: 2016-08-23
A154: 11 | B154: 2014-10-14 | D154: Ultratech Cem | E154: Buy | F154: 2481.90 | G154: - | H154: 2840 | I154: 2870.00 | J154: Profit of Rs.358.10/- | K154: 358.10 | L154: 14.43% | M154: Successful | N154: 2015-01-13
A155: 12 | B155: 2014-10-16 | D155: Sintex Inds | E155: Buy | F155: 84.50 | G155: - | H155: 93 | I155: 110.00 | J155: Profit of Rs.8.50/- | K155: 8.50 | L155: 10.06% | M155: Successful | N155: 2014-10-27
A156: 13 | B156: 2014-10-16 | D156: HSIL | E156: Buy | F156: 401.00 | G156: - | H156: 428 | I156: 450.00 | J156: Profit of Rs.27.00/- | K156: 27.00 | L156: 6.73% | M156: Successful | N156: 2015-01-16
A157: 14 | B157: 2014-10-16 | D157: Eveready Inds | E157: Buy | F157: 101.00 | G157: - | H157: 112 | I157: 120.00 | J157: Profit of Rs.11.00/- | K157: 11.00 | L157: 10.89% | M157: Successful | N157: 2014-10-27
A158: 15 | B158: 2014-11-11 | D158: Pennar Inds | E158: Buy | F158: 59.00 | G158: - | H158: 76 | I158: 76.00 | J158: Target Achieved | K158: 17.00 | L158: 28.81% | M158: Successful | N158: 2017-10-24
A159: 16 | B159: 2014-11-11 | D159: Snowman Logistics | E159: Buy | F159: 99.00 | G159: - | H159: 120 | I159: 120.00 | J159: Profit of Rs.21/- | K159: 21.00 | L159: 21.21% | M159: Successful | N159: 2014-11-17
A160: 17 | B160: 2014-11-13 | D160: Dharamsi Morarji Chem | E160: Buy | F160: 22.00 | G160: - | H160: 33.55 | I160: 32.00 | J160: Profit of Rs 11.55/- | K160: 11.55 | L160: 52.50% | M160: Successful | N160: 2015-07-03
A161: 18 | B161: 2014-12-03 | D161: Tatachem | E161: Buy | F161: 440.00 | G161: - | H161: 520 | I161: 520.00 | J161: Profit of Rs 80.00/- | K161: 80.00 | L161: 18.18% | M161: Successful | N161: 2015-07-23
A162: 19 | B162: 2014-12-03 | D162: Advanta | E162: Buy | F162: 360.00 | G162: - | H162: 427 | I162: 425.00 | J162: Profit of Rs.67.00/- | K162: 67.00 | L162: 18.61% | M162: Successful | N162: 2015-02-23
A163: 20 | B163: 2015-01-08 | D163: GDL | E163: Buy | F163: 360.00 | G163: - | H163: 455 | I163: 420.00 | J163: Profit of Rs.95.00/- | K163: 95.00 | L163: 26.39% | M163: Successful | N163: 2015-01-20
A164: 21 | B164: 2015-01-08 | D164: NRB Bearing | E164: Buy | F164: 130.00 | H164: 175.5 | I164: 165.00 | J164: Profit of Rs 45.50/- | K164: 45.50 | L164: 35.00% | M164: Successful | N164: 2017-12-19
A165: 22 | B165: 2015-02-05 | D165: GSFC | E165: Accu | F165: 98.00 | H165: 120 | I165: 120.00 | J165: Target Achieved | K165: 22.00 | L165: 22.45% | M165: Successful | N165: 2017-01-18
A166: 23 | B166: 2015-02-05 | D166: Sundrmfast | E166: Accu | F166: 196.00 | H166: 262 | I166: 255.00 | J166: Target Achieved | K166: 66.00 | L166: 33.67% | M166: Successful | N166: 2016-08-17
A167: 24 | B167: 2015-03-04 | D167: GPPL | E167: Accu | F167: 235 | H167: 77.00 | I167: 280-285 | J167: Loss of Rs.158/- | K167: -158.00 | L167: -67.23% | M167: Unsuccessful | N167: 2019-02-26
A168: 25 | B168: 2015-03-04 | D168: ORIENTCEM | E168: Accu | F168: 185.00 | H168: 224 | I168: 220-225 | J168: Target Achieved | K168: 39.00 | L168: 21.08% | M168: Successful | N168: 2016-10-04
A169: 26 | B169: 2015-03-27 | D169: PFS | E169: Accu | F169: 49.5 | H169: 15.85 | I169: 67.00 | J169: Loss of Rs.33.65/- | K169: -33.65 | L169: -68% | M169: Unsuccessful | N169: 2019-06-11
A170: 27 | B170: 2015-03-30 | D170: Walchandnagar Ind Ltd | E170: Accu | F170: 183.50 | H170: 219 | I170: 218.00 | J170: Profit of Rs.35.50/- | K170: 35.50 | L170: 19.35% | M170: Successful | N170: 2015-04-09
A171: 28 | B171: 2015-04-20 | D171: Kalpataru Power Transmission Ltd | E171: Accu | F171: =(227+237)/2 -> 232.00 | H171: 298 | I171: 298.00 | J171: Target Achieved | K171: 66.00 | L171: 28.45% | M171: Successful | N171: 2017-03-29
A172: 29 | B172: 2015-05-04 | D172: Mastek Ltd | E172: Buy | F172: 385.00 | H172: =212.5+331 -> 543.5 | I172: 510.00 | J172: Profit of Rs 158.50/- | K172: 158.50 | L172: 41.17% | M172: Successful | N172: 2015-08-19
A173: 30 | B173: 2015-05-04 | D173: Suprajit Eng | E173: Buy | F173: 115.50 | H173: 146 | I173: 142.00 | J173: Profit of Rs 30.50/- | K173: 30.50 | L173: 26.41% | M173: Successful | N173: 2015-07-17
A174: 31 | B174: 2015-05-27 | D174: TCI | E174: Buy | F174: 237.50 | H174: 279.5 | I174: 278.00 | J174: Target Achieved | K174: 42.00 | L174: 17.68% | M174: Successful | N174: 2015-08-06
A175: 32 | B175: 2015-06-19 | D175: HSIL | E175: Accu | F175: 340.00 | H175: 448 | I175: 448.00 | J175: Target Achieved | K175: 108.00 | L175: 31.76% | M175: Successful | N175: 2017-10-10
A176: 33 | B176: 2015-07-06 | D176: Capital First | E176: Accu | F176: 390.00 | H176: 460 | I176: 460.00 | J176: Target Achieved | K176: =H176-F176 -> 70.00 | L176: =K176/F176 -> 17.95% | M176: Successful | N176: 2016-04-18
A177: 34 | B177: 2015-07-10 | D177: Dolphin OffShore | E177: Accu | F177: 122.5 | H177: 61.00 | I177: 172.00 | J177: Loss of Rs.61.50/- | K177: -61.50 | L177: -50.20% | M177: Unsuccessful | N177: 2018-08-21
A178: 35 | B178: 2015-08-03 | D178: Allcargo logistics | E178: Accu | F178: 297.50 | H178: 350 | I178: 360.00 | J178: Profit of Rs 52.50/- | K178: 52.50 | L178: 17.65% | M178: Successful | N178: 2015-08-16
A179: 36 | B179: 2015-08-03 | D179: Camline Fine | E179: Accu | F179: 115.50 | H179: 149 | I179: 140.00 | J179: Profit of Rs 33.50/- | K179: 33.50 | L179: 29.00% | M179: Successful | N179: 2017-01-05
A180: 37 | B180: 2015-09-04 | D180: TCI | E180: Accu | F180: 226.00 | H180: 292 | I180: 292.00 | J180: Target Achieved | K180: 66.00 | L180: 29.20% | M180: Successful | N180: 2015-10-09
A181: 38 | B181: 2015-09-07 | D181: Kalpataru Power Transmission Ltd | E181: Accu | F181: 232.50 | H181: 312.5 | I181: 310.00 | J181: Target Achieved | K181: 80.00 | L181: 34.41% | M181: Successful | N181: 2017-03-29
A182: 39 | B182: 2015-09-21 | D182: LLOYD ELECTRIC & ENG LTD | E182: Accu | F182: 196.50 | H182: 238 | I182: 238.00 | J182: Target Achieved | K182: 41.50 | L182: 21.12% | M182: Successful | N182: 2015-10-14
A183: 40 | B183: 2015-09-24 | D183: L&T Finance Holding | E183: Accu | F183: 65.00 | H183: 82 | I183: 82.00 | J183: Target Achieved | K183: 17.00 | L183: 26.15% | M183: Successful | N183: 2016-07-27
A184: 41 | B184: 2015-10-14 | D184: KEC International ltd | E184: Accu | F184: 144.00 | H184: 182.5 | I184: 181.00 | J184: Target Achieved | K184: 38.50 | L184: 26.74% | M184: Successful | N184: 2017-03-23
A185: 42 | B185: 2015-10-14 | D185: Gruh Finance | E185: Accu | F185: 264.00 | H185: 311 | I185: 311.00 | J185: Target Achieved | K185: 47.00 | L185: 17.80% | M185: Successful | N185: 2016-08-22
A186: 43 | B186: 2015-11-10 | D186: Pidilitind | E186: Buy | F186: 549.50 | H186: 630 | I186: 630.00 | J186: Target Achieved | K186: 80.50 | L186: 14.65% | M186: Successful | N186: 2016-02-19
A187: 44 | B187: 2015-12-04 | D187: Zensar Technology | E187: Accu | F187: 1027.50 | H187: 1315 | I187: 1250.00 | J187: Target Achieved | K187: 287.50 | L187: 27.98% | M187: Successful | N187: 2018-05-24
A188: 45 | B188: 2015-12-29 | D188: Vinati Organics Ltd | E188: Accu | F188: 465.00 | H188: 540 | I188: 540.00 | J188: Target Achieved | K188: 75.00 | L188: 16.13% | M188: Successful | N188: 2016-06-09
A189: 46 | B189: 2016-01-11 | D189: GSFC | E189: Buy | F189: 81.00 | H189: 110 | I189: 110.00 | J189: Target Achieved | K189: 29.00 | L189: 35.80% | M189: Successful | N189: 2017-01-10
A190: 47 | B190: 2016-01-13 | D190: SSWL | E190: Buy | F190: 417.50 | H190: 547 | I190: 535.00 | J190: Target Achieved | K190: 129.50 | L190: 31.02% | M190: Successful | N190: 2016-07-27
A191: 48 | B191: 2016-02-08 | D191: Persistent System Ltd | E191: Accu | F191: 650.00 | H191: 800 | I191: 800.00 | J191: Target Achieved | K191: 150.00 | L191: 23.08% | M191: Successful | N191: 2018-02-23
A192: 49 | B192: 2016-03-04 | D192: UPL | E192: Accu | F192: 437.50 | H192: 504.5 | I192: 522.00 | J192: Profit of Rs.67/- | K192: 67.00 | L192: 15.31% | M192: Successful | N192: 2016-04-20
A193: 50 | B193: 2016-03-09 | D193: Ashoka Buildcon Ltd | E193: Accu | F193: 189.50 | H193: 218 | I193: 218.00 | J193: Target Achieved | K193: 28.50 | L193: 15.04% | M193: Successful | N193: 2017-10-26
A194: 51 | B194: 2016-04-11 | D194: PTC INDIA FIN SERV LTD | E194: Accu | F194: 36.5 | H194: 15.85 | I194: 60.00 | J194: Loss of Rs.20.65/- | K194: -20.65 | L194: -56.58% | M194: Unsuccessful | N194: 2019-06-11
A195: 52 | B195: 2016-04-12 | D195: CAMLINFINE $ | E195: Accu | F195: 93.00 | H195: 149 | I195: 140.00 | J195: Profit of Rs 56/- | K195: 56.00 | L195: 60.22% | M195: Successful | N195: 2017-01-05
A196: 53 | B196: 2016-04-12 | D196: Greaves Cotton Ltd. | E196: Accu | F196: 130.00 | H196: 150 | I196: 150-155 | J196: Target Achieved | K196: 20.00 | L196: 15.38% | M196: Successful | N196: 2016-07-13
A197: 54 | B197: 2016-04-13 | D197: DHFL | E197: Accu | F197: 196.00 | H197: 299 | I197: 299.00 | J197: Target Achieved | K197: 103.00 | L197: 52.55% | M197: Successful | N197: 2016-09-07
A198: 55 | B198: 2016-04-13 | D198: Magma | E198: Accu | F198: 88.00 | H198: 103 | I198: 103.00 | J198: Target Achieved | K198: 15.00 | L198: 17.05% | M198: Successful | N198: 2016-06-09
A199: 56 | B199: 2016-05-02 | D199: KEC International ltd $ | E199: Accu | F199: 127.50 | H199: 148 | I199: 148-150 | J199: Target Achieved | K199: =H199-F199 -> 20.50 | L199: =K199/F199 -> 16.08% | M199: Successful | N199: 2016-07-13
A200: 57 | B200: 2016-05-03 | D200: Mindtree | E200: Accu | F200: 675.00 | H200: 815 | I200: 790-800 | J200: Target Achieved | K200: =H200-F200 -> 140.00 | L200: =K200/F200 -> 20.74% | M200: Successful | N200: 2018-02-23
A201: 58 | B201: 2016-06-01 | D201: Atulauto | E201: Accu | F201: 500 | H201: 232.50 | I201: 565-570 | J201: Loss of Rs.267.50 /- | K201: =H201-F201 -> -267.50 | L201: =K201/F201 -> -53.50% | M201: Unsuccessful | N201: 2019-09-27
A202: 59 | B202: 2016-06-06 | D202: TRITURBINE | E202: Accu | F202: 110.00 | H202: 126.5 | I202: 125.00 | J202: Profit of Rs.16.50/- | K202: =H202-F202 -> 16.50 | L202: =K202/F202 -> 15.00% | M202: Successful | N202: 2016-07-01
A203: 60 | B203: 2016-06-17 | D203: Pennar Industries Ltd | E203: Accu | F203: 44.00 | H203: 69.5 | I203: 69.50 | J203: Profit of Rs.25.50/- | K203: =H203-F203 -> 25.50 | L203: =K203/F203 -> 57.95% | M203: Successful | N203: 2017-08-30
A204: 61 | B204: 2016-06-28 | D204: EVEREADY | E204: Accu | F204: 262.50 | H204: 340 | I204: 333.00 | J204: Profit of Rs.77.50/- | K204: 77.50 | L204: 29.52% | M204: Successful | N204: 2017-10-09
A205: 62 | B205: 2016-06-28 | D205: FIEMIND | E205: Accu | F205: 840.00 | H205: 1230 | I205: 1230.00 | J205: Target Achieved | K205: 390.00 | L205: 46.43% | M205: Successful | N205: 2016-10-06
A206: 63 | B206: 2016-07-05 | D206: Bajaj Corp Ltd | E206: Accu | F206: 395 | H206: =(468.5+342.5)/2 -> 405.50 | I206: 510.00 | J206: Profit of Rs.10.50/- | K206: =H206-F206 -> 10.50 | L206: =K206/F206 -> 3% | M206: Neutral | N206: 2019-05-21
A207: 64 | B207: 2016-08-02 | D207: GPPL $ | E207: Buy | F207: 169.5 | H207: 77.00 | I207: 198-200 | J207: Loss of Rs.92.5/- | K207: -92.50 | L207: -54.57% | M207: Unsuccessful | N207: 2019-02-26
A208: 65 | B208: 2016-08-04 | D208: WONDERLA HOLIDAYS LTD | E208: Accu | F208: 400 | H208: 305.00 | I208: 475.00 | J208: Loss of Rs.95/- | K208: -95.00 | L208: -23.75% | M208: Unsuccessful | N208: 2019-05-21
A209: 66 | B209: 2016-08-11 | D209: CAMLINFINE | E209: Accu | F209: 86.50 | H209: 130 | I209: 130.00 | J209: Profit of Rs.43.50/- | K209: 43.50 | L209: 50.29% | M209: Successful | N209: 2017-12-22
A210: 67 | B210: 2016-08-18 | D210: GRANULES | E210: Accu | F210: 133.5 | H210: 126.50 | I210: 178.00 | J210: Exit | K210: -7.00 | L210: -5.24% | M210: Unsuccessful | N210: 2016-09-02
A211: 68 | B211: 2016-08-31 | D211: VA TECH WABAG | E211: Accu | F211: 560.00 | H211: 725 | I211: 725.00 | J211: Target Achieved | K211: 165.00 | L211: 29.46% | M211: Successful | N211: 2016-03-27
A212: 69 | B212: 2016-09-01 | D212: SKIPPER LIMITED | E212: Accu | F212: 160.50 | H212: 210 | I212: 210.00 | J212: Target Achieved | K212: 49.50 | L212: 30.84% | M212: Successful | N212: 2017-05-16
A213: 70 | B213: 2016-10-03 | D213: IFBIND | E213: Accu | F213: 430.00 | H213: 596 | I213: 575.00 | J213: Profit of Rs.166/- | K213: 166.00 | L213: 38.60% | M213: Successful | N213: 2017-02-03
A214: 71 | B214: 2016-10-14 | D214: ASIANTILES | E214: Accu | F214: 280.00 | H214: 345 | I214: 345.00 | J214: Target Achieved | K214: =H214-F214 -> 65.00 | L214: =K214/F214 -> 23.21% | M214: Successful | N214: 2017-03-20
A215: 72 | B215: 2016-10-14 | D215: DEEPIND | E215: Accu | F215: 245.00 | H215: 325.5 | I215: 330.00 | J215: Profit of Rs.80.5/- | K215: 80.50 | L215: =K215/F215 -> 32.86% | M215: Successful | N215: 2017-02-03
A216: 73 | B216: 2016-10-17 | D216: DCBBANK | E216: Accu | F216: 125.00 | H216: 160 | I216: 160.00 | J216: Target Achieved | K216: 35.00 | L216: 28.00% | M216: Successful | N216: 2017-03-09
A217: 74 | B217: 2016-10-17 | D217: ORIENTREF | E217: Accu | F217: 114.00 | H217: 145 | I217: 145.00 | J217: Target Achieved | K217: 31.00 | L217: =K217/F217 -> 27.19% | M217: Successful | N217: 2017-05-04
A218: 75 | B218: 2016-10-17 | D218: GANECOS | E218: Accu | F218: 212.00 | H218: 280 | I218: 276.00 | J218: Profit of Rs.68/- | K218: 68.00 | L218: =K218/F218 -> 32.08% | M218: Successful | N218: 2017-05-03
A219: 76 | B219: 2016-11-04 | D219: NBCC | E219: Accu | F219: 155.00 | H219: 210 | I219: 210.00 | J219: Profit of Rs.55/- | K219: 55.00 | L219: =K219/F219 -> 35.48% | M219: Successful | N219: 2017-07-28
A220: 77 | B220: 2016-12-06 | D220: PRECAM | E220: Accu | F220: 150.5 | H220: 72.50 | I220: 174.00 | J220: Loss of Rs.78/- | K220: -78.00 | L220: -51.83% | M220: Unsuccessful | N220: 2018-08-21
A221: 78 | B221: 2016-12-08 | D221: INFRATEL | E221: Accu | F221: 380.00 | H221: 478 | I221: 468.00 | J221: Target Achieved | K221: =H221-F221 -> 98.00 | L221: =K221/F221 -> 25.79% | M221: Successful | N221: 2017-10-17
A222: 79 | B222: 2016-12-30 | D222: GODREJPROP | E222: Accu | F222: 305.00 | H222: 375 | I222: 375.00 | J222: Target Achieved | K222: =H222-F222 -> 70.00 | L222: =K222/F222 -> 22.95% | M222: Successful | N222: 2017-02-02
A223: 80 | B223: 2017-01-04 | D223: DEEPAKNTR | E223: Accu | F223: 99.50 | H223: 158 | I223: 158.00 | J223: Target Achieved | K223: =H223-F223 -> 58.50 | L223: =K223/F223 -> 58.79% | M223: Successful | N223: 2017-06-12
A224: 81 | B224: 2017-01-04 | D224: DEEPAKNTR | E224: Accu | F224: 99.50 | H224: 158 | I224: 158.00 | J224: Target Achieved | K224: 58.50 | L224: 58.79% | M224: Successful | N224: 2017-06-12
A225: 82 | B225: 2017-02-20 | D225: RECLTD | E225: Accu | F225: 140.50 | H225: 220 | I225: 220.00 | J225: Target Achieved | K225: =H225-F225 -> 79.50 | L225: =K225/F225 -> 56.58% | M225: Successful | N225: 2017-05-09
A226: 83 | B226: 2017-02-20 | D226: SUBROS | E226: Accu | F226: 202.50 | H226: 234 | I226: 234.00 | J226: Target Achieved | K226: 31.50 | L226: 15.56% | M226: Successful | N226: 2017-04-11
A227: 84 | B227: 2017-03-24 | D227: VRLLOG | E227: Accu | F227: 300.50 | H227: 417.5 | I227: 420.00 | J227: Profit of Rs.117/- | K227: =H227-F227 -> 117.00 | L227: =K227/F227 -> 38.94% | M227: Successful | N227: 2017-12-01
A228: 85 | B228: 2017-03-24 | D228: FIEMIND | E228: Accu | F228: 850.00 | H228: 1042.5 | I228: 1023.00 | J228: Profit of Rs 192.50/- | K228: 192.50 | L228: 22.65% | M228: Successful | N228: 2017-04-05
A229: 86 | B229: 2017-04-05 | D229: RATNAMANI | E229: Accu | F229: 785.00 | H229: 930 | I229: 920.00 | J229: Profit of Rs.145/- | K229: =H229-F229 -> 145.00 | L229: =K229/F229 -> 18.47% | M229: Successful | N229: 2017-08-29
A230: 87 | B230: 2017-04-06 | D230: ZEEMEDIA | E230: Accu | F230: 40 | H230: 13.10 | I230: 60.00 | J230: Loss of Rs.26.9/- | K230: -26.90 | L230: -67.25% | M230: Unsuccessful | N230: 2018-02-07
A231: 88 | B231: 2017-04-12 | D231: DABUR | E231: Accu | F231: 289.50 | H231: 354 | I231: 360.00 | J231: Profit of Rs.64.5/- | K231: =H231-F231 -> 64.50 | L231: =K231/F231 -> 22.28% | M231: Successful | N231: 2017-11-01
A232: 89 | B232: 2017-04-20 | D232: KPRMILL | E232: Accu | F232: 700.00 | H232: 840 | I232: 840.00 | J232: Profit of Rs.140/- | K232: 140.00 | L232: 20.00% | M232: Successful | N232: 2017-06-07
A233: 90 | B233: 2017-06-01 | D233: ESSELPACK | E233: Accu | F233: 130.00 | H233: 144.25 | I233: 170.00 | J233: Profit of Rs.14.25/- | K233: 14.25 | L233: 10.96% | M233: Successful | N233: 2019-07-29
A234: 91 | B234: 2017-06-15 | D234: KEI | E234: Accu | F234: 214.50 | H234: 262 | I234: 262.00 | J234: Profit of Rs.47.5/- | K234: 47.50 | L234: 22.14% | M234: Successful | N234: 2017-08-30
A235: 92 | B235: 2017-07-17 | D235: MAYURUNIQ | E235: Accu | F235: 370.00 | H235: 447.5 | I235: 450.00 | J235: Target Achieved | K235: 77.50 | L235: 20.95% | M235: Successful | N235: 2017-10-27
A236: 93 | B236: 2017-07-27 | D236: RAMCOCEM | E236: Accu | F236: 657.50 | H236: 825 | I236: 820.00 | J236: Target Achieved | K236: 167.50 | L236: 25.48% | M236: Successful | N236: 2017-12-21
A237: 94 | B237: 2017-08-17 | D237: FINPIPE | E237: Accu | F237: 605.00 | H237: 750 | I237: 750.00 | J237: Profit of Rs.145/- | K237: 145.00 | L237: 23.97% | M237: Successful | N237: 2017-10-19
A238: 95 | B238: 2017-09-01 | D238: SHK | E238: Accu | F238: 255 | H238: 217.25 | I238: 320.00 | J238: Loss of Rs.37.75/- | K238: -37.75 | L238: -15% | M238: Unsuccessful | N238: 2019-07-15
A239: 96 | B239: 2017-09-19 | D239: SKIPPER | E239: Accu | F239: 215.00 | H239: 258 | I239: 258.00 | J239: Target Achieved | K239: 43.00 | L239: 20.00% | M239: Successful | N239: 2017-11-01
A240: 97 | B240: 2017-09-19 | D240: SKIPPER | E240: Accu | F240: 215.00 | H240: 258 | I240: 258.00 | J240: Target Achieved | K240: 43.00 | L240: 20.00% | M240: Successful | N240: 2017-11-01
A241: 98 | B241: 2017-09-20 | D241: CAMLINFINE$ | E241: Accu | F241: 75.00 | H241: 90 | I241: 90.00 | J241: Profit of Rs.15.00/- | K241: =H241-F241 -> 15.00 | L241: =K241/F241 -> 20.00% | M241: Successful | N241: 2017-10-11
A242: 99 | B242: 2017-10-03 | D242: GNA | E242: Accu | F242: 315.00 | H242: 392 | I242: 384.00 | J242: Profit of Rs.77/- | K242: 77.00 | L242: 24.44% | M242: Successful | N242: 2017-10-09
A243: 100 | B243: 2017-10-05 | D243: NOCIL | E243: Accu | F243: 145.00 | H243: 179 | I243: 180.00 | J243: Profit of Rs.34/- | K243: 34.00 | L243: 23.45% | M243: Successful | N243: 2017-10-17
A244: 101 | B244: 2017-10-06 | D244: CENTURYPLY | E244: Accu | F244: 256.00 | H244: 323 | I244: 320.00 | J244: Target Achieved | K244: 67.00 | L244: 26.17% | M244: Successful | N244: 2017-11-28
A245: 102 | B245: 2017-10-09 | D245: EIHOTEL | E245: Accu | F245: 137.50 | H245: 184 | I245: 183.00 | J245: Profit of Rs.46.5/- | K245: 46.50 | L245: 33.82% | M245: Successful | N245: 2018-01-08
A246: 103 | B246: 2017-10-10 | D246: NRBBEARING | E246: Accu | F246: 125.50 | H246: 158 | I246: 155.00 | J246: Profit of Rs.32.5/- | K246: 32.50 | L246: 25.90% | M246: Successful | N246: 2017-11-28
... 50 more rows

Sheet Sheet2 (hidden)
A1: SYMBOL | B1: SERIES | C1: OPEN | D1: HIGH | E1: LOW | F1: CLOSE | G1: LAST | H1: PREVCLOSE | I1: TOTTRDQTY | J1: TOTTRDVAL | K1: TIMESTAMP | L1: TOTALTRADES | M1: ISIN | N1: ISIN
A2: 20MICRONS | B2: EQ | C2: 39.1 | D2: 39.75 | E2: 38.6 | F2: 39.05 | G2: 39.45 | H2: 38.45 | I2: 66392 | J2: 2595232.25 | K2: 2019-11-07 | L2: 561 | M2: INE144J01027
A3: 21STCENMGM | B3: EQ | C3: 14 | D3: 14 | E3: 13.5 | F3: 14 | G3: 14 | H3: 13.75 | I3: 847 | J3: 11606.5 | K3: 2019-11-07 | L3: 11 | M3: INE253B01015
A4: 3IINFOTECH | B4: EQ | C4: 2 | D4: 2.05 | E4: 1.95 | F4: 2 | G4: 1.95 | H4: 2 | I4: 1024879 | J4: 2055107.4 | K4: 2019-11-07 | L4: 504 | M4: INE748C01020
A5: 3MINDIA | B5: EQ | C5: 22600 | D5: 22600 | E5: 22300 | F5: 22463.45 | G5: 22470 | H5: 22517.5 | I5: 648 | J5: 14561047.7 | K5: 2019-11-07 | L5: 386 | M5: INE470A01017
A6: 3PLAND | B6: EQ | C6: 6.25 | D6: 6.3 | E6: 6.25 | F6: 6.3 | G6: 6.3 | H6: 6.55 | I6: 2 | J6: 12.55 | K6: 2019-11-07 | L6: 2 | M6: INE105C01023
A7: 5PAISA | B7: EQ | C7: 165 | D7: 172.95 | E7: 163 | F7: 167.35 | G7: 167.25 | H7: 171.35 | I7: 6854 | J7: 1156087.05 | K7: 2019-11-07 | L7: 144 | M7: INE618L01018
A8: 63MOONS | B8: EQ | C8: 119.45 | D8: 120.45 | E8: 117.75 | F8: 118.2 | G8: 118.2 | H8: 119.25 | I8: 66815 | J8: 7952513.5 | K8: 2019-11-07 | L8: 972 | M8: INE111B01023
A9: A2ZINFRA | B9: EQ | C9: 10.1 | D9: 10.1 | E9: 9.55 | F9: 9.7 | G9: 9.8 | H9: 9.65 | I9: 201180 | J9: 1970200.4 | K9: 2019-11-07 | L9: 463 | M9: INE619I01012
A10: AARTIDRUGS | B10: EQ | C10: 507.2 | D10: 527 | E10: 502.2 | F10: 523.1 | G10: 527 | H10: 507.4 | I10: 21649 | J10: 11156384.25 | K10: 2019-11-07 | L10: 1394 | M10: INE767A01016
A11: AARTIIND | B11: EQ | C11: 823 | D11: 834 | E11: 805 | F11: 819.55 | G11: 825 | H11: 819.05 | I11: 150177 | J11: 123148555.5 | K11: 2019-11-07 | L11: 5357 | M11: INE769A01020
A12: AARVEEDEN | B12: EQ | C12: 14.5 | D12: 14.5 | E12: 13.7 | F12: 13.75 | G12: 13.75 | H12: 13.8 | I12: 9057 | J12: 125748.55 | K12: 2019-11-07 | L12: 82 | M12: INE273D01019
A13: AAVAS | B13: EQ | C13: 1498.8 | D13: 1565 | E13: 1498 | F13: 1545.2 | G13: 1550 | H13: 1490.4 | I13: 44710 | J13: 68769390.65 | K13: 2019-11-07 | L13: 3822 | M13: INE216P01012
A14: ABAN | B14: BE | C14: 33.95 | D14: 33.95 | E14: 30.75 | F14: 32.2 | G14: 33.3 | H14: 32.35 | I14: 130814 | J14: 4202155.2 | K14: 2019-11-07 | L14: 1071 | M14: INE421A01028
A15: ABB | B15: EQ | C15: 1465 | D15: 1493 | E15: 1457.05 | F15: 1482.75 | G15: 1480 | H15: 1461.75 | I15: 53442 | J15: 78795891.95 | K15: 2019-11-07 | L15: 2844 | M15: INE117A01022
A16: ABBOTINDIA | B16: EQ | C16: 11515 | D16: 11760 | E16: 11510 | F16: 11695.25 | G16: 11635.85 | H16: 11480.45 | I16: 5421 | J16: 62958737.55 | K16: 2019-11-07 | L16: 1790 | M16: INE358A01014
A17: ABCAPITAL | B17: EQ | C17: 83.6 | D17: 85.5 | E17: 83.6 | F17: 84.7 | G17: 84.7 | H17: 83.5 | I17: 4586782 | J17: 388561270.8 | K17: 2019-11-07 | L17: 22258 | M17: INE674K01013
A18: ABFRL | B18: EQ | C18: 206.6 | D18: 206.6 | E18: 196.55 | F18: 202.5 | G18: 201.6 | H18: 204.3 | I18: 722566 | J18: 144859339.1 | K18: 2019-11-07 | L18: 9456 | M18: INE647O01011
A19: ABSLBANETF | B19: EQ | C19: 307 | D19: 315 | E19: 306.6 | F19: 308 | G19: 308 | H19: 305.01 | I19: 85 | J19: 26183.95 | K19: 2019-11-07 | L19: 5 | M19: INF209KB1O58
A20: ABSLNN50ET | B20: EQ | C20: 297.4 | D20: 297.4 | E20: 287.57 | F20: 287.57 | G20: 287.57 | H20: 286.4 | I20: 20 | J20: 5849.7 | K20: 2019-11-07 | L20: 2 | M20: INF209KB1B87
A21: ACC | B21: EQ | C21: 1527 | D21: 1546.15 | E21: 1520 | F21: 1527.15 | G21: 1528.1 | H21: 1517.4 | I21: 824638 | J21: 1264509103 | K21: 2019-11-07 | L21: 29639 | M21: INE012A01025
A22: ACCELYA | B22: EQ | C22: 951.15 | D22: 960 | E22: 940 | F22: 955.5 | G22: 958 | H22: 951.15 | I22: 2819 | J22: 2679497.3 | K22: 2019-11-07 | L22: 210 | M22: INE793A01012
A23: ACE | B23: EQ | C23: 84.75 | D23: 90.8 | E23: 82 | F23: 88.4 | G23: 88.35 | H23: 84.35 | I23: 288028 | J23: 25453475.15 | K23: 2019-11-07 | L23: 2626 | M23: INE731H01025
A24: ADANIENT | B24: EQ | C24: 207.9 | D24: 210.4 | E24: 205.5 | F24: 209.15 | G24: 209.25 | H24: 207.55 | I24: 3959490 | J24: 824965103.6 | K24: 2019-11-07 | L24: 26887 | M24: INE423A01024
A25: ADANIGAS | B25: EQ | C25: 147.95 | D25: 148.7 | E25: 147.1 | F25: 147.35 | G25: 147.35 | H25: 147.7 | I25: 385595 | J25: 56979472.4 | K25: 2019-11-07 | L25: 2744 | M25: INE399L01023
A26: ADANIGREEN | B26: EQ | C26: 90.4 | D26: 91.2 | E26: 88.3 | F26: 88.7 | G26: 88.4 | H26: 90.3 | I26: 911495 | J26: 81559768.45 | K26: 2019-11-07 | L26: 5983 | M26: INE364U01010
A27: ADANIPORTS | B27: EQ | C27: 390.5 | D27: 392 | E27: 388.05 | F27: 390.45 | G27: 391.15 | H27: 391 | I27: 1615593 | J27: 630389378.5 | K27: 2019-11-07 | L27: 22175 | M27: INE742F01042
A28: ADANIPOWER | B28: EQ | C28: 71.3 | D28: 71.5 | E28: 70.25 | F28: 70.55 | G28: 70.3 | H28: 71.1 | I28: 5564428 | J28: 394390096.6 | K28: 2019-11-07 | L28: 17004 | M28: INE814H01011
A29: ADANITRANS | B29: EQ | C29: 283.8 | D29: 303.7 | E29: 283.2 | F29: 298.55 | G29: 300 | H29: 282.95 | I29: 1901839 | J29: 561899180.8 | K29: 2019-11-07 | L29: 24760 | M29: INE931S01010
A30: ADFFOODS | B30: EQ | C30: 313.8 | D30: 313.8 | E30: 304.3 | F30: 308.35 | G30: 308 | H30: 312.25 | I30: 37902 | J30: 11698264.35 | K30: 2019-11-07 | L30: 2110 | M30: INE982B01019
A31: ADHUNIKIND | B31: EQ | C31: 119.45 | D31: 119.9 | E31: 117.75 | F31: 118.2 | G31: 117.75 | H31: 118.65 | I31: 31841 | J31: 3778011.15 | K31: 2019-11-07 | L31: 981 | M31: INE452L01012
A32: ADLABS | B32: BE | C32: 3 | D32: 3 | E32: 3 | F32: 3 | G32: 3 | H32: 2.9 | I32: 2632 | J32: 7896 | K32: 2019-11-07 | L32: 15 | M32: INE172N01012
A33: ADORWELD | B33: EQ | C33: 315.05 | D33: 319.6 | E33: 310.2 | F33: 315.5 | G33: 314 | H33: 315 | I33: 1756 | J33: 550089.95 | K33: 2019-11-07 | L33: 124 | M33: INE045A01017
A34: ADROITINFO | B34: BE | C34: 8.4 | D34: 8.45 | E34: 8 | F34: 8.45 | G34: 8.45 | H34: 8.05 | I34: 668 | J34: 5574.6 | K34: 2019-11-07 | L34: 9 | M34: INE737B01033
A35: ADSL | B35: EQ | C35: 14.9 | D35: 15.2 | E35: 14.3 | F35: 15.05 | G35: 15.1 | H35: 15.15 | I35: 24487 | J35: 365663.4 | K35: 2019-11-07 | L35: 83 | M35: INE102I01027
A36: ADVANIHOTR | B36: EQ | C36: 56.95 | D36: 58.8 | E36: 56.95 | F36: 58.15 | G36: 58 | H36: 56.8 | I36: 3255 | J36: 188779.55 | K36: 2019-11-07 | L36: 68 | M36: INE199C01026
A37: ADVENZYMES | B37: EQ | C37: 177.05 | D37: 183.9 | E37: 172.85 | F37: 178.6 | G37: 178.25 | H37: 176.95 | I37: 137701 | J37: 24570499.05 | K37: 2019-11-07 | L37: 4709 | M37: INE837H01020
A38: AEGISCHEM | B38: EQ | C38: 167.5 | D38: 169.5 | E38: 166.25 | F38: 168.05 | G38: 168.6 | H38: 166.2 | I38: 103663 | J38: 17399752.65 | K38: 2019-11-07 | L38: 1812 | M38: INE208C01025
A39: AFFLE | B39: EQ | C39: 1385 | D39: 1393 | E39: 1340 | F39: 1356.35 | G39: 1358 | H39: 1373 | I39: 63054 | J39: 85789248.8 | K39: 2019-11-07 | L39: 4863 | M39: INE00WC01019
A40: AGARIND | B40: EQ | C40: 122.9 | D40: 122.9 | E40: 115.1 | F40: 116.9 | G40: 115.7 | H40: 117.1 | I40: 5574 | J40: 657388.35 | K40: 2019-11-07 | L40: 117 | M40: INE204E01012
A41: AGCNET | B41: BE | C41: 111.65 | D41: 116.9 | E41: 111.65 | F41: 116.8 | G41: 116.9 | H41: 111.35 | I41: 4288 | J41: 491179.9 | K41: 2019-11-07 | L41: 59 | M41: INE676A01019
A42: AGRITECH | B42: EQ | C42: 47.2 | D42: 47.95 | E42: 46.5 | F42: 46.65 | G42: 46.65 | H42: 46.85 | I42: 5069 | J42: 239738.45 | K42: 2019-11-07 | L42: 84 | M42: INE449G01018
A43: AGROPHOS | B43: EQ | C43: 119.05 | D43: 119.95 | E43: 119.05 | F43: 119.15 | G43: 119.15 | H43: 118.55 | I43: 576808 | J43: 68859577.5 | K43: 2019-11-07 | L43: 42395 | M43: INE740V01019
A44: AHLEAST | B44: EQ | C44: 183.95 | D44: 195.9 | E44: 179.1 | F44: 184.8 | G44: 179.1 | H44: 181.85 | I44: 992 | J44: 181767 | K44: 2019-11-07 | L44: 96 | M44: INE926K01017
A45: AHLUCONT | B45: EQ | C45: 319.8 | D45: 319.8 | E45: 295 | F45: 299.7 | G45: 297 | H45: 300.25 | I45: 26280 | J45: 8009769.6 | K45: 2019-11-07 | L45: 1431 | M45: INE758C01029
A46: AHLWEST | B46: EQ | C46: 272 | D46: 273.2 | E46: 265 | F46: 271.95 | G46: 273.2 | H46: 271.9 | I46: 945 | J46: 253984.5 | K46: 2019-11-07 | L46: 102 | M46: INE915K01010
A47: AIAENG | B47: EQ | C47: 1690.9 | D47: 1717.9 | E47: 1679.95 | F47: 1692.7 | G47: 1692 | H47: 1684.5 | I47: 18570 | J47: 31427729.9 | K47: 2019-11-07 | L47: 2803 | M47: INE212H01026
A48: AIONJSW | B48: EQ | C48: 10.1 | D48: 10.1 | E48: 9.9 | F48: 10 | G48: 10 | H48: 9.95 | I48: 129354 | J48: 1294209.95 | K48: 2019-11-07 | L48: 198 | M48: INE743C01021
A49: AIRAN | B49: EQ | C49: 12 | D49: 12.25 | E49: 11.4 | F49: 11.55 | G49: 11.95 | H49: 12 | I49: 2333292 | J49: 28325098.8 | K49: 2019-11-07 | L49: 139 | M49: INE645W01026
A50: AJANTPHARM | B50: EQ | C50: 1012 | D50: 1018.8 | E50: 985 | F50: 991.3 | G50: 987 | H50: 1011.95 | I50: 98143 | J50: 98053047.85 | K50: 2019-11-07 | L50: 6547 | M50: INE031B01049
A51: AJMERA | B51: EQ | C51: 141.9 | D51: 141.9 | E51: 135.2 | F51: 136.3 | G51: 136.9 | H51: 130.2 | I51: 257102 | J51: 35268803.25 | K51: 2019-11-07 | L51: 4872 | M51: INE298G01027
A52: AKASH | B52: EQ | C52: 62.5 | D52: 64 | E52: 61 | F52: 62.5 | G52: 63.95 | H52: 62.45 | I52: 2305 | J52: 144608.75 | K52: 2019-11-07 | L52: 14 | M52: INE737W01013
A53: AKSHARCHEM | B53: EQ | C53: 215.15 | D53: 217.4 | E53: 212 | F53: 215 | G53: 212.6 | H53: 212.7 | I53: 2746 | J53: 589668.75 | K53: 2019-11-07 | L53: 109 | M53: INE542B01011
A54: AKSHOPTFBR | B54: EQ | C54: 7.75 | D54: 7.8 | E54: 7.5 | F54: 7.55 | G54: 7.55 | H54: 7.8 | I54: 173849 | J54: 1321680.1 | K54: 2019-11-07 | L54: 332 | M54: INE523B01011
A55: AKZOINDIA | B55: EQ | C55: 2225 | D55: 2247.95 | E55: 2175.1 | F55: 2186.2 | G55: 2200 | H55: 2224.3 | I55: 9782 | J55: 21632570.25 | K55: 2019-11-07 | L55: 1635 | M55: INE133A01011
A56: ALANKIT | B56: EQ | C56: 15.8 | D56: 16.95 | E56: 15.6 | F56: 15.6 | G56: 15.6 | H56: 16.4 | I56: 66805 | J56: 1059191.2 | K56: 2019-11-07 | L56: 319 | M56: INE914E01040
A57: ALBERTDAVD | B57: EQ | C57: 405.8 | D57: 408 | E57: 403 | F57: 403.95 | G57: 403.05 | H57: 405.6 | I57: 1321 | J57: 535127 | K57: 2019-11-07 | L57: 105 | M57: INE155C01010
A58: ALBK | B58: EQ | C58: 26.8 | D58: 27.15 | E58: 26.8 | F58: 27 | G58: 27.1 | H58: 26.8 | I58: 517167 | J58: 13945424.55 | K58: 2019-11-07 | L58: 1877 | M58: INE428A01015
A59: ALCHEM | B59: BE | C59: 0.85 | D59: 0.85 | E59: 0.85 | F59: 0.85 | G59: 0.85 | H59: 0.85 | I59: 214 | J59: 181.9 | K59: 2019-11-07 | L59: 2 | M59: INE964B01033
A60: ALEMBICLTD | B60: EQ | C60: 50.05 | D60: 50.5 | E60: 48.6 | F60: 48.75 | G60: 48.65 | H60: 49.8 | I60: 67176 | J60: 3306549.5 | K60: 2019-11-07 | L60: 740 | M60: INE426A01027
A61: ALICON | B61: EQ | C61: 389.35 | D61: 391.5 | E61: 383.1 | F61: 389 | G61: 389 | H61: 386.35 | I61: 325 | J61: 125603.75 | K61: 2019-11-07 | L61: 40 | M61: INE062D01024
A62: ALKALI | B62: EQ | C62: 52 | D62: 54.1 | E62: 52 | F62: 52.75 | G62: 52.65 | H62: 51.75 | I62: 17709 | J62: 938898.85 | K62: 2019-11-07 | L62: 231 | M62: INE773I01017
A63: ALKEM | B63: EQ | C63: 2058.45 | D63: 2070 | E63: 1992.05 | F63: 2006.95 | G63: 2016.1 | H63: 2058.45 | I63: 127514 | J63: 260569773.3 | K63: 2019-11-07 | L63: 5447 | M63: INE540L01014
A64: ALKYLAMINE | B64: EQ | C64: 962 | D64: 1015 | E64: 945.3 | F64: 998.65 | G64: 1005 | H64: 952.5 | I64: 75567 | J64: 74328010.75 | K64: 2019-11-07 | L64: 4885 | M64: INE150B01021
A65: ALLCARGO | B65: EQ | C65: 105.5 | D65: 107.8 | E65: 105.5 | F65: 106.6 | G65: 106.65 | H65: 106.1 | I65: 73331 | J65: 7847060.35 | K65: 2019-11-07 | L65: 1007 | M65: INE418H01029
A66: ALLSEC | B66: EQ | C66: 284.9 | D66: 287 | E66: 279.2 | F66: 282.7 | G66: 280 | H66: 284.05 | I66: 1333 | J66: 376699.4 | K66: 2019-11-07 | L66: 162 | M66: INE835G01018
A67: ALMONDZ | B67: EQ | C67: 9.6 | D67: 10.05 | E67: 9.5 | F67: 9.6 | G67: 9.6 | H67: 9.8 | I67: 50 | J67: 478.65 | K67: 2019-11-07 | L67: 4 | M67: INE326B01027
A68: ALOKTEXT | B68: EQ | C68: 1.75 | D68: 1.75 | E68: 1.75 | F68: 1.75 | G68: 1.75 | H68: 1.7 | I68: 2371054 | J68: 4149344.5 | K68: 2019-11-07 | L68: 338 | M68: INE270A01011
A69: ALPA | B69: EQ | C69: 17.3 | D69: 18.1 | E69: 17.1 | F69: 17.7 | G69: 17.5 | H69: 17.25 | I69: 16608 | J69: 293567.05 | K69: 2019-11-07 | L69: 176 | M69: INE385I01010
A70: ALPHAGEO | B70: EQ | C70: 186.25 | D70: 195.5 | E70: 185.9 | F70: 188.8 | G70: 187.55 | H70: 186.85 | I70: 10333 | J70: 1966270.4 | K70: 2019-11-07 | L70: 466 | M70: INE137C01018
A71: ALPSINDUS | B71: BE | C71: 0.5 | D71: 0.5 | E71: 0.5 | F71: 0.5 | G71: 0.5 | H71: 0.45 | I71: 852 | J71: 426 | K71: 2019-11-07 | L71: 5 | M71: INE093B01015
A72: AMARAJABAT | B72: EQ | C72: 663.9 | D72: 667.9 | E72: 658.65 | F72: 662.5 | G72: 663 | H72: 660.8 | I72: 253184 | J72: 168019893.8 | K72: 2019-11-07 | L72: 9840 | M72: INE885A01032
A73: AMBER | B73: EQ | C73: 975.15 | D73: 1049.9 | E73: 975.15 | F73: 999.55 | G73: 997.15 | H73: 975.15 | I73: 36691 | J73: 36725483.65 | K73: 2019-11-07 | L73: 2332 | M73: INE371P01015
A74: AMBIKCO | B74: EQ | C74: 914.95 | D74: 914.95 | E74: 886.25 | F74: 899.05 | G74: 898 | H74: 899.75 | I74: 1951 | J74: 1749071.65 | K74: 2019-11-07 | L74: 248 | M74: INE540G01014
A75: AMBUJACEM | B75: EQ | C75: 203.5 | D75: 205 | E75: 201.75 | F75: 203.2 | G75: 203.65 | H75: 202.25 | I75: 2560585 | J75: 520898771.2 | K75: 2019-11-07 | L75: 11579 | M75: INE079A01024
A76: AMDIND | B76: EQ | C76: 19.45 | D76: 20.7 | E76: 19 | F76: 19.2 | G76: 19.4 | H76: 18.8 | I76: 31500 | J76: 616542.85 | K76: 2019-11-07 | L76: 183 | M76: INE005I01014
A77: AMJLAND | B77: EQ | C77: 18.95 | D77: 19.5 | E77: 18.35 | F77: 19.1 | G77: 19.3 | H77: 18.95 | I77: 4162 | J77: 79141.5 | K77: 2019-11-07 | L77: 58 | M77: INE606A01024
A78: AMRUTANJAN | B78: EQ | C78: 462.25 | D78: 494.9 | E78: 447.8 | F78: 488 | G78: 494 | H78: 460.6 | I78: 250818 | J78: 120622489.5 | K78: 2019-11-07 | L78: 8485 | M78: INE098F01031
A79: ANANTRAJ | B79: EQ | C79: 35 | D79: 35.25 | E79: 32.8 | F79: 33.25 | G79: 33.15 | H79: 33.6 | I79: 424154 | J79: 14409215.45 | K79: 2019-11-07 | L79: 2581 | M79: INE242C01024
A80: ANDHRABANK | B80: EQ | C80: 18.5 | D80: 19.5 | E80: 18.45 | F80: 18.65 | G80: 18.75 | H80: 18.3 | I80: 3340083 | J80: 63433929.7 | K80: 2019-11-07 | L80: 6651 | M80: INE434A01013
A81: ANDHRACEMT | B81: BE | C81: 2.7 | D81: 2.75 | E81: 2.7 | F81: 2.75 | G81: 2.75 | H81: 2.65 | I81: 45374 | J81: 124758.5 | K81: 2019-11-07 | L81: 77 | M81: INE666E01012
A82: ANDHRSUGAR | B82: EQ | C82: 284.45 | D82: 284.45 | E82: 275 | F82: 278.65 | G82: 279 | H82: 283.9 | I82: 33223 | J82: 9251799.35 | K82: 2019-11-07 | L82: 1217 | M82: INE715B01013
A83: ANIKINDS | B83: BE | C83: 8.6 | D83: 9 | E83: 8.25 | F83: 9 | G83: 9 | H83: 8.6 | I83: 5609 | J83: 48961.05 | K83: 2019-11-07 | L83: 32 | M83: INE087B01017
A84: ANKITMETAL | B84: BE | C84: 0.45 | D84: 0.55 | E84: 0.45 | F84: 0.5 | G84: 0.5 | H84: 0.5 | I84: 12033 | J84: 6026.6 | K84: 2019-11-07 | L84: 15 | M84: INE106I01010
A85: ANSALAPI | B85: EQ | C85: 5.3 | D85: 5.3 | E85: 5.3 | F85: 5.3 | G85: 5.3 | H85: 5.05 | I85: 9646 | J85: 51123.8 | K85: 2019-11-07 | L85: 25 | M85: INE436A01026
A86: ANSALHSG | B86: EQ | C86: 7.45 | D86: 7.6 | E86: 7.05 | F86: 7.6 | G86: 7.6 | H86: 6.35 | I86: 626233 | J86: 4670333.55 | K86: 2019-11-07 | L86: 873 | M86: INE880B01015
A87: ANTGRAPHIC | B87: BE | C87: 0.6 | D87: 0.7 | E87: 0.6 | F87: 0.65 | G87: 0.65 | H87: 0.65 | I87: 30364 | J87: 19129.8 | K87: 2019-11-07 | L87: 42 | M87: INE414B01021
A88: ANUP | B88: EQ | C88: 470.05 | D88: 484.65 | E88: 465 | F88: 481.1 | G88: 478 | H88: 472.25 | I88: 7772 | J88: 3699368.65 | K88: 2019-11-07 | L88: 742 | M88: INE294Z01018
A89: APARINDS | B89: EQ | C89: 539.05 | D89: 566 | E89: 532 | F89: 549.6 | G89: 533.5 | H89: 549.2 | I89: 64494 | J89: 35819731.95 | K89: 2019-11-07 | L89: 2507 | M89: INE372A01015
A90: APCL | B90: EQ | C90: 159.75 | D90: 165 | E90: 152 | F90: 161 | G90: 160.5 | H90: 157.2 | I90: 13918 | J90: 2235285.8 | K90: 2019-11-07 | L90: 449 | M90: INE071F01012
A91: APCOTEXIND | B91: EQ | C91: 166.7 | D91: 167.95 | E91: 164.95 | F91: 165.55 | G91: 165 | H91: 166.25 | I91: 6478 | J91: 1077941.85 | K91: 2019-11-07 | L91: 266 | M91: INE116A01032
A92: APEX | B92: EQ | C92: 234.4 | D92: 279.75 | E92: 233.7 | F92: 279.75 | G92: 279.75 | H92: 233.15 | I92: 1830210 | J92: 490146728.8 | K92: 2019-11-07 | L92: 28085 | M92: INE346W01013
A93: APLAPOLLO | B93: EQ | C93: 1466.5 | D93: 1485.05 | E93: 1442.8 | F93: 1454.15 | G93: 1448.25 | H93: 1470.1 | I93: 17439 | J93: 25429501.65 | K93: 2019-11-07 | L93: 1518 | M93: INE702C01019
A94: APLLTD | B94: EQ | C94: 578 | D94: 581.5 | E94: 575 | F94: 576.45 | G94: 576.55 | H94: 577.3 | I94: 48519 | J94: 27982189.1 | K94: 2019-11-07 | L94: 1215 | M94: INE901L01018
A95: APOLLO | B95: EQ | C95: 84.5 | D95: 86 | E95: 80.35 | F95: 82.15 | G95: 82 | H95: 83.55 | I95: 52753 | J95: 4360901.5 | K95: 2019-11-07 | L95: 829 | M95: INE713T01010
A96: APOLLOHOSP | B96: EQ | C96: 1422.7 | D96: 1469 | E96: 1420.5 | F96: 1463.9 | G96: 1468 | H96: 1413.9 | I96: 909619 | J96: 1318805760 | K96: 2019-11-07 | L96: 58059 | M96: INE437A01024
A97: APOLLOTYRE | B97: EQ | C97: 168.4 | D97: 169.7 | E97: 166 | F97: 167 | G97: 167.25 | H97: 168.5 | I97: 4178035 | J97: 699958173.5 | K97: 2019-11-07 | L97: 32101 | M97: INE438A01022
A98: APOLSINHOT | B98: EQ | C98: 780.05 | D98: 797.05 | E98: 775.1 | F98: 796.8 | G98: 791.1 | H98: 789.2 | I98: 1768 | J98: 1392658.95 | K98: 2019-11-07 | L98: 166 | M98: INE451F01024
A99: APTECHT | B99: EQ | C99: 176 | D99: 177.55 | E99: 169.4 | F99: 170.55 | G99: 171.4 | H99: 175.4 | I99: 169045 | J99: 29296148.35 | K99: 2019-11-07 | L99: 3511 | M99: INE266F01018
A100: ARCHIDPLY | B100: EQ | C100: 28.9 | D100: 30.8 | E100: 28.85 | F100: 29.3 | G100: 29.35 | H100: 28.85 | I100: 57789 | J100: 1734012.95 | K100: 2019-11-07 | L100: 939 | M100: INE877I01016
A101: ARCHIES | B101: BE | C101: 19.5 | D101: 19.85 | E101: 18.5 | F101: 19.35 | G101: 19.35 | H101: 19.2 | I101: 20060 | J101: 381448.85 | K101: 2019-11-07 | L101: 137 | M101: INE731A01020
A102: ARCOTECH | B102: BE | C102: 2 | D102: 2 | E102: 2 | F102: 2 | G102: 2 | H102: 1.95 | I102: 8212 | J102: 16424 | K102: 2019-11-07 | L102: 18 | M102: INE574I01035
A103: ARENTERP | B103: EQ | C103: 9.5 | D103: 9.5 | E103: 9.5 | F103: 9.5 | G103: 9.5 | H103: 10 | I103: 100 | J103: 950 | K103: 2019-11-07 | L103: 1 | M103: INE610C01014
A104: ARIES | B104: EQ | C104: 65.45 | D104: 65.6 | E104: 62.6 | F104: 64.35 | G104: 64.4 | H104: 64.8 | I104: 26134 | J104: 1667650.6 | K104: 2019-11-07 | L104: 482 | M104: INE298I01015
A105: ARIHANT | B105: EQ | C105: 20.95 | D105: 23.15 | E105: 20 | F105: 23.15 | G105: 23.15 | H105: 19.3 | I105: 8934 | J105: 200428.4 | K105: 2019-11-07 | L105: 145 | M105: INE413D01011
A106: ARIHANTSUP | B106: BE | C106: 25.25 | D106: 26.55 | E106: 25.1 | F106: 26.5 | G106: 26.55 | H106: 25.3 | I106: 80737 | J106: 2076759.85 | K106: 2019-11-07 | L106: 100 | M106: INE643K01018
A107: ARMANFIN | B107: EQ | C107: 565.05 | D107: 585 | E107: 551.55 | F107: 567.15 | G107: 568 | H107: 574.25 | I107: 4904 | J107: 2814612.45 | K107: 2019-11-07 | L107: 448 | M107: INE109C01017
A108: AROGRANITE | B108: EQ | C108: 41.45 | D108: 41.65 | E108: 39.5 | F108: 39.7 | G108: 40.3 | H108: 41.05 | I108: 11086 | J108: 451285.25 | K108: 2019-11-07 | L108: 182 | M108: INE210C01013
A109: ARROWGREEN | B109: EQ | C109: 52.95 | D109: 53.7 | E109: 50.65 | F109: 53.05 | G109: 53.7 | H109: 51.15 | I109: 7150 | J109: 376991.25 | K109: 2019-11-07 | L109: 120 | M109: INE570D01018
A110: ARROWTEX | B110: EQ | C110: 10.5 | D110: 12.2 | E110: 9.7 | F110: 12.2 | G110: 12.2 | H110: 10.2 | I110: 40476 | J110: 474625.05 | K110: 2019-11-07 | L110: 163 | M110: INE933J01015
A111: ARSHIYA | B111: EQ | C111: 18.25 | D111: 18.95 | E111: 17.75 | F111: 18 | G111: 18 | H111: 18.25 | I111: 20363 | J111: 369746.6 | K111: 2019-11-07 | L111: 123 | M111: INE968D01022
A112: ARSSINFRA | B112: EQ | C112: 26.15 | D112: 26.15 | E112: 25 | F112: 25 | G112: 25 | H112: 25.25 | I112: 5733 | J112: 145178.6 | K112: 2019-11-07 | L112: 44 | M112: INE267I01010
A113: ARVIND | B113: EQ | C113: 51.3 | D113: 52.8 | E113: 51.2 | F113: 51.5 | G113: 51.45 | H113: 51.25 | I113: 658458 | J113: 34144508.4 | K113: 2019-11-07 | L113: 4766 | M113: INE034A01011
A114: ARVINDFASN | B114: EQ | C114: 435 | D114: 437.55 | E114: 427 | F114: 431.5 | G114: 429.2 | H114: 438.6 | I114: 23651 | J114: 10246273.7 | K114: 2019-11-07 | L114: 2501 | M114: INE955V01021
A115: ARVSMART | B115: EQ | C115: 98.6 | D115: 102.7 | E115: 98.6 | F115: 101.75 | G115: 102 | H115: 101.1 | I115: 8707 | J115: 881935.3 | K115: 2019-11-07 | L115: 516 | M115: INE034S01021
A116: ASAHIINDIA | B116: EQ | C116: 200 | D116: 207.95 | E116: 194.3 | F116: 195.05 | G116: 196 | H116: 203.65 | I116: 18497 | J116: 3640999.85 | K116: 2019-11-07 | L116: 659 | M116: INE439A01020
A117: ASAHISONG | B117: EQ | C117: 155.85 | D117: 156.9 | E117: 151.75 | F117: 152.8 | G117: 153 | H117: 151.25 | I117: 2646 | J117: 405807.15 | K117: 2019-11-07 | L117: 164 | M117: INE228I01012
A118: ASAL | B118: EQ | C118: 35.35 | D118: 35.35 | E118: 32.5 | F118: 33.3 | G118: 32.9 | H118: 34 | I118: 16091 | J118: 534588.9 | K118: 2019-11-07 | L118: 103 | M118: INE900C01027
A119: ASHAPURMIN | B119: BE | C119: 31.85 | D119: 31.85 | E119: 28.85 | F119: 29 | G119: 28.95 | H119: 30.35 | I119: 47913 | J119: 1406971.95 | K119: 2019-11-07 | L119: 217 | M119: INE348A01023
A120: ASHIANA | B120: EQ | C120: 103.2 | D120: 105 | E120: 100.5 | F120: 101.8 | G120: 100.6 | H120: 99.7 | I120: 45677 | J120: 4672493.1 | K120: 2019-11-07 | L120: 1006 | M120: INE365D01021
A121: ASHIMASYN | B121: EQ | C121: 7.8 | D121: 8 | E121: 7.3 | F121: 7.75 | G121: 7.75 | H121: 7.8 | I121: 37099 | J121: 290035.95 | K121: 2019-11-07 | L121: 202 | M121: INE440A01010
A122: ASHOKA | B122: EQ | C122: 99.25 | D122: 99.9 | E122: 96.85 | F122: 97.1 | G122: 96.9 | H122: 97.3 | I122: 276882 | J122: 27064298.85 | K122: 2019-11-07 | L122: 5485 | M122: INE442H01029
A123: ASHOKLEY | B123: EQ | C123: 76.5 | D123: 77.15 | E123: 75.15 | F123: 76.7 | G123: 76.8 | H123: 76.8 | I123: 15633155 | J123: 1193125462 | K123: 2019-11-07 | L123: 38658 | M123: INE208A01029
A124: ASIANHOTNR | B124: EQ | C124: 109 | D124: 109 | E124: 99.95 | F124: 101.9 | G124: 101.9 | H124: 100 | I124: 1133 | J124: 114525.4 | K124: 2019-11-07 | L124: 204 | M124: INE363A01022
A125: ASIANPAINT | B125: EQ | C125: 1810 | D125: 1830.9 | E125: 1798.2 | F125: 1826.95 | G125: 1826.8 | H125: 1797.6 | I125: 1380635 | J125: 2505212214 | K125: 2019-11-07 | L125: 72914 | M125: INE021A01026
A126: ASIANTILES | B126: EQ | C126: 232.6 | D126: 234 | E126: 226.15 | F126: 229.25 | G126: 229.25 | H126: 231.3 | I126: 40013 | J126: 9185803.1 | K126: 2019-11-07 | L126: 3995 | M126: INE022I01019
A127: ASPINWALL | B127: EQ | C127: 144.85 | D127: 149 | E127: 140.05 | F127: 144 | G127: 144 | H127: 144.35 | I127: 3724 | J127: 543657.05 | K127: 2019-11-07 | L127: 131 | M127: INE991I01015
A128: ASTEC | B128: EQ | C128: 358.05 | D128: 364.65 | E128: 353.05 | F128: 359.9 | G128: 358 | H128: 357.25 | I128: 12307 | J128: 4398629.1 | K128: 2019-11-07 | L128: 591 | M128: INE563J01010
A129: ASTERDM | B129: EQ | C129: 138 | D129: 144.35 | E129: 137.7 | F129: 140.95 | G129: 142 | H129: 138.6 | I129: 121385 | J129: 17246707.9 | K129: 2019-11-07 | L129: 8072 | M129: INE914M01019
A130: ASTRAL | B130: EQ | C130: 1056.7 | D130: 1109 | E130: 1052.5 | F130: 1090.45 | G130: 1090 | H130: 1049.95 | I130: 259535 | J130: 279808967.4 | K130: 2019-11-07 | L130: 21643 | M130: INE006I01046
A131: ASTRAMICRO | B131: EQ | C131: 77.4 | D131: 77.4 | E131: 75 | F131: 76.9 | G131: 77.4 | H131: 76.65 | I131: 54031 | J131: 4128408.75 | K131: 2019-11-07 | L131: 869 | M131: INE386C01029
A132: ASTRAZEN | B132: EQ | C132: 2520 | D132: 2569 | E132: 2470.4 | F132: 2495.1 | G132: 2499 | H132: 2519.8 | I132: 11064 | J132: 27747063 | K132: 2019-11-07 | L132: 2081 | M132: INE203A01020
A133: ASTRON | B133: EQ | C133: 42.05 | D133: 43.2 | E133: 41.05 | F133: 41.05 | G133: 41.05 | H133: 43.2 | I133: 2349161 | J133: 97114304.2 | K133: 2019-11-07 | L133: 3089 | M133: INE646X01014
A134: ATFL | B134: EQ | C134: 610 | D134: 641 | E134: 608 | F134: 634.5 | G134: 639 | H134: 612.05 | I134: 10189 | J134: 6412869.05 | K134: 2019-11-07 | L134: 764 | M134: INE209A01019
A135: ATLANTA | B135: BE | C135: 7.1 | D135: 7.2 | E135: 6.9 | F135: 7.1 | G135: 7.1 | H135: 7 | I135: 7684 | J135: 54779.45 | K135: 2019-11-07 | L135: 59 | M135: INE285H01022
A136: ATUL | B136: EQ | C136: 4268.1 | D136: 4268.1 | E136: 4184.05 | F136: 4225.65 | G136: 4236.1 | H136: 4225.95 | I136: 9873 | J136: 41702740.25 | K136: 2019-11-07 | L136: 3046 | M136: INE100A01010
A137: ATULAUTO | B137: EQ | C137: 222 | D137: 223.6 | E137: 216.35 | F137: 220.1 | G137: 218.1 | H137: 222.25 | I137: 22620 | J137: 4971497.2 | K137: 2019-11-07 | L137: 2303 | M137: INE951D01028
A138: AUBANK | B138: EQ | C138: 670.5 | D138: 691 | E138: 667.5 | F138: 685.1 | G138: 687 | H138: 666.55 | I138: 358799 | J138: 245976019.4 | K138: 2019-11-07 | L138: 16341 | M138: INE949L01017
A139: AURIONPRO | B139: EQ | C139: 79.5 | D139: 80.8 | E139: 75.7 | F139: 79.5 | G139: 80.75 | H139: 77.7 | I139: 6727 | J139: 528615.4 | K139: 2019-11-07 | L139: 101 | M139: INE132H01018
A140: AUROPHARMA | B140: EQ | C140: 451.5 | D140: 454.8 | E140: 442.6 | F140: 452 | G140: 452.6 | H140: 450.9 | I140: 3916537 | J140: 1757061696 | K140: 2019-11-07 | L140: 58817 | M140: INE406A01037
A141: AUSOMENT | B141: EQ | C141: 28.05 | D141: 29.3 | E141: 27 | F141: 28.65 | G141: 28.7 | H141: 29 | I141: 322 | J141: 9015.3 | K141: 2019-11-07 | L141: 55 | M141: INE218C01016
A142: AUTOAXLES | B142: EQ | C142: 866 | D142: 866 | E142: 835.05 | F142: 841.5 | G142: 837 | H142: 848.35 | I142: 10976 | J142: 9336191.1 | K142: 2019-11-07 | L142: 1067 | M142: INE449A01011
A143: AUTOIND | B143: EQ | C143: 25.8 | D143: 25.8 | E143: 23.15 | F143: 23.9 | G143: 23.85 | H143: 24.3 | I143: 13441 | J143: 324771.05 | K143: 2019-11-07 | L143: 120 | M143: INE718H01014
A144: AUTOLITIND | B144: EQ | C144: 21.45 | D144: 25 | E144: 21.45 | F144: 22.7 | G144: 22.7 | H144: 23.4 | I144: 1280 | J144: 29242.35 | K144: 2019-11-07 | L144: 45 | M144: INE448A01013
A145: AVADHSUGAR | B145: EQ | C145: 268 | D145: 278.85 | E145: 252.65 | F145: 257.55 | G145: 258 | H145: 273.65 | I145: 245416 | J145: 63767345.2 | K145: 2019-11-07 | L145: 5621 | M145: INE349W01017
A146: AVANTIFEED | B146: EQ | C146: 490 | D146: 535 | E146: 490 | F146: 523.8 | G146: 524.6 | H146: 487.65 | I146: 3529633 | J146: 1834184404 | K146: 2019-11-07 | L146: 91246 | M146: INE871C01038
A147: AVTNPL | B147: EQ | C147: 24.65 | D147: 24.85 | E147: 24 | F147: 24.5 | G147: 24.75 | H147: 24.3 | I147: 21624 | J147: 527687.85 | K147: 2019-11-07 | L147: 163 | M147: INE488D01021
A148: AXISBANK | B148: EQ | C148: 750 | D148: 756 | E148: 732.5 | F148: 734.75 | G148: 737 | H148: 747.25 | I148: 9871570 | J148: 7324036764 | K148: 2019-11-07 | L148: 148004 | M148: INE238A01034
A149: AXISCADES | B149: EQ | C149: 68.9 | D149: 73.5 | E149: 67.9 | F149: 71.75 | G149: 72.7 | H149: 68.9 | I149: 131184 | J149: 9229935.95 | K149: 2019-11-07 | L149: 1159 | M149: INE555B01013
A150: AXISGOLD | B150: EQ | C150: 3362.05 | D150: 3414.85 | E150: 3357.7 | F150: 3369.55 | G150: 3360 | H150: 3360.4 | I150: 215 | J150: 724646.2 | K150: 2019-11-07 | L150: 64 | M150: INF846K01347
A151: AXISNIFTY | B151: EQ | C151: 1242.37 | D151: 1242.37 | E151: 1230.34 | F151: 1231.99 | G151: 1231.99 | H151: 1229.57 | I151: 21 | J151: 25937.07 | K151: 2019-11-07 | L151: 8 | M151: INF846K01ZL0
A152: AYMSYNTEX | B152: EQ | C152: 31.15 | D152: 31.35 | E152: 30.3 | F152: 31 | G152: 31 | H152: 31.75 | I152: 1634 | J152: 50545.9 | K152: 2019-11-07 | L152: 48 | M152: INE193B01039
A153: BAGFILMS | B153: EQ | C153: 1.95 | D153: 1.95 | E153: 1.9 | F153: 1.95 | G153: 1.95 | H153: 1.9 | I153: 56527 | J153: 110217.05 | K153: 2019-11-07 | L153: 45 | M153: INE116D01028
A154: BAJAJ-AUTO | B154: EQ | C154: 3244 | D154: 3277 | E154: 3222.95 | F154: 3265.85 | G154: 3277 | H154: 3248.3 | I154: 326912 | J154: 1062137566 | K154: 2019-11-07 | L154: 24057 | M154: INE917I01010
A155: BAJAJCON | B155: EQ | C155: 258.45 | D155: 259 | E155: 253.3 | F155: 255.75 | G155: 256.4 | H155: 259.15 | I155: 119713 | J155: 30604510.85 | K155: 2019-11-07 | L155: 4354 | M155: INE933K01021
A156: BAJAJELEC | B156: EQ | C156: 350.1 | D156: 352 | E156: 332.95 | F156: 335.15 | G156: 334.8 | H156: 353.15 | I156: 454947 | J156: 153807366.1 | K156: 2019-11-07 | L156: 13647 | M156: INE193E01025
A157: BAJAJFINSV | B157: EQ | C157: 8798 | D157: 8859.7 | E157: 8762.05 | F157: 8832.9 | G157: 8827.4 | H157: 8772.85 | I157: 213383 | J157: 1881124434 | K157: 2019-11-07 | L157: 26266 | M157: INE918I01018
A158: BAJAJHIND | B158: EQ | C158: 6.95 | D158: 7 | E158: 6.8 | F158: 6.9 | G158: 6.95 | H158: 6.9 | I158: 745475 | J158: 5140347.6 | K158: 2019-11-07 | L158: 719 | M158: INE306A01021
A159: BAJAJHLDNG | B159: EQ | C159: 3745 | D159: 3850 | E159: 3726.05 | F159: 3799.95 | G159: 3835 | H159: 3728.7 | I159: 39080 | J159: 147780719.6 | K159: 2019-11-07 | L159: 4509 | M159: INE118A01012
A160: BAJFINANCE | B160: EQ | C160: 4204.7 | D160: 4239.2 | E160: 4188.2 | F160: 4225.85 | G160: 4225 | H160: 4188.15 | I160: 1141603 | J160: 4817852739 | K160: 2019-11-07 | L160: 58529 | M160: INE296A01024
A161: BALAJITELE | B161: EQ | C161: 57.3 | D161: 58.4 | E161: 56 | F161: 56.4 | G161: 56.05 | H161: 56.85 | I161: 93319 | J161: 5328542.4 | K161: 2019-11-07 | L161: 479 | M161: INE794B01026
A162: BALAMINES | B162: EQ | C162: 335.5 | D162: 392.7 | E162: 335.3 | F162: 377.25 | G162: 379 | H162: 335.25 | I162: 230764 | J162: 86250595.45 | K162: 2019-11-07 | L162: 8024 | M162: INE050E01027
A163: BALAXI | B163: EQ | C163: 80 | D163: 80 | E163: 78 | F163: 78.35 | G163: 80 | H163: 79.5 | I163: 335 | J163: 26400 | K163: 2019-11-07 | L163: 8 | M163: INE618N01014
A164: BALKRISHNA | B164: BE | C164: 18 | D164: 19 | E164: 18 | F164: 18.4 | G164: 18.4 | H164: 18.8 | I164: 5355 | J164: 99913.5 | K164: 2019-11-07 | L164: 36 | M164: INE875R01011
A165: BALKRISIND | B165: EQ | C165: 875 | D165: 876.4 | E165: 859.9 | F165: 865.95 | G165: 867 | H165: 869.5 | I165: 392317 | J165: 338904581.6 | K165: 2019-11-07 | L165: 9850 | M165: INE787D01026
A166: BALLARPUR | B166: EQ | C166: 0.5 | D166: 0.55 | E166: 0.5 | F166: 0.55 | G166: 0.55 | H166: 0.55 | I166: 2419131 | J166: 1218772.95 | K166: 2019-11-07 | L166: 374 | M166: INE294A01037
A167: BALMLAWRIE | B167: EQ | C167: 197.45 | D167: 199.95 | E167: 196.7 | F167: 198.35 | G167: 198.35 | H167: 197.45 | I167: 58165 | J167: 11528677 | K167: 2019-11-07 | L167: 1202 | M167: INE164A01016
A168: BALPHARMA | B168: EQ | C168: 48.5 | D168: 48.5 | E168: 44.2 | F168: 45.4 | G168: 44.95 | H168: 47.3 | I168: 17300 | J168: 790555.55 | K168: 2019-11-07 | L168: 319 | M168: INE083D01012
A169: BALRAMCHIN | B169: EQ | C169: 155.5 | D169: 156.3 | E169: 151.1 | F169: 152.75 | G169: 152.35 | H169: 155.6 | I169: 1313852 | J169: 201379835.4 | K169: 2019-11-07 | L169: 34324 | M169: INE119A01028
A170: BANARBEADS | B170: EQ | C170: 34 | D170: 35.5 | E170: 33.7 | F170: 33.85 | G170: 33.85 | H170: 34.4 | I170: 1022 | J170: 34578.3 | K170: 2019-11-07 | L170: 12 | M170: INE655B01011
A171: BANARISUG | B171: EQ | C171: 1208.95 | D171: 1230.05 | E171: 1180 | F171: 1200 | G171: 1200 | H171: 1201.5 | I171: 266 | J171: 321772.2 | K171: 2019-11-07 | L171: 107 | M171: INE459A01010
A172: BANCOINDIA | B172: EQ | C172: 113 | D172: 113.35 | E172: 108.65 | F172: 110 | G172: 111 | H172: 112.15 | I172: 84788 | J172: 9391294 | K172: 2019-11-07 | L172: 2156 | M172: INE213C01025
A173: BANDHANBNK | B173: EQ | C173: 589.7 | D173: 589.7 | E173: 565.4 | F173: 568.6 | G173: 569.2 | H173: 582.5 | I173: 1794482 | J173: 1030757492 | K173: 2019-11-07 | L173: 98074 | M173: INE545U01014
A174: BANG | B174: EQ | C174: 18 | D174: 18.4 | E174: 16.65 | F174: 17.9 | G174: 18 | H174: 17.7 | I174: 13986 | J174: 246481.25 | K174: 2019-11-07 | L174: 397 | M174: INE863I01016
A175: BANKBARODA | B175: EQ | C175: 99.9 | D175: 100.65 | E175: 95.65 | F175: 96.2 | G175: 96.4 | H175: 99.45 | I175: 34005915 | J175: 3325924336 | K175: 2019-11-07 | L175: 78282 | M175: INE028A01039
A176: BANKBEES | B176: EQ | C176: 3125 | D176: 3141 | E176: 3114 | F176: 3128.67 | G176: 3127.01 | H176: 3120.09 | I176: 9496 | J176: 29659738.57 | K176: 2019-11-07 | L176: 729 | M176: INF732E01078
A177: BANKINDIA | B177: EQ | C177: 70.25 | D177: 70.65 | E177: 68.05 | F177: 68.75 | G177: 68.05 | H177: 69.95 | I177: 7872854 | J177: 545090805.9 | K177: 2019-11-07 | L177: 17587 | M177: INE084A01016
A178: BANSWRAS | B178: EQ | C178: 66.65 | D178: 69.9 | E178: 66.6 | F178: 69.6 | G178: 69.9 | H178: 68.95 | I178: 7147 | J178: 491675 | K178: 2019-11-07 | L178: 81 | M178: INE629D01012
A179: BARTRONICS | B179: BE | C179: 1.5 | D179: 1.55 | E179: 1.5 | F179: 1.55 | G179: 1.55 | H179: 1.5 | I179: 12867 | J179: 19868.85 | K179: 2019-11-07 | L179: 23 | M179: INE855F01034
A180: BASF | B180: EQ | C180: 1012.25 | D180: 1020 | E180: 950 | F180: 962.85 | G180: 961.9 | H180: 1003.7 | I180: 116227 | J180: 115571821 | K180: 2019-11-07 | L180: 7402 | M180: INE373A01013
A181: BASML | B181: EQ | C181: 144.4 | D181: 144.4 | E181: 135.2 | F181: 138.35 | G181: 138 | H181: 140 | I181: 931 | J181: 129796.5 | K181: 2019-11-07 | L181: 60 | M181: INE186H01014
A182: BATAINDIA | B182: EQ | C182: 1705 | D182: 1729.9 | E182: 1695.3 | F182: 1725.75 | G182: 1729.8 | H182: 1710.05 | I182: 321619 | J182: 550664393 | K182: 2019-11-07 | L182: 13229 | M182: INE176A01028
A183: BAYERCROP | B183: EQ | C183: 3699.8 | D183: 3699.8 | E183: 3537 | F183: 3549.35 | G183: 3557.75 | H183: 3615.25 | I183: 2946 | J183: 10536232.45 | K183: 2019-11-07 | L183: 1046 | M183: INE462A01022
A184: BBL | B184: EQ | C184: 909.95 | D184: 920.05 | E184: 901 | F184: 904.8 | G184: 901 | H184: 905.45 | I184: 9505 | J184: 8635462.05 | K184: 2019-11-07 | L184: 522 | M184: INE464A01028
A185: BBTC | B185: EQ | C185: 1189.4 | D185: 1212 | E185: 1181.95 | F185: 1187 | G185: 1186.25 | H185: 1186.25 | I185: 89436 | J185: 106782037.1 | K185: 2019-11-07 | L185: 5032 | M185: INE050A01025
A186: BCG | B186: EQ | C186: 3.15 | D186: 3.2 | E186: 2.95 | F186: 3.1 | G186: 3.1 | H186: 3.05 | I186: 289094 | J186: 898891.25 | K186: 2019-11-07 | L186: 241 | M186: INE425B01027
A187: BCP | B187: EQ | C187: 8.4 | D187: 8.4 | E187: 8.4 | F187: 8.4 | G187: 8.4 | H187: 8.25 | I187: 1997 | J187: 16774.8 | K187: 2019-11-07 | L187: 13 | M187: INE905P01028
A188: BDL | B188: EQ | C188: 315.25 | D188: 333 | E188: 315.25 | F188: 325.65 | G188: 324.3 | H188: 318.05 | I188: 70185 | J188: 22839263.3 | K188: 2019-11-07 | L188: 3252 | M188: INE171Z01018
A189: BEARDSELL | B189: EQ | C189: 12.15 | D189: 12.2 | E189: 10.55 | F189: 11.85 | G189: 11.85 | H189: 11.75 | I189: 4211 | J189: 46880.8 | K189: 2019-11-07 | L189: 103 | M189: INE520H01022
A190: BEDMUTHA | B190: EQ | C190: 11.5 | D190: 11.8 | E190: 11.3 | F190: 11.75 | G190: 11.8 | H190: 11.65 | I190: 4559 | J190: 53730.65 | K190: 2019-11-07 | L190: 26 | M190: INE844K01012
A191: BEL | B191: EQ | C191: 109.55 | D191: 110.25 | E191: 107.7 | F191: 108.9 | G191: 108.65 | H191: 109.4 | I191: 8715227 | J191: 946708808.1 | K191: 2019-11-07 | L191: 46008 | M191: INE263A01024
A192: BEML | B192: EQ | C192: 972.5 | D192: 1008 | E192: 972.5 | F192: 980.75 | G192: 980 | H192: 970.75 | I192: 815622 | J192: 808488585.2 | K192: 2019-11-07 | L192: 25043 | M192: INE258A01016
A193: BEPL | B193: EQ | C193: 52.45 | D193: 52.6 | E193: 49.25 | F193: 50 | G193: 50.2 | H193: 52.15 | I193: 503468 | J193: 25503046.55 | K193: 2019-11-07 | L193: 2911 | M193: INE922A01025
A194: BERGEPAINT | B194: EQ | C194: 495.65 | D194: 509.5 | E194: 495.65 | F194: 506.7 | G194: 507.8 | H194: 495.65 | I194: 3373835 | J194: 1701924006 | K194: 2019-11-07 | L194: 68389 | M194: INE463A01038
A195: BFINVEST | B195: EQ | C195: 321 | D195: 332.7 | E195: 317.15 | F195: 322.2 | G195: 323 | H195: 320.05 | I195: 85954 | J195: 27906159.3 | K195: 2019-11-07 | L195: 3207 | M195: INE878K01010
A196: BFUTILITIE | B196: EQ | C196: 296.5 | D196: 307.1 | E196: 283.5 | F196: 292.2 | G196: 291 | H196: 293.9 | I196: 268667 | J196: 79275607.65 | K196: 2019-11-07 | L196: 4886 | M196: INE243D01012
A197: BGLOBAL | B197: BE | C197: 1.95 | D197: 1.95 | E197: 1.85 | F197: 1.85 | G197: 1.85 | H197: 1.9 | I197: 681 | J197: 1283.3 | K197: 2019-11-07 | L197: 9 | M197: INE224M01013
A198: BGRENERGY | B198: EQ | C198: 33.7 | D198: 34.45 | E198: 32.75 | F198: 33.2 | G198: 33 | H198: 33.2 | I198: 146891 | J198: 4898858.9 | K198: 2019-11-07 | L198: 1322 | M198: INE661I01014
A199: BHAGERIA | B199: EQ | C199: 108.5 | D199: 109.8 | E199: 108.05 | F199: 108.15 | G199: 108.1 | H199: 108.5 | I199: 5504 | J199: 597761.8 | K199: 2019-11-07 | L199: 341 | M199: INE354C01027
A200: BHAGYANGR | B200: EQ | C200: 19.85 | D200: 19.85 | E200: 19.2 | F200: 19.5 | G200: 19.5 | H200: 18.95 | I200: 2279 | J200: 44261.15 | K200: 2019-11-07 | L200: 19 | M200: INE458B01036
... 1491 more rows

Sheet Sheet1 (hidden)

Sheet Sheet3 (hidden)

Sheet Sheet4 (hidden)

Sheet Sheet5 (hidden)
